{"text_format":"1","workbook":"xlsx","n_sheets":3,"sheets":["Trama","Validaciones","Fecha"],"not_rendered":{"charts":0,"images":3,"macros":1,"external_links":0,"defined_names":2,"comments":2,"pivot_tables":0},"unopened":[],"bounds":{"document_bytes":16777216,"sheet_cells":100000,"rows_first":2000,"rows_last":500,"rows_between":2000,"halvings":0,"cell_chars":16384,"cell_head_chars":4096},"cells_cut":0,"cells_raw":0,"read":"whole","date_system":"1900"}

{"sheet":"Trama","index":0,"n_rows":501,"n_cols":47,"rows_kept":501,"cut":false,"hidden":false,"merged":[]}
["CÓDIGO DE TIPO DOCUMENTO\n\nCelda tipo NÚMERO\nSolo se permite 1 : DNI, 2 : CE, 3: OTROS (Carné de Identidad, PTP, Carnet Refugiado), 6: PASAPORTE","NÚMERO DE DOCUMENTO DE IDENTIDAD\n\nCelda tipo TEXTO\nPara DNI: 8 dígitos, CE: 9 dígitos. Para los demás máximo 12 caracteres","APELLIDO PATERNO\n\nCelda tipo TEXTO\nMáximo 30 caracteres y solo se permite letras, vocales y eñe","APELLIDO MATERNO\n\nCelda tipo TEXTO\nOPCIONAL, Máximo 30 caracteres y solo se permite letras, vocales y eñe","PRIMER NOMBRE\n\nCelda tipo TEXTO\nMáximo 30 caracteres y solo se permite letras, vocales y eñe","SEGUNDO NOMBRE\n\nCelda tipo TEXTO\nOPCIONAL, Máximo 30 caracteres y solo se permite letras, vocales y eñe","FECHA DE NACIMIENTO\n\nCelda tipo FECHA\nSolo procesa formato DD/MM/YYYY","SEXO\n\nCelda tipo TEXTO\nSolo se permite M: Masculino, F: Femenino","NACIONALIDAD\n\nCelda tipo TEXTO\nMáximo 60 caracteres y solo se permite letras, vocales y eñe","Ocupación","Departamento","Provincia","Distrito","Dirección","Tipo de Trabajador","MONEDA SUELDO\n\nCódigo 99: Soles","IMPORTE SUELDO\n\nCelda tipo NÚMERO\nNo acepta formato Moneda (eje. S/.)\nMínimo 40","Fecha Ing Seguro","Fecha Ing Empresa","Telefono","Observaciones","La planilla contiene personas menores a 18 años.",null,{"$f":"SUM(X2:X501)","v":0},null,null,{"$f":"SUM(AA2:AA202)","v":0},null,null,null,"VALIDACIÓN DE DUPLICADOS DNI",{"$f":"IF(A2<>\"\",1,0)","v":0},1,{"$f":"AF1+AG1","v":1}]
[null,null,null,null,null,null,null,null,null,null,null,null,null,null,null,null,null,null,null,null,null,{"$f":"IF(Fecha!H2=\"\",\"Quitar\",Fecha!H2*1)","v":"Quitar"},null,{"$f":"IF(AND(A2=\"\",B2=\"\",C2=\"\",D2=\"\",E2=\"\",F2=\"\",G2=\"\",H2=\"\",I2=\"\",P2=\"\",Q2=\"\")=TRUE,0,1)","v":0},null,{"$f":"IF(G2<>\"\",((TODAY()-G2)/365.25),\"\")","v":""},null,null,{"$f":"IF(G2=\"\",\"\",2)","v":""},1,{"$f":"IF(A2=\"\",\"\",CONCATENATE(A2,B2))","v":""},null,null,null,null,null,null,null,null,null,null,null,null,null,null,null,"Peru"]
[null,null,null,null,null,null,null,null,null,null,null,null,null,null,null,null,null,null,null,null,null,{"$f":"IF(Fecha!H3=\"\",\"Quitar\",Fecha!H3*1)","v":"Quitar"},null,{"$f":"IF(AND(A3=\"\",B3=\"\",C3=\"\",D3=\"\",E3=\"\",F3=\"\",G3=\"\",H3=\"\",I3=\"\",P3=\"\",Q3=\"\")=TRUE,0,1)","v":0},null,{"$f":"IF(G3<>\"\",((TODAY()-G3)/365.25),\"\")","v":""},null,null,{"$f":"IF(G3=\"\",\"\",2)","v":""},1,{"$f":"IF(A3=\"\",\"\",CONCATENATE(A3,B3))","v":""},null,null,null,{"$f":"IF(Y3<>\"\",ROUNDUP(((TODAY()-Y3)/365.25),0),\"\")","v":""},null,null,{"$f":"IF(Y3=\"\",\"\",2)","v":""},null,{"$f":"IF(P3=\"\",\"\",CONCATENATE(P3,Q3))","v":""},null,null,null,null,null,null,"Estados Unidos de America"]
[null,null,null,null,null,null,null,null,null,null,null,null,null,null,null,null,null,null,null,null,null,{"$f":"IF(Fecha!H4=\"\",\"Quitar\",Fecha!H4*1)","v":"Quitar"},null,0,null,"",null,null,"",1,"",null,null,null,"",null,null,"",null,{"$f":"IF(P4=\"\",\"\",CONCATENATE(P4,Q4))","v":""},null,null,null,null,null,null,"Canada"]
[null,null,null,null,null,null,null,null,null,null,null,null,null,null,null,null,null,null,null,null,null,{"$f":"IF(Fecha!H5=\"\",\"Quitar\",Fecha!H5*1)","v":"Quitar"},null,0,null,"",null,null,"",1,"",null,null,null,"",null,null,"",null,{"$f":"IF(P5=\"\",\"\",CONCATENATE(P5,Q5))","v":""},null,null,null,null,null,null,"Mexico"]
[null,null,null,null,null,null,null,null,null,null,null,null,null,null,null,null,null,null,null,null,null,{"$f":"IF(Fecha!H6=\"\",\"Quitar\",Fecha!H6*1)","v":"Quitar"},null,0,null,"",null,null,"",1,"",null,null,null,"",null,null,"",1,"",null,null,null,null,null,null,"Guatemala"]
[null,null,null,null,null,null,null,null,null,null,null,null,null,null,null,null,null,null,null,null,null,{"$f":"IF(Fecha!H7=\"\",\"Quitar\",Fecha!H7*1)","v":"Quitar"},null,0,null,"",null,null,"",1,"",null,null,null,"",null,null,"",null,"",null,null,null,null,null,null,"Honduras"]
[null,null,null,null,null,null,null,null,null,null,null,null,null,null,null,null,null,null,null,null,null,{"$f":"IF(Fecha!H8=\"\",\"Quitar\",Fecha!H8*1)","v":"Quitar"},null,0,null,"",null,null,"",null,"",null,null,null,"",null,null,"",null,"",null,null,null,null,null,null,"El Salvador"]
[null,null,null,null,null,null,null,null,null,null,null,null,null,null,null,null,null,null,null,null,null,{"$f":"IF(Fecha!H9=\"\",\"Quitar\",Fecha!H9*1)","v":"Quitar"},null,0,null,"",null,null,"",1,"",null,null,null,"",null,null,"",null,"",null,null,null,null,null,null,"Nicaragua"]
[null,null,null,null,null,null,null,null,null,null,null,null,null,null,null,null,null,null,null,null,null,{"$f":"IF(Fecha!H10=\"\",\"Quitar\",Fecha!H10*1)","v":"Quitar"},null,0,null,"",null,null,"",1,"",null,null,null,"",null,null,"",null,"",null,null,null,null,null,null,"Costa Rica"]
[null,null,null,null,null,null,null,null,null,null,null,null,null,null,null,null,null,null,null,null,null,{"$f":"IF(Fecha!H11=\"\",\"Quitar\",Fecha!H11*1)","v":"Quitar"},null,0,null,"",null,null,"",null,"",null,null,null,"",null,null,"",null,"",null,null,null,null,null,null,"Panama"]
[null,null,null,null,null,null,null,null,null,null,null,null,null,null,null,null,null,null,null,null,null,{"$f":"IF(Fecha!H12=\"\",\"Quitar\",Fecha!H12*1)","v":"Quitar"},null,0,null,"",null,null,"",null,"",null,null,null,"",null,null,"",null,"",null,null,null,null,null,null,"Cuba"]
[null,null,null,null,null,null,null,null,null,null,null,null,null,null,null,null,null,null,null,null,null,{"$f":"IF(Fecha!H13=\"\",\"Quitar\",Fecha!H13*1)","v":"Quitar"},null,0,null,"",null,null,"",null,"",null,null,null,"",null,null,"",null,"",null,null,null,null,null,null,"Haiti"]
[null,null,null,null,null,null,null,null,null,null,null,null,null,null,null,null,null,null,null,null,null,{"$f":"IF(Fecha!H14=\"\",\"Quitar\",Fecha!H14*1)","v":"Quitar"},null,0,null,"",null,null,"",null,"",null,null,null,"",null,null,"",null,"",null,null,null,null,null,null,"Republica Dominicana"]
[null,null,null,null,null,null,null,null,null,null,null,null,null,null,null,null,null,null,null,null,null,{"$f":"IF(Fecha!H15=\"\",\"Quitar\",Fecha!H15*1)","v":"Quitar"},null,0,null,"",null,null,"",null,"",null,null,null,"",null,null,"",null,"",null,null,null,null,null,null,"Puerto Rico"]
[null,null,null,null,null,null,null,null,null,null,null,null,null,null,null,null,null,null,null,null,null,{"$f":"IF(Fecha!H16=\"\",\"Quitar\",Fecha!H16*1)","v":"Quitar"},null,0,null,"",null,null,"",null,"",null,null,null,"",null,null,"",null,"",null,null,null,null,null,null,"Colombia"]
[null,null,null,null,null,null,null,null,null,null,null,null,null,null,null,null,null,null,null,null,null,{"$f":"IF(Fecha!H17=\"\",\"Quitar\",Fecha!H17*1)","v":"Quitar"},null,0,null,"",null,null,"",null,"",null,null,null,"",null,null,"",null,"",null,null,null,null,null,null,"Venezuela"]
[null,null,null,null,null,null,null,null,null,null,null,null,null,null,null,null,null,null,null,null,null,{"$f":"IF(Fecha!H18=\"\",\"Quitar\",Fecha!H18*1)","v":"Quitar"},null,0,null,"",null,null,"",null,"",null,null,null,"",null,null,"",null,"",null,null,null,null,null,null,"Guyana"]
[null,null,null,null,null,null,null,null,null,null,null,null,null,null,null,null,null,null,null,null,null,{"$f":"IF(Fecha!H19=\"\",\"Quitar\",Fecha!H19*1)","v":"Quitar"},null,0,null,"",null,null,"",null,"",null,null,null,"",null,null,"",null,"",null,null,null,null,null,null,"Surinam"]
[null,null,null,null,null,null,null,null,null,null,null,null,null,null,null,null,null,null,null,null,null,{"$f":"IF(Fecha!H20=\"\",\"Quitar\",Fecha!H20*1)","v":"Quitar"},null,0,null,"",null,null,"",null,"",null,null,null,"",null,null,"",null,"",null,null,null,null,null,null,"Guayana Francesa"]
[null,null,null,null,null,null,null,null,null,null,null,null,null,null,null,null,null,null,null,null,null,{"$f":"IF(Fecha!H21=\"\",\"Quitar\",Fecha!H21*1)","v":"Quitar"},null,0,null,"",null,null,"",null,"",null,null,null,"",null,null,"",null,"",null,null,null,null,null,null,"Ecuador"]
[null,null,null,null,null,null,null,null,null,null,null,null,null,null,null,null,null,null,null,null,null,{"$f":"IF(Fecha!H22=\"\",\"Quitar\",Fecha!H22*1)","v":"Quitar"},null,0,null,"",null,null,"",null,"",null,null,null,"",null,null,"",null,"",null,null,null,null,null,null,"Brasil"]
[null,null,null,null,null,null,null,null,null,null,null,null,null,null,null,null,null,null,null,null,null,{"$f":"IF(Fecha!H23=\"\",\"Quitar\",Fecha!H23*1)","v":"Quitar"},null,0,null,"",null,null,"",null,"",null,null,null,"",null,null,"",null,"",null,null,null,null,null,null,"Bolivia"]
[null,null,null,null,null,null,null,null,null,null,null,null,null,null,null,null,null,null,null,null,null,{"$f":"IF(Fecha!H24=\"\",\"Quitar\",Fecha!H24*1)","v":"Quitar"},null,0,null,"",null,null,"",null,"",null,null,null,"",null,null,"",null,"",null,null,null,null,null,null,"Chile"]
[null,null,null,null,null,null,null,null,null,null,null,null,null,null,null,null,null,null,null,null,null,{"$f":"IF(Fecha!H25=\"\",\"Quitar\",Fecha!H25*1)","v":"Quitar"},null,0,null,"",null,null,"",null,"",null,null,null,"",null,null,"",null,"",null,null,null,null,null,null,"Argentina"]
[null,null,null,null,null,null,null,null,null,null,null,null,null,null,null,null,null,null,null,null,null,{"$f":"IF(Fecha!H26=\"\",\"Quitar\",Fecha!H26*1)","v":"Quitar"},null,0,null,"",null,null,"",null,"",null,null,null,"",null,null,"",null,"",null,null,null,null,null,null,"Uruguay"]
[null,null,null,null,null,null,null,null,null,null,null,null,null,null,null,null,null,null,null,null,null,{"$f":"IF(Fecha!H27=\"\",\"Quitar\",Fecha!H27*1)","v":"Quitar"},null,0,null,"",null,null,"",null,"",null,null,null,"",null,null,"",null,"",null,null,null,null,null,null,"Paraguay"]
[null,null,null,null,null,null,null,null,null,null,null,null,null,null,null,null,null,null,null,null,null,{"$f":"IF(Fecha!H28=\"\",\"Quitar\",Fecha!H28*1)","v":"Quitar"},null,0,null,"",null,null,"",null,"",null,null,null,"",null,null,"",null,"",null,null,null,null,null,null,"Jamaica"]
[null,null,null,null,null,null,null,null,null,null,null,null,null,null,null,null,null,null,null,null,null,{"$f":"IF(Fecha!H29=\"\",\"Quitar\",Fecha!H29*1)","v":"Quitar"},null,0,null,"",null,null,"",null,"",null,null,null,"",null,null,"",null,"",null,null,null,null,null,null,"Trinidad y Tobago"]
[null,null,null,null,null,null,null,null,null,null,null,null,null,null,null,null,null,null,null,null,null,{"$f":"IF(Fecha!H30=\"\",\"Quitar\",Fecha!H30*1)","v":"Quitar"},null,0,null,"",null,null,"",null,"",null,null,null,"",null,null,"",null,"",null,null,null,null,null,null,"Antillas Holandesas"]
[null,null,null,null,null,null,null,null,null,null,null,null,null,null,null,null,null,null,null,null,null,{"$f":"IF(Fecha!H31=\"\",\"Quitar\",Fecha!H31*1)","v":"Quitar"},null,0,null,"",null,null,"",null,"",null,null,null,"",null,null,"",null,"",null,null,null,null,null,null,"Bahamas"]
[null,null,null,null,null,null,null,null,null,null,null,null,null,null,null,null,null,null,null,null,null,{"$f":"IF(Fecha!H32=\"\",\"Quitar\",Fecha!H32*1)","v":"Quitar"},null,0,null,"",null,null,"",null,"",null,null,null,"",null,null,"",null,"",null,null,null,null,null,null,"Aruba"]
[null,null,null,null,null,null,null,null,null,null,null,null,null,null,null,null,null,null,null,null,null,{"$f":"IF(Fecha!H33=\"\",\"Quitar\",Fecha!H33*1)","v":"Quitar"},null,0,null,"",null,null,"",null,"",null,null,null,"",null,null,"",null,"",null,null,null,null,null,null,"Alemania"]
[null,null,null,null,null,null,null,null,null,null,null,null,null,null,null,null,null,null,null,null,null,{"$f":"IF(Fecha!H34=\"\",\"Quitar\",Fecha!H34*1)","v":"Quitar"},null,0,null,"",null,null,"",null,"",null,null,null,"",null,null,"",null,"",null,null,null,null,null,null,"Bulgaria"]
[null,null,null,null,null,null,null,null,null,null,null,null,null,null,null,null,null,null,null,null,null,{"$f":"IF(Fecha!H35=\"\",\"Quitar\",Fecha!H35*1)","v":"Quitar"},null,0,null,"",null,null,"",null,"",null,null,null,"",null,null,"",null,"",null,null,null,null,null,null,"Dinamarca"]
[null,null,null,null,null,null,null,null,null,null,null,null,null,null,null,null,null,null,null,null,null,{"$f":"IF(Fecha!H36=\"\",\"Quitar\",Fecha!H36*1)","v":"Quitar"},null,0,null,"",null,null,"",null,"",null,null,null,"",null,null,"",null,"",null,null,null,null,null,null,"España"]
[null,null,null,null,null,null,null,null,null,null,null,null,null,null,null,null,null,null,null,null,null,{"$f":"IF(Fecha!H37=\"\",\"Quitar\",Fecha!H37*1)","v":"Quitar"},null,0,null,"",null,null,"",null,"",null,null,null,"",null,null,"",null,"",null,null,null,null,null,null,"Francia"]
[null,null,null,null,null,null,null,null,null,null,null,null,null,null,null,null,null,null,null,null,null,{"$f":"IF(Fecha!H38=\"\",\"Quitar\",Fecha!H38*1)","v":"Quitar"},null,0,null,"",null,null,"",null,"",null,null,null,"",null,null,"",null,"",null,null,null,null,null,null,"Grecia"]
[null,null,null,null,null,null,null,null,null,null,null,null,null,null,null,null,null,null,null,null,null,{"$f":"IF(Fecha!H39=\"\",\"Quitar\",Fecha!H39*1)","v":"Quitar"},null,0,null,"",null,null,"",null,"",null,null,null,"",null,null,"",null,"",null,null,null,null,null,null,"Reino Unido de Gran Bretaña e Irlanda del Norte"]
[null,null,null,null,null,null,null,null,null,null,null,null,null,null,null,null,null,null,null,null,null,{"$f":"IF(Fecha!H40=\"\",\"Quitar\",Fecha!H40*1)","v":"Quitar"},null,0,null,"",null,null,"",null,"",null,null,null,"",null,null,"",null,"",null,null,null,null,null,null,"Paises Bajos"]
[null,null,null,null,null,null,null,null,null,null,null,null,null,null,null,null,null,null,null,null,null,{"$f":"IF(Fecha!H41=\"\",\"Quitar\",Fecha!H41*1)","v":"Quitar"},null,0,null,"",null,null,"",null,"",null,null,null,"",null,null,"",null,"",null,null,null,null,null,null,"Hungria"]
[null,null,null,null,null,null,null,null,null,null,null,null,null,null,null,null,null,null,null,null,null,{"$f":"IF(Fecha!H42=\"\",\"Quitar\",Fecha!H42*1)","v":"Quitar"},null,0,null,"",null,null,"",null,"",null,null,null,"",null,null,"",null,"",null,null,null,null,null,null,"Irlanda"]
[null,null,null,null,null,null,null,null,null,null,null,null,null,null,null,null,null,null,null,null,null,{"$f":"IF(Fecha!H43=\"\",\"Quitar\",Fecha!H43*1)","v":"Quitar"},null,0,null,"",null,null,"",null,"",null,null,null,"",null,null,"",null,"",null,null,null,null,null,null,"Luxemburgo"]
[null,null,null,null,null,null,null,null,null,null,null,null,null,null,null,null,null,null,null,null,null,{"$f":"IF(Fecha!H44=\"\",\"Quitar\",Fecha!H44*1)","v":"Quitar"},null,0,null,"",null,null,"",null,"",null,null,null,"",null,null,"",null,"",null,null,null,null,null,null,"Noruega"]
[null,null,null,null,null,null,null,null,null,null,null,null,null,null,null,null,null,null,null,null,null,{"$f":"IF(Fecha!H45=\"\",\"Quitar\",Fecha!H45*1)","v":"Quitar"},null,0,null,"",null,null,"",null,"",null,null,null,"",null,null,"",null,"",null,null,null,null,null,null,"Polonia"]
[null,null,null,null,null,null,null,null,null,null,null,null,null,null,null,null,null,null,null,null,null,{"$f":"IF(Fecha!H46=\"\",\"Quitar\",Fecha!H46*1)","v":"Quitar"},null,0,null,"",null,null,"",null,"",null,null,null,"",null,null,"",null,"",null,null,null,null,null,null,"Portugal"]
[null,null,null,null,null,null,null,null,null,null,null,null,null,null,null,null,null,null,null,null,null,{"$f":"IF(Fecha!H47=\"\",\"Quitar\",Fecha!H47*1)","v":"Quitar"},null,0,null,"",null,null,"",null,"",null,null,null,"",null,null,"",null,"",null,null,null,null,null,null,"Rumania"]
[null,null,null,null,null,null,null,null,null,null,null,null,null,null,null,null,null,null,null,null,null,{"$f":"IF(Fecha!H48=\"\",\"Quitar\",Fecha!H48*1)","v":"Quitar"},null,0,null,"",null,null,"",null,"",null,null,null,"",null,null,"",null,"",null,null,null,null,null,null,"Suecia"]
[null,null,null,null,null,null,null,null,null,null,null,null,null,null,null,null,null,null,null,null,null,{"$f":"IF(Fecha!H49=\"\",\"Quitar\",Fecha!H49*1)","v":"Quitar"},null,0,null,"",null,null,"",null,"",null,null,null,"",null,null,"",null,"",null,null,null,null,null,null,"Austria"]
[null,null,null,null,null,null,null,null,null,null,null,null,null,null,null,null,null,null,null,null,null,{"$f":"IF(Fecha!H50=\"\",\"Quitar\",Fecha!H50*1)","v":"Quitar"},null,0,null,"",null,null,"",null,"",null,null,null,"",null,null,"",null,"",null,null,null,null,null,null,"Finlandia"]
[null,null,null,null,null,null,null,null,null,null,null,null,null,null,null,null,null,null,null,null,null,{"$f":"IF(Fecha!H51=\"\",\"Quitar\",Fecha!H51*1)","v":"Quitar"},null,0,null,"",null,null,"",null,"",null,null,null,"",null,null,"",null,"",null,null,null,null,null,null,"Italia"]
[null,null,null,null,null,null,null,null,null,null,null,null,null,null,null,null,null,null,null,null,null,{"$f":"IF(Fecha!H52=\"\",\"Quitar\",Fecha!H52*1)","v":"Quitar"},null,0,null,"",null,null,"",null,"",null,null,null,"",null,null,"",null,"",null,null,null,null,null,null,"Albania"]
[null,null,null,null,null,null,null,null,null,null,null,null,null,null,null,null,null,null,null,null,null,{"$f":"IF(Fecha!H53=\"\",\"Quitar\",Fecha!H53*1)","v":"Quitar"},null,0,null,"",null,null,"",null,"",null,null,null,"",null,null,"",null,"",null,null,null,null,null,null,"Suiza"]
[null,null,null,null,null,null,null,null,null,null,null,null,null,null,null,null,null,null,null,null,null,{"$f":"IF(Fecha!H54=\"\",\"Quitar\",Fecha!H54*1)","v":"Quitar"},null,0,null,"",null,null,"",null,"",null,null,null,"",null,null,"",null,"",null,null,null,null,null,null,"Belgica"]
[null,null,null,null,null,null,null,null,null,null,null,null,null,null,null,null,null,null,null,null,null,{"$f":"IF(Fecha!H55=\"\",\"Quitar\",Fecha!H55*1)","v":"Quitar"},null,0,null,"",null,null,"",null,"",null,null,null,"",null,null,"",null,"",null,null,null,null,null,null,"Federacion Rusa"]
[null,null,null,null,null,null,null,null,null,null,null,null,null,null,null,null,null,null,null,null,null,{"$f":"IF(Fecha!H56=\"\",\"Quitar\",Fecha!H56*1)","v":"Quitar"},null,0,null,"",null,null,"",null,"",null,null,null,"",null,null,"",null,"",null,null,null,null,null,null,"Malta"]
[null,null,null,null,null,null,null,null,null,null,null,null,null,null,null,null,null,null,null,null,null,{"$f":"IF(Fecha!H57=\"\",\"Quitar\",Fecha!H57*1)","v":"Quitar"},null,0,null,"",null,null,"",null,"",null,null,null,"",null,null,"",null,"",null,null,null,null,null,null,"Eslovaquia"]
[null,null,null,null,null,null,null,null,null,null,null,null,null,null,null,null,null,null,null,null,null,{"$f":"IF(Fecha!H58=\"\",\"Quitar\",Fecha!H58*1)","v":"Quitar"},null,0,null,"",null,null,"",null,"",null,null,null,"",null,null,"",null,"",null,null,null,null,null,null,"Eslovenia"]
[null,null,null,null,null,null,null,null,null,null,null,null,null,null,null,null,null,null,null,null,null,{"$f":"IF(Fecha!H59=\"\",\"Quitar\",Fecha!H59*1)","v":"Quitar"},null,0,null,"",null,null,"",null,"",null,null,null,"",null,null,"",null,"",null,null,null,null,null,null,"Croacia (Hrvatska)"]
[null,null,null,null,null,null,null,null,null,null,null,null,null,null,null,null,null,null,null,null,null,{"$f":"IF(Fecha!H60=\"\",\"Quitar\",Fecha!H60*1)","v":"Quitar"},null,0,null,"",null,null,"",null,"",null,null,null,"",null,null,"",null,"",null,null,null,null,null,null,"Lituania"]
[null,null,null,null,null,null,null,null,null,null,null,null,null,null,null,null,null,null,null,null,null,{"$f":"IF(Fecha!H61=\"\",\"Quitar\",Fecha!H61*1)","v":"Quitar"},null,0,null,"",null,null,"",null,"",null,null,null,"",null,null,"",null,"",null,null,null,null,null,null,"Australia"]
[null,null,null,null,null,null,null,null,null,null,null,null,null,null,null,null,null,null,null,null,null,{"$f":"IF(Fecha!H62=\"\",\"Quitar\",Fecha!H62*1)","v":"Quitar"},null,0,null,"",null,null,"",null,"",null,null,null,"",null,null,"",null,"",null,null,null,null,null,null,"Turquia"]
[null,null,null,null,null,null,null,null,null,null,null,null,null,null,null,null,null,null,null,null,null,{"$f":"IF(Fecha!H63=\"\",\"Quitar\",Fecha!H63*1)","v":"Quitar"},null,0,null,"",null,null,"",null,"",null,null,null,"",null,null,"",null,"",null,null,null,null,null,null,"Republica Arabe Siria"]
[null,null,null,null,null,null,null,null,null,null,null,null,null,null,null,null,null,null,null,null,null,{"$f":"IF(Fecha!H64=\"\",\"Quitar\",Fecha!H64*1)","v":"Quitar"},null,0,null,"",null,null,"",null,"",null,null,null,"",null,null,"",null,"",null,null,null,null,null,null,"Libano"]
[null,null,null,null,null,null,null,null,null,null,null,null,null,null,null,null,null,null,null,null,null,{"$f":"IF(Fecha!H65=\"\",\"Quitar\",Fecha!H65*1)","v":"Quitar"},null,0,null,"",null,null,"",null,"",null,null,null,"",null,null,"",null,"",null,null,null,null,null,null,"Chipre"]
[null,null,null,null,null,null,null,null,null,null,null,null,null,null,null,null,null,null,null,null,null,{"$f":"IF(Fecha!H66=\"\",\"Quitar\",Fecha!H66*1)","v":"Quitar"},null,0,null,"",null,null,"",null,"",null,null,null,"",null,null,"",null,"",null,null,null,null,null,null,"Iran"]
[null,null,null,null,null,null,null,null,null,null,null,null,null,null,null,null,null,null,null,null,null,{"$f":"IF(Fecha!H67=\"\",\"Quitar\",Fecha!H67*1)","v":"Quitar"},null,{"$f":"IF(AND(A67=\"\",B67=\"\",C67=\"\",D67=\"\",E67=\"\",F67=\"\",G67=\"\",H67=\"\",I67=\"\",P67=\"\",Q67=\"\")=TRUE,0,1)","v":0},null,{"$f":"IF(G67<>\"\",((TODAY()-G67)/365.25),\"\")","v":""},null,null,{"$f":"IF(G67=\"\",\"\",2)","v":""},null,{"$f":"IF(A67=\"\",\"\",CONCATENATE(A67,B67))","v":""},null,null,null,{"$f":"IF(Y67<>\"\",ROUNDUP(((TODAY()-Y67)/365.25),0),\"\")","v":""},null,null,{"$f":"IF(Y67=\"\",\"\",2)","v":""},null,{"$f":"IF(P67=\"\",\"\",CONCATENATE(P67,Q67))","v":""},null,null,null,null,null,null,"Irak"]
[null,null,null,null,null,null,null,null,null,null,null,null,null,null,null,null,null,null,null,null,null,{"$f":"IF(Fecha!H68=\"\",\"Quitar\",Fecha!H68*1)","v":"Quitar"},null,0,null,"",null,null,"",null,"",null,null,null,"",null,null,"",null,"",null,null,null,null,null,null,"Israel"]
[null,null,null,null,null,null,null,null,null,null,null,null,null,null,null,null,null,null,null,null,null,{"$f":"IF(Fecha!H69=\"\",\"Quitar\",Fecha!H69*1)","v":"Quitar"},null,0,null,"",null,null,"",null,"",null,null,null,"",null,null,"",null,"",null,null,null,null,null,null,"Jordania"]
[null,null,null,null,null,null,null,null,null,null,null,null,null,null,null,null,null,null,null,null,null,{"$f":"IF(Fecha!H70=\"\",\"Quitar\",Fecha!H70*1)","v":"Quitar"},null,0,null,"",null,null,"",null,"",null,null,null,"",null,null,"",null,"",null,null,null,null,null,null,"Arabia Saudita"]
[null,null,null,null,null,null,null,null,null,null,null,null,null,null,null,null,null,null,null,null,null,{"$f":"IF(Fecha!H71=\"\",\"Quitar\",Fecha!H71*1)","v":"Quitar"},null,0,null,"",null,null,"",null,"",null,null,null,"",null,null,"",null,"",null,null,null,null,null,null,"India"]
[null,null,null,null,null,null,null,null,null,null,null,null,null,null,null,null,null,null,null,null,null,{"$f":"IF(Fecha!H72=\"\",\"Quitar\",Fecha!H72*1)","v":"Quitar"},null,0,null,"",null,null,"",null,"",null,null,null,"",null,null,"",null,"",null,null,null,null,null,null,"Pakistan"]
[null,null,null,null,null,null,null,null,null,null,null,null,null,null,null,null,null,null,null,null,null,{"$f":"IF(Fecha!H73=\"\",\"Quitar\",Fecha!H73*1)","v":"Quitar"},null,0,null,"",null,null,"",null,"",null,null,null,"",null,null,"",null,"",null,null,null,null,null,null,"Sri Lanka"]
[null,null,null,null,null,null,null,null,null,null,null,null,null,null,null,null,null,null,null,null,null,{"$f":"IF(Fecha!H74=\"\",\"Quitar\",Fecha!H74*1)","v":"Quitar"},null,0,null,"",null,null,"",null,"",null,null,null,"",null,null,"",null,"",null,null,null,null,null,null,"China"]
[null,null,null,null,null,null,null,null,null,null,null,null,null,null,null,null,null,null,null,null,null,{"$f":"IF(Fecha!H75=\"\",\"Quitar\",Fecha!H75*1)","v":"Quitar"},null,0,null,"",null,null,"",null,"",null,null,null,"",null,null,"",null,"",null,null,null,null,null,null,"Japon"]
[null,null,null,null,null,null,null,null,null,null,null,null,null,null,null,null,null,null,null,null,null,{"$f":"IF(Fecha!H76=\"\",\"Quitar\",Fecha!H76*1)","v":"Quitar"},null,0,null,"",null,null,"",null,"",null,null,null,"",null,null,"",null,"",null,null,null,null,null,null,"Corea"]
[null,null,null,null,null,null,null,null,null,null,null,null,null,null,null,null,null,null,null,null,null,{"$f":"IF(Fecha!H77=\"\",\"Quitar\",Fecha!H77*1)","v":"Quitar"},null,0,null,"",null,null,"",null,"",null,null,null,"",null,null,"",null,"",null,null,null,null,null,null,"Mongolia"]
[null,null,null,null,null,null,null,null,null,null,null,null,null,null,null,null,null,null,null,null,null,{"$f":"IF(Fecha!H78=\"\",\"Quitar\",Fecha!H78*1)","v":"Quitar"},null,0,null,"",null,null,"",null,"",null,null,null,"",null,null,"",null,"",null,null,null,null,null,null,"Afganistan"]
[null,null,null,null,null,null,null,null,null,null,null,null,null,null,null,null,null,null,null,null,null,{"$f":"IF(Fecha!H79=\"\",\"Quitar\",Fecha!H79*1)","v":"Quitar"},null,0,null,"",null,null,"",null,"",null,null,null,"",null,null,"",null,"",null,null,null,null,null,null,"Nepal"]
[null,null,null,null,null,null,null,null,null,null,null,null,null,null,null,null,null,null,null,null,null,{"$f":"IF(Fecha!H80=\"\",\"Quitar\",Fecha!H80*1)","v":"Quitar"},null,0,null,"",null,null,"",null,"",null,null,null,"",null,null,"",null,"",null,null,null,null,null,null,"Laos"]
[null,null,null,null,null,null,null,null,null,null,null,null,null,null,null,null,null,null,null,null,null,{"$f":"IF(Fecha!H81=\"\",\"Quitar\",Fecha!H81*1)","v":"Quitar"},null,0,null,"",null,null,"",null,"",null,null,null,"",null,null,"",null,"",null,null,null,null,null,null,"Vietnam"]
[null,null,null,null,null,null,null,null,null,null,null,null,null,null,null,null,null,null,null,null,null,{"$f":"IF(Fecha!H82=\"\",\"Quitar\",Fecha!H82*1)","v":"Quitar"},null,0,null,"",null,null,"",null,"",null,null,null,"",null,null,"",null,"",null,null,null,null,null,null,"Tailandia"]
[null,null,null,null,null,null,null,null,null,null,null,null,null,null,null,null,null,null,null,null,null,{"$f":"IF(Fecha!H83=\"\",\"Quitar\",Fecha!H83*1)","v":"Quitar"},null,0,null,"",null,null,"",null,"",null,null,null,"",null,null,"",null,"",null,null,null,null,null,null,"Camboya"]
[null,null,null,null,null,null,null,null,null,null,null,null,null,null,null,null,null,null,null,null,null,{"$f":"IF(Fecha!H84=\"\",\"Quitar\",Fecha!H84*1)","v":"Quitar"},null,0,null,"",null,null,"",null,"",null,null,null,"",null,null,"",null,"",null,null,null,null,null,null,"Singapur"]
[null,null,null,null,null,null,null,null,null,null,null,null,null,null,null,null,null,null,null,null,null,{"$f":"IF(Fecha!H85=\"\",\"Quitar\",Fecha!H85*1)","v":"Quitar"},null,0,null,"",null,null,"",null,"",null,null,null,"",null,null,"",null,"",null,null,null,null,null,null,"Taiwan"]
[null,null,null,null,null,null,null,null,null,null,null,null,null,null,null,null,null,null,null,null,null,{"$f":"IF(Fecha!H86=\"\",\"Quitar\",Fecha!H86*1)","v":"Quitar"},null,0,null,"",null,null,"",null,"",null,null,null,"",null,null,"",null,"",null,null,null,null,null,null,"Indonesia"]
[null,null,null,null,null,null,null,null,null,null,null,null,null,null,null,null,null,null,null,null,null,{"$f":"IF(Fecha!H87=\"\",\"Quitar\",Fecha!H87*1)","v":"Quitar"},null,0,null,"",null,null,"",null,"",null,null,null,"",null,null,"",null,"",null,null,null,null,null,null,"Malasia"]
[null,null,null,null,null,null,null,null,null,null,null,null,null,null,null,null,null,null,null,null,null,{"$f":"IF(Fecha!H88=\"\",\"Quitar\",Fecha!H88*1)","v":"Quitar"},null,0,null,"",null,null,"",null,"",null,null,null,"",null,null,"",null,"",null,null,null,null,null,null,"Filipinas"]
[null,null,null,null,null,null,null,null,null,null,null,null,null,null,null,null,null,null,null,null,null,{"$f":"IF(Fecha!H89=\"\",\"Quitar\",Fecha!H89*1)","v":"Quitar"},null,0,null,"",null,null,"",null,"",null,null,null,"",null,null,"",null,"",null,null,null,null,null,null,"Egipto"]
[null,null,null,null,null,null,null,null,null,null,null,null,null,null,null,null,null,null,null,null,null,{"$f":"IF(Fecha!H90=\"\",\"Quitar\",Fecha!H90*1)","v":"Quitar"},null,0,null,"",null,null,"",null,"",null,null,null,"",null,null,"",null,"",null,null,null,null,null,null,"Emiratos Arabes Unidos"]
[null,null,null,null,null,null,null,null,null,null,null,null,null,null,null,null,null,null,null,null,null,{"$f":"IF(Fecha!H91=\"\",\"Quitar\",Fecha!H91*1)","v":"Quitar"},null,0,null,"",null,null,"",null,"",null,null,null,"",null,null,"",null,"",null,null,null,null,null,null,"Sudan"]
[null,null,null,null,null,null,null,null,null,null,null,null,null,null,null,null,null,null,null,null,null,{"$f":"IF(Fecha!H92=\"\",\"Quitar\",Fecha!H92*1)","v":"Quitar"},null,0,null,"",null,null,"",null,"",null,null,null,"",null,null,"",null,"",null,null,null,null,null,null,"Bangladesh"]
[null,null,null,null,null,null,null,null,null,null,null,null,null,null,null,null,null,null,null,null,null,{"$f":"IF(Fecha!H93=\"\",\"Quitar\",Fecha!H93*1)","v":"Quitar"},null,0,null,"",null,null,"",null,"",null,null,null,"",null,null,"",null,"",null,null,null,null,null,null,"Kuwait"]
[null,null,null,null,null,null,null,null,null,null,null,null,null,null,null,null,null,null,null,null,null,{"$f":"IF(Fecha!H94=\"\",\"Quitar\",Fecha!H94*1)","v":"Quitar"},null,0,null,"",null,null,"",null,"",null,null,null,"",null,null,"",null,"",null,null,null,null,null,null,"Marruecos"]
[null,null,null,null,null,null,null,null,null,null,null,null,null,null,null,null,null,null,null,null,null,{"$f":"IF(Fecha!H95=\"\",\"Quitar\",Fecha!H95*1)","v":"Quitar"},null,0,null,"",null,null,"",null,"",null,null,null,"",null,null,"",null,"",null,null,null,null,null,null,"Sudafrica"]
[null,null,null,null,null,null,null,null,null,null,null,null,null,null,null,null,null,null,null,null,null,{"$f":"IF(Fecha!H96=\"\",\"Quitar\",Fecha!H96*1)","v":"Quitar"},null,0,null,"",null,null,"",null,"",null,null,null,"",null,null,"",null,"",null,null,null,null,null,null,"Angola"]
[null,null,null,null,null,null,null,null,null,null,null,null,null,null,null,null,null,null,null,null,null,{"$f":"IF(Fecha!H97=\"\",\"Quitar\",Fecha!H97*1)","v":"Quitar"},null,0,null,"",null,null,"",null,"",null,null,null,"",null,null,"",null,"",null,null,null,null,null,null,"Nigeria"]
[null,null,null,null,null,null,null,null,null,null,null,null,null,null,null,null,null,null,null,null,null,{"$f":"IF(Fecha!H98=\"\",\"Quitar\",Fecha!H98*1)","v":"Quitar"},null,0,null,"",null,null,"",null,"",null,null,null,"",null,null,"",null,"",null,null,null,null,null,null,"Argelia"]
[null,null,null,null,null,null,null,null,null,null,null,null,null,null,null,null,null,null,null,null,null,{"$f":"IF(Fecha!H99=\"\",\"Quitar\",Fecha!H99*1)","v":"Quitar"},null,0,null,"",null,null,"",null,"",null,null,null,"",null,null,"",null,"",null,null,null,null,null,null,"Mauricio"]
[null,null,null,null,null,null,null,null,null,null,null,null,null,null,null,null,null,null,null,null,null,{"$f":"IF(Fecha!H100=\"\",\"Quitar\",Fecha!H100*1)","v":"Quitar"},null,0,null,"",null,null,"",null,"",null,null,null,"",null,null,"",null,"",null,null,null,null,null,null,"Guinea Ecuatorial"]
[null,null,null,null,null,null,null,null,null,null,null,null,null,null,null,null,null,null,null,null,null,{"$f":"IF(Fecha!H101=\"\",\"Quitar\",Fecha!H101*1)","v":"Quitar"},null,0,null,"",null,null,"",null,"",null,null,null,"",null,null,"",null,"",null,null,null,null,null,null,"Nueva Zelanda"]
[null,null,null,null,null,null,null,null,null,null,null,null,null,null,null,null,null,null,null,null,null,{"$f":"IF(Fecha!H102=\"\",\"Quitar\",Fecha!H102*1)","v":"Quitar"},null,0,null,"",null,null,"",null,"",null,null,null,"",null,null,"",null,"",null,null,null,null,null,null,"Ucrania"]
[null,null,null,null,null,null,null,null,null,null,null,null,null,null,null,null,null,null,null,null,null,{"$f":"IF(Fecha!H103=\"\",\"Quitar\",Fecha!H103*1)","v":"Quitar"},null,0,null,"",null,null,"",null,"",null,null,null,"",null,null,"",null,"",null,null,null,null,null,null,"Belice"]
[null,null,null,null,null,null,null,null,null,null,null,null,null,null,null,null,null,null,null,null,null,{"$f":"IF(Fecha!H104=\"\",\"Quitar\",Fecha!H104*1)","v":"Quitar"},null,0,null,"",null,null,"",null,"",null,null,null,"",null,null,"",null,"",null,null,null,null,null,null,"Santa Lucia"]
[null,null,null,null,null,null,null,null,null,null,null,null,null,null,null,null,null,null,null,null,null,{"$f":"IF(Fecha!H105=\"\",\"Quitar\",Fecha!H105*1)","v":"Quitar"},null,0,null,"",null,null,"",null,"",null,null,null,"",null,null,"",null,"",null,null,null,null,null,null,"Burkina Faso"]
[null,null,null,null,null,null,null,null,null,null,null,null,null,null,null,null,null,null,null,null,null,{"$f":"IF(Fecha!H106=\"\",\"Quitar\",Fecha!H106*1)","v":"Quitar"},null,0,null,"",null,null,"",null,"",null,null,null,"",null,null,"",null,"",null,null,null,null,null,null,"Camerun"]
[null,null,null,null,null,null,null,null,null,null,null,null,null,null,null,null,null,null,null,null,null,{"$f":"IF(Fecha!H107=\"\",\"Quitar\",Fecha!H107*1)","v":"Quitar"},null,0,null,"",null,null,"",null,"",null,null,null,"",null,null,"",null,"",null,null,null,null,null,null,"Chad"]
[null,null,null,null,null,null,null,null,null,null,null,null,null,null,null,null,null,null,null,null,null,{"$f":"IF(Fecha!H108=\"\",\"Quitar\",Fecha!H108*1)","v":"Quitar"},null,0,null,"",null,null,"",null,"",null,null,null,"",null,null,"",null,"",null,null,null,null,null,null,"Congo"]
[null,null,null,null,null,null,null,null,null,null,null,null,null,null,null,null,null,null,null,null,null,{"$f":"IF(Fecha!H109=\"\",\"Quitar\",Fecha!H109*1)","v":"Quitar"},null,0,null,"",null,null,"",null,"",null,null,null,"",null,null,"",null,"",null,null,null,null,null,null,"Guinea-Bissau"]
[null,null,null,null,null,null,null,null,null,null,null,null,null,null,null,null,null,null,null,null,null,{"$f":"IF(Fecha!H110=\"\",\"Quitar\",Fecha!H110*1)","v":"Quitar"},null,0,null,"",null,null,"",null,"",null,null,null,"",null,null,"",null,"",null,null,null,null,null,null,"Gambia"]
[null,null,null,null,null,null,null,null,null,null,null,null,null,null,null,null,null,null,null,null,null,{"$f":"IF(Fecha!H111=\"\",\"Quitar\",Fecha!H111*1)","v":"Quitar"},null,0,null,"",null,null,"",null,"",null,null,null,"",null,null,"",null,"",null,null,null,null,null,null,"Liberia"]
[null,null,null,null,null,null,null,null,null,null,null,null,null,null,null,null,null,null,null,null,null,{"$f":"IF(Fecha!H112=\"\",\"Quitar\",Fecha!H112*1)","v":"Quitar"},null,0,null,"",null,null,"",null,"",null,null,null,"",null,null,"",null,"",null,null,null,null,null,null,"Jamahiriya Arabe Libia"]
[null,null,null,null,null,null,null,null,null,null,null,null,null,null,null,null,null,null,null,null,null,{"$f":"IF(Fecha!H113=\"\",\"Quitar\",Fecha!H113*1)","v":"Quitar"},null,0,null,"",null,null,"",null,"",null,null,null,"",null,null,"",null,"",null,null,null,null,null,null,"Mauritania"]
[null,null,null,null,null,null,null,null,null,null,null,null,null,null,null,null,null,null,null,null,null,{"$f":"IF(Fecha!H114=\"\",\"Quitar\",Fecha!H114*1)","v":"Quitar"},null,0,null,"",null,null,"",null,"",null,null,null,"",null,null,"",null,"",null,null,null,null,null,null,"Senegal"]
[null,null,null,null,null,null,null,null,null,null,null,null,null,null,null,null,null,null,null,null,null,{"$f":"IF(Fecha!H115=\"\",\"Quitar\",Fecha!H115*1)","v":"Quitar"},null,0,null,"",null,null,"",null,"",null,null,null,"",null,null,"",null,"",null,null,null,null,null,null,"Sierra Leona"]
[null,null,null,null,null,null,null,null,null,null,null,null,null,null,null,null,null,null,null,null,null,{"$f":"IF(Fecha!H116=\"\",\"Quitar\",Fecha!H116*1)","v":"Quitar"},null,0,null,"",null,null,"",null,"",null,null,null,"",null,null,"",null,"",null,null,null,null,null,null,"Togo"]
[null,null,null,null,null,null,null,null,null,null,null,null,null,null,null,null,null,null,null,null,null,{"$f":"IF(Fecha!H117=\"\",\"Quitar\",Fecha!H117*1)","v":"Quitar"},null,0,null,"",null,null,"",null,"",null,null,null,"",null,null,"",null,"",null,null,null,null,null,null,"Ghana"]
[null,null,null,null,null,null,null,null,null,null,null,null,null,null,null,null,null,null,null,null,null,{"$f":"IF(Fecha!H118=\"\",\"Quitar\",Fecha!H118*1)","v":"Quitar"},null,0,null,"",null,null,"",null,"",null,null,null,"",null,null,"",null,"",null,null,null,null,null,null,"Gabon"]
[null,null,null,null,null,null,null,null,null,null,null,null,null,null,null,null,null,null,null,null,null,{"$f":"IF(Fecha!H119=\"\",\"Quitar\",Fecha!H119*1)","v":"Quitar"},null,0,null,"",null,null,"",null,"",null,null,null,"",null,null,"",null,"",null,null,null,null,null,null,"Qatar"]
[null,null,null,null,null,null,null,null,null,null,null,null,null,null,null,null,null,null,null,null,null,{"$f":"IF(Fecha!H120=\"\",\"Quitar\",Fecha!H120*1)","v":"Quitar"},null,0,null,"",null,null,"",null,"",null,null,null,"",null,null,"",null,"",null,null,null,null,null,null,"Bermuda"]
[null,null,null,null,null,null,null,null,null,null,null,null,null,null,null,null,null,null,null,null,null,{"$f":"IF(Fecha!H121=\"\",\"Quitar\",Fecha!H121*1)","v":"Quitar"},null,0,null,"",null,null,"",null,"",null,null,null,"",null,null,"",null,"",null,null,null,null,null,null,"Santa Vicente y las Granadinas"]
[null,null,null,null,null,null,null,null,null,null,null,null,null,null,null,null,null,null,null,null,null,{"$f":"IF(Fecha!H122=\"\",\"Quitar\",Fecha!H122*1)","v":"Quitar"},null,0,null,"",null,null,"",null,"",null,null,null,"",null,null,"",null,"",null,null,null,null,null,null,"Antigua y Barbuda"]
[null,null,null,null,null,null,null,null,null,null,null,null,null,null,null,null,null,null,null,null,null,{"$f":"IF(Fecha!H123=\"\",\"Quitar\",Fecha!H123*1)","v":"Quitar"},null,0,null,"",null,null,"",null,"",null,null,null,"",null,null,"",null,"",null,null,null,null,null,null,"Dominica"]
[null,null,null,null,null,null,null,null,null,null,null,null,null,null,null,null,null,null,null,null,null,{"$f":"IF(Fecha!H124=\"\",\"Quitar\",Fecha!H124*1)","v":"Quitar"},null,0,null,"",null,null,"",null,"",null,null,null,"",null,null,"",null,"",null,null,null,null,null,null,"Benin"]
[null,null,null,null,null,null,null,null,null,null,null,null,null,null,null,null,null,null,null,null,null,{"$f":"IF(Fecha!H125=\"\",\"Quitar\",Fecha!H125*1)","v":"Quitar"},null,0,null,"",null,null,"",null,"",null,null,null,"",null,null,"",null,"",null,null,null,null,null,null,"Costa de Marfil"]
[null,null,null,null,null,null,null,null,null,null,null,null,null,null,null,null,null,null,null,null,null,{"$f":"IF(Fecha!H126=\"\",\"Quitar\",Fecha!H126*1)","v":"Quitar"},null,0,null,"",null,null,"",null,"",null,null,null,"",null,null,"",null,"",null,null,null,null,null,null,"Bahrein"]
[null,null,null,null,null,null,null,null,null,null,null,null,null,null,null,null,null,null,null,null,null,{"$f":"IF(Fecha!H127=\"\",\"Quitar\",Fecha!H127*1)","v":"Quitar"},null,0,null,"",null,null,"",null,"",null,null,null,"",null,null,"",null,"",null,null,null,null,null,null,"Barbados"]
[null,null,null,null,null,null,null,null,null,null,null,null,null,null,null,null,null,null,null,null,null,{"$f":"IF(Fecha!H128=\"\",\"Quitar\",Fecha!H128*1)","v":"Quitar"},null,0,null,"",null,null,"",null,"",null,null,null,"",null,null,"",null,"",null,null,null,null,null,null,"Granada"]
[null,null,null,null,null,null,null,null,null,null,null,null,null,null,null,null,null,null,null,null,null,{"$f":"IF(Fecha!H129=\"\",\"Quitar\",Fecha!H129*1)","v":"Quitar"},null,0,null,"",null,null,"",null,"",null,null,null,"",null,null,"",null,"",null,null,null,null,null,null,"Islas Turcas y Caicos"]
[null,null,null,null,null,null,null,null,null,null,null,null,null,null,null,null,null,null,null,null,null,{"$f":"IF(Fecha!H130=\"\",\"Quitar\",Fecha!H130*1)","v":"Quitar"},null,0,null,"",null,null,"",null,"",null,null,null,"",null,null,"",null,"",null,null,null,null,null,null,"Anguila"]
[null,null,null,null,null,null,null,null,null,null,null,null,null,null,null,null,null,null,null,null,null,{"$f":"IF(Fecha!H131=\"\",\"Quitar\",Fecha!H131*1)","v":"Quitar"},null,{"$f":"IF(AND(A131=\"\",B131=\"\",C131=\"\",D131=\"\",E131=\"\",F131=\"\",G131=\"\",H131=\"\",I131=\"\",P131=\"\",Q131=\"\")=TRUE,0,1)","v":0},null,{"$f":"IF(G131<>\"\",((TODAY()-G131)/365.25),\"\")","v":""},null,null,{"$f":"IF(G131=\"\",\"\",2)","v":""},null,{"$f":"IF(A131=\"\",\"\",CONCATENATE(A131,B131))","v":""},null,null,null,{"$f":"IF(Y131<>\"\",ROUNDUP(((TODAY()-Y131)/365.25),0),\"\")","v":""},null,null,{"$f":"IF(Y131=\"\",\"\",2)","v":""},null,{"$f":"IF(P131=\"\",\"\",CONCATENATE(P131,Q131))","v":""},null,null,null,null,null,null,"Santa Cristobal y Nieves"]
[null,null,null,null,null,null,null,null,null,null,null,null,null,null,null,null,null,null,null,null,null,{"$f":"IF(Fecha!H132=\"\",\"Quitar\",Fecha!H132*1)","v":"Quitar"},null,0,null,"",null,null,"",null,"",null,null,null,"",null,null,"",null,"",null,null,null,null,null,null,"Samoa Americana"]
[null,null,null,null,null,null,null,null,null,null,null,null,null,null,null,null,null,null,null,null,null,{"$f":"IF(Fecha!H133=\"\",\"Quitar\",Fecha!H133*1)","v":"Quitar"},null,0,null,"",null,null,"",null,"",null,null,null,"",null,null,"",null,"",null,null,null,null,null,null,"Andorra"]
[null,null,null,null,null,null,null,null,null,null,null,null,null,null,null,null,null,null,null,null,null,{"$f":"IF(Fecha!H134=\"\",\"Quitar\",Fecha!H134*1)","v":"Quitar"},null,0,null,"",null,null,"",null,"",null,null,null,"",null,null,"",null,"",null,null,null,null,null,null,"Antartica (territorio al sur del paralelo 60º S)"]
[null,null,null,null,null,null,null,null,null,null,null,null,null,null,null,null,null,null,null,null,null,{"$f":"IF(Fecha!H135=\"\",\"Quitar\",Fecha!H135*1)","v":"Quitar"},null,0,null,"",null,null,"",null,"",null,null,null,"",null,null,"",null,"",null,null,null,null,null,null,"Armenia"]
[null,null,null,null,null,null,null,null,null,null,null,null,null,null,null,null,null,null,null,null,null,{"$f":"IF(Fecha!H136=\"\",\"Quitar\",Fecha!H136*1)","v":"Quitar"},null,0,null,"",null,null,"",null,"",null,null,null,"",null,null,"",null,"",null,null,null,null,null,null,"Azerbaiyan"]
[null,null,null,null,null,null,null,null,null,null,null,null,null,null,null,null,null,null,null,null,null,{"$f":"IF(Fecha!H137=\"\",\"Quitar\",Fecha!H137*1)","v":"Quitar"},null,0,null,"",null,null,"",null,"",null,null,null,"",null,null,"",null,"",null,null,null,null,null,null,"Bielorrusia"]
[null,null,null,null,null,null,null,null,null,null,null,null,null,null,null,null,null,null,null,null,null,{"$f":"IF(Fecha!H138=\"\",\"Quitar\",Fecha!H138*1)","v":"Quitar"},null,0,null,"",null,null,"",null,"",null,null,null,"",null,null,"",null,"",null,null,null,null,null,null,"Butan"]
[null,null,null,null,null,null,null,null,null,null,null,null,null,null,null,null,null,null,null,null,null,{"$f":"IF(Fecha!H139=\"\",\"Quitar\",Fecha!H139*1)","v":"Quitar"},null,0,null,"",null,null,"",null,"",null,null,null,"",null,null,"",null,"",null,null,null,null,null,null,"Bosnia y Herzegovina"]
[null,null,null,null,null,null,null,null,null,null,null,null,null,null,null,null,null,null,null,null,null,{"$f":"IF(Fecha!H140=\"\",\"Quitar\",Fecha!H140*1)","v":"Quitar"},null,0,null,"",null,null,"",null,"",null,null,null,"",null,null,"",null,"",null,null,null,null,null,null,"Botswana"]
[null,null,null,null,null,null,null,null,null,null,null,null,null,null,null,null,null,null,null,null,null,{"$f":"IF(Fecha!H141=\"\",\"Quitar\",Fecha!H141*1)","v":"Quitar"},null,0,null,"",null,null,"",null,"",null,null,null,"",null,null,"",null,"",null,null,null,null,null,null,"Isla Bouvet (Bouvetoya)"]
[null,null,null,null,null,null,null,null,null,null,null,null,null,null,null,null,null,null,null,null,null,{"$f":"IF(Fecha!H142=\"\",\"Quitar\",Fecha!H142*1)","v":"Quitar"},null,0,null,"",null,null,"",null,"",null,null,null,"",null,null,"",null,"",null,null,null,null,null,null,"Territorio britanico del oceano Indico (Archipielago Chagos)"]
[null,null,null,null,null,null,null,null,null,null,null,null,null,null,null,null,null,null,null,null,null,{"$f":"IF(Fecha!H143=\"\",\"Quitar\",Fecha!H143*1)","v":"Quitar"},null,0,null,"",null,null,"",null,"",null,null,null,"",null,null,"",null,"",null,null,null,null,null,null,"Brunei Darussalam"]
[null,null,null,null,null,null,null,null,null,null,null,null,null,null,null,null,null,null,null,null,null,{"$f":"IF(Fecha!H144=\"\",\"Quitar\",Fecha!H144*1)","v":"Quitar"},null,0,null,"",null,null,"",null,"",null,null,null,"",null,null,"",null,"",null,null,null,null,null,null,"Myanmar"]
[null,null,null,null,null,null,null,null,null,null,null,null,null,null,null,null,null,null,null,null,null,{"$f":"IF(Fecha!H145=\"\",\"Quitar\",Fecha!H145*1)","v":"Quitar"},null,0,null,"",null,null,"",null,"",null,null,null,"",null,null,"",null,"",null,null,null,null,null,null,"Burundi"]
[null,null,null,null,null,null,null,null,null,null,null,null,null,null,null,null,null,null,null,null,null,{"$f":"IF(Fecha!H146=\"\",\"Quitar\",Fecha!H146*1)","v":"Quitar"},null,0,null,"",null,null,"",null,"",null,null,null,"",null,null,"",null,"",null,null,null,null,null,null,"Islas Caiman"]
[null,null,null,null,null,null,null,null,null,null,null,null,null,null,null,null,null,null,null,null,null,{"$f":"IF(Fecha!H147=\"\",\"Quitar\",Fecha!H147*1)","v":"Quitar"},null,0,null,"",null,null,"",null,"",null,null,null,"",null,null,"",null,"",null,null,null,null,null,null,"Republica Centroafricana"]
[null,null,null,null,null,null,null,null,null,null,null,null,null,null,null,null,null,null,null,null,null,{"$f":"IF(Fecha!H148=\"\",\"Quitar\",Fecha!H148*1)","v":"Quitar"},null,0,null,"",null,null,"",null,"",null,null,null,"",null,null,"",null,"",null,null,null,null,null,null,"Isla Navidad"]
[null,null,null,null,null,null,null,null,null,null,null,null,null,null,null,null,null,null,null,null,null,{"$f":"IF(Fecha!H149=\"\",\"Quitar\",Fecha!H149*1)","v":"Quitar"},null,0,null,"",null,null,"",null,"",null,null,null,"",null,null,"",null,"",null,null,null,null,null,null,"Islas Cocos (Keeling)"]
[null,null,null,null,null,null,null,null,null,null,null,null,null,null,null,null,null,null,null,null,null,{"$f":"IF(Fecha!H150=\"\",\"Quitar\",Fecha!H150*1)","v":"Quitar"},null,0,null,"",null,null,"",null,"",null,null,null,"",null,null,"",null,"",null,null,null,null,null,null,"Comoras"]
[null,null,null,null,null,null,null,null,null,null,null,null,null,null,null,null,null,null,null,null,null,{"$f":"IF(Fecha!H151=\"\",\"Quitar\",Fecha!H151*1)","v":"Quitar"},null,0,null,"",null,null,"",null,"",null,null,null,"",null,null,"",null,"",null,null,null,null,null,null,"Islas Cook"]
[null,null,null,null,null,null,null,null,null,null,null,null,null,null,null,null,null,null,null,null,null,{"$f":"IF(Fecha!H152=\"\",\"Quitar\",Fecha!H152*1)","v":"Quitar"},null,0,null,"",null,null,"",null,"",null,null,null,"",null,null,"",null,"",null,null,null,null,null,null,"Republica Checa"]
[null,null,null,null,null,null,null,null,null,null,null,null,null,null,null,null,null,null,null,null,null,{"$f":"IF(Fecha!H153=\"\",\"Quitar\",Fecha!H153*1)","v":"Quitar"},null,0,null,"",null,null,"",null,"",null,null,null,"",null,null,"",null,"",null,null,null,null,null,null,"Djibouti"]
[null,null,null,null,null,null,null,null,null,null,null,null,null,null,null,null,null,null,null,null,null,{"$f":"IF(Fecha!H154=\"\",\"Quitar\",Fecha!H154*1)","v":"Quitar"},null,0,null,"",null,null,"",null,"",null,null,null,"",null,null,"",null,"",null,null,null,null,null,null,"Eritrea"]
[null,null,null,null,null,null,null,null,null,null,null,null,null,null,null,null,null,null,null,null,null,{"$f":"IF(Fecha!H155=\"\",\"Quitar\",Fecha!H155*1)","v":"Quitar"},null,0,null,"",null,null,"",null,"",null,null,null,"",null,null,"",null,"",null,null,null,null,null,null,"Estonia"]
[null,null,null,null,null,null,null,null,null,null,null,null,null,null,null,null,null,null,null,null,null,{"$f":"IF(Fecha!H156=\"\",\"Quitar\",Fecha!H156*1)","v":"Quitar"},null,0,null,"",null,null,"",null,"",null,null,null,"",null,null,"",null,"",null,null,null,null,null,null,"Etiopia"]
[null,null,null,null,null,null,null,null,null,null,null,null,null,null,null,null,null,null,null,null,null,{"$f":"IF(Fecha!H157=\"\",\"Quitar\",Fecha!H157*1)","v":"Quitar"},null,0,null,"",null,null,"",null,"",null,null,null,"",null,null,"",null,"",null,null,null,null,null,null,"Islas Malvinas (Falkland)"]
[null,null,null,null,null,null,null,null,null,null,null,null,null,null,null,null,null,null,null,null,null,{"$f":"IF(Fecha!H158=\"\",\"Quitar\",Fecha!H158*1)","v":"Quitar"},null,0,null,"",null,null,"",null,"",null,null,null,"",null,null,"",null,"",null,null,null,null,null,null,"Islas Feroe"]
[null,null,null,null,null,null,null,null,null,null,null,null,null,null,null,null,null,null,null,null,null,{"$f":"IF(Fecha!H159=\"\",\"Quitar\",Fecha!H159*1)","v":"Quitar"},null,0,null,"",null,null,"",null,"",null,null,null,"",null,null,"",null,"",null,null,null,null,null,null,"Fiji"]
[null,null,null,null,null,null,null,null,null,null,null,null,null,null,null,null,null,null,null,null,null,{"$f":"IF(Fecha!H160=\"\",\"Quitar\",Fecha!H160*1)","v":"Quitar"},null,0,null,"",null,null,"",null,"",null,null,null,"",null,null,"",null,"",null,null,null,null,null,null,"Georgia"]
[null,null,null,null,null,null,null,null,null,null,null,null,null,null,null,null,null,null,null,null,null,{"$f":"IF(Fecha!H161=\"\",\"Quitar\",Fecha!H161*1)","v":"Quitar"},null,0,null,"",null,null,"",null,"",null,null,null,"",null,null,"",null,"",null,null,null,null,null,null,"Gibraltar"]
[null,null,null,null,null,null,null,null,null,null,null,null,null,null,null,null,null,null,null,null,null,{"$f":"IF(Fecha!H162=\"\",\"Quitar\",Fecha!H162*1)","v":"Quitar"},null,0,null,"",null,null,"",null,"",null,null,null,"",null,null,"",null,"",null,null,null,null,null,null,"Groenlandia"]
[null,null,null,null,null,null,null,null,null,null,null,null,null,null,null,null,null,null,null,null,null,{"$f":"IF(Fecha!H163=\"\",\"Quitar\",Fecha!H163*1)","v":"Quitar"},null,0,null,"",null,null,"",null,"",null,null,null,"",null,null,"",null,"",null,null,null,null,null,null,"Guadalupe"]
[null,null,null,null,null,null,null,null,null,null,null,null,null,null,null,null,null,null,null,null,null,{"$f":"IF(Fecha!H164=\"\",\"Quitar\",Fecha!H164*1)","v":"Quitar"},null,0,null,"",null,null,"",null,"",null,null,null,"",null,null,"",null,"",null,null,null,null,null,null,"Guam"]
[null,null,null,null,null,null,null,null,null,null,null,null,null,null,null,null,null,null,null,null,null,{"$f":"IF(Fecha!H165=\"\",\"Quitar\",Fecha!H165*1)","v":"Quitar"},null,0,null,"",null,null,"",null,"",null,null,null,"",null,null,"",null,"",null,null,null,null,null,null,"Islas Heard y McDonald"]
[null,null,null,null,null,null,null,null,null,null,null,null,null,null,null,null,null,null,null,null,null,{"$f":"IF(Fecha!H166=\"\",\"Quitar\",Fecha!H166*1)","v":"Quitar"},null,0,null,"",null,null,"",null,"",null,null,null,"",null,null,"",null,"",null,null,null,null,null,null,"Santa Sede (Estado de la Ciudad del Vaticano)"]
[null,null,null,null,null,null,null,null,null,null,null,null,null,null,null,null,null,null,null,null,null,{"$f":"IF(Fecha!H167=\"\",\"Quitar\",Fecha!H167*1)","v":"Quitar"},null,0,null,"",null,null,"",null,"",null,null,null,"",null,null,"",null,"",null,null,null,null,null,null,"Hong Kong"]
[null,null,null,null,null,null,null,null,null,null,null,null,null,null,null,null,null,null,null,null,null,{"$f":"IF(Fecha!H168=\"\",\"Quitar\",Fecha!H168*1)","v":"Quitar"},null,0,null,"",null,null,"",null,"",null,null,null,"",null,null,"",null,"",null,null,null,null,null,null,"Islandia"]
[null,null,null,null,null,null,null,null,null,null,null,null,null,null,null,null,null,null,null,null,null,{"$f":"IF(Fecha!H169=\"\",\"Quitar\",Fecha!H169*1)","v":"Quitar"},null,0,null,"",null,null,"",null,"",null,null,null,"",null,null,"",null,"",null,null,null,null,null,null,"Kazajistan"]
[null,null,null,null,null,null,null,null,null,null,null,null,null,null,null,null,null,null,null,null,null,{"$f":"IF(Fecha!H170=\"\",\"Quitar\",Fecha!H170*1)","v":"Quitar"},null,0,null,"",null,null,"",null,"",null,null,null,"",null,null,"",null,"",null,null,null,null,null,null,"Kenia"]
[null,null,null,null,null,null,null,null,null,null,null,null,null,null,null,null,null,null,null,null,null,{"$f":"IF(Fecha!H171=\"\",\"Quitar\",Fecha!H171*1)","v":"Quitar"},null,0,null,"",null,null,"",null,"",null,null,null,"",null,null,"",null,"",null,null,null,null,null,null,"Kiribati"]
[null,null,null,null,null,null,null,null,null,null,null,null,null,null,null,null,null,null,null,null,null,{"$f":"IF(Fecha!H172=\"\",\"Quitar\",Fecha!H172*1)","v":"Quitar"},null,0,null,"",null,null,"",null,"",null,null,null,"",null,null,"",null,"",null,null,null,null,null,null,"Republica de Kirguistan"]
[null,null,null,null,null,null,null,null,null,null,null,null,null,null,null,null,null,null,null,null,null,{"$f":"IF(Fecha!H173=\"\",\"Quitar\",Fecha!H173*1)","v":"Quitar"},null,0,null,"",null,null,"",null,"",null,null,null,"",null,null,"",null,"",null,null,null,null,null,null,"Letonia"]
[null,null,null,null,null,null,null,null,null,null,null,null,null,null,null,null,null,null,null,null,null,{"$f":"IF(Fecha!H174=\"\",\"Quitar\",Fecha!H174*1)","v":"Quitar"},null,0,null,"",null,null,"",null,"",null,null,null,"",null,null,"",null,"",null,null,null,null,null,null,"Lesoto"]
[null,null,null,null,null,null,null,null,null,null,null,null,null,null,null,null,null,null,null,null,null,{"$f":"IF(Fecha!H175=\"\",\"Quitar\",Fecha!H175*1)","v":"Quitar"},null,0,null,"",null,null,"",null,"",null,null,null,"",null,null,"",null,"",null,null,null,null,null,null,"Liechtenstein"]
[null,null,null,null,null,null,null,null,null,null,null,null,null,null,null,null,null,null,null,null,null,{"$f":"IF(Fecha!H176=\"\",\"Quitar\",Fecha!H176*1)","v":"Quitar"},null,0,null,"",null,null,"",null,"",null,null,null,"",null,null,"",null,"",null,null,null,null,null,null,"Macao"]
[null,null,null,null,null,null,null,null,null,null,null,null,null,null,null,null,null,null,null,null,null,{"$f":"IF(Fecha!H177=\"\",\"Quitar\",Fecha!H177*1)","v":"Quitar"},null,0,null,"",null,null,"",null,"",null,null,null,"",null,null,"",null,"",null,null,null,null,null,null,"Macedonia"]
[null,null,null,null,null,null,null,null,null,null,null,null,null,null,null,null,null,null,null,null,null,{"$f":"IF(Fecha!H178=\"\",\"Quitar\",Fecha!H178*1)","v":"Quitar"},null,0,null,"",null,null,"",null,"",null,null,null,"",null,null,"",null,"",null,null,null,null,null,null,"Madagascar"]
[null,null,null,null,null,null,null,null,null,null,null,null,null,null,null,null,null,null,null,null,null,{"$f":"IF(Fecha!H179=\"\",\"Quitar\",Fecha!H179*1)","v":"Quitar"},null,0,null,"",null,null,"",null,"",null,null,null,"",null,null,"",null,"",null,null,null,null,null,null,"Malawi"]
[null,null,null,null,null,null,null,null,null,null,null,null,null,null,null,null,null,null,null,null,null,{"$f":"IF(Fecha!H180=\"\",\"Quitar\",Fecha!H180*1)","v":"Quitar"},null,0,null,"",null,null,"",null,"",null,null,null,"",null,null,"",null,"",null,null,null,null,null,null,"Maldivas"]
[null,null,null,null,null,null,null,null,null,null,null,null,null,null,null,null,null,null,null,null,null,{"$f":"IF(Fecha!H181=\"\",\"Quitar\",Fecha!H181*1)","v":"Quitar"},null,0,null,"",null,null,"",null,"",null,null,null,"",null,null,"",null,"",null,null,null,null,null,null,"Mali"]
[null,null,null,null,null,null,null,null,null,null,null,null,null,null,null,null,null,null,null,null,null,{"$f":"IF(Fecha!H182=\"\",\"Quitar\",Fecha!H182*1)","v":"Quitar"},null,0,null,"",null,null,"",null,"",null,null,null,"",null,null,"",null,"",null,null,null,null,null,null,"Islas Marshall"]
[null,null,null,null,null,null,null,null,null,null,null,null,null,null,null,null,null,null,null,null,null,{"$f":"IF(Fecha!H183=\"\",\"Quitar\",Fecha!H183*1)","v":"Quitar"},null,0,null,"",null,null,"",null,"",null,null,null,"",null,null,"",null,"",null,null,null,null,null,null,"Martinica"]
[null,null,null,null,null,null,null,null,null,null,null,null,null,null,null,null,null,null,null,null,null,{"$f":"IF(Fecha!H184=\"\",\"Quitar\",Fecha!H184*1)","v":"Quitar"},null,0,null,"",null,null,"",null,"",null,null,null,"",null,null,"",null,"",null,null,null,null,null,null,"Mayotte"]
[null,null,null,null,null,null,null,null,null,null,null,null,null,null,null,null,null,null,null,null,null,{"$f":"IF(Fecha!H185=\"\",\"Quitar\",Fecha!H185*1)","v":"Quitar"},null,0,null,"",null,null,"",null,"",null,null,null,"",null,null,"",null,"",null,null,null,null,null,null,"Micronesia"]
[null,null,null,null,null,null,null,null,null,null,null,null,null,null,null,null,null,null,null,null,null,{"$f":"IF(Fecha!H186=\"\",\"Quitar\",Fecha!H186*1)","v":"Quitar"},null,0,null,"",null,null,"",null,"",null,null,null,"",null,null,"",null,"",null,null,null,null,null,null,"Moldavia"]
[null,null,null,null,null,null,null,null,null,null,null,null,null,null,null,null,null,null,null,null,null,{"$f":"IF(Fecha!H187=\"\",\"Quitar\",Fecha!H187*1)","v":"Quitar"},null,0,null,"",null,null,"",null,"",null,null,null,"",null,null,"",null,"",null,null,null,null,null,null,"Monaco"]
[null,null,null,null,null,null,null,null,null,null,null,null,null,null,null,null,null,null,null,null,null,{"$f":"IF(Fecha!H188=\"\",\"Quitar\",Fecha!H188*1)","v":"Quitar"},null,0,null,"",null,null,"",null,"",null,null,null,"",null,null,"",null,"",null,null,null,null,null,null,"Montenegro"]
[null,null,null,null,null,null,null,null,null,null,null,null,null,null,null,null,null,null,null,null,null,{"$f":"IF(Fecha!H189=\"\",\"Quitar\",Fecha!H189*1)","v":"Quitar"},null,0,null,"",null,null,"",null,"",null,null,null,"",null,null,"",null,"",null,null,null,null,null,null,"Montserrat"]
[null,null,null,null,null,null,null,null,null,null,null,null,null,null,null,null,null,null,null,null,null,{"$f":"IF(Fecha!H190=\"\",\"Quitar\",Fecha!H190*1)","v":"Quitar"},null,0,null,"",null,null,"",null,"",null,null,null,"",null,null,"",null,"",null,null,null,null,null,null,"Mozambique"]
[null,null,null,null,null,null,null,null,null,null,null,null,null,null,null,null,null,null,null,null,null,{"$f":"IF(Fecha!H191=\"\",\"Quitar\",Fecha!H191*1)","v":"Quitar"},null,0,null,"",null,null,"",null,"",null,null,null,"",null,null,"",null,"",null,null,null,null,null,null,"Namibia"]
[null,null,null,null,null,null,null,null,null,null,null,null,null,null,null,null,null,null,null,null,null,{"$f":"IF(Fecha!H192=\"\",\"Quitar\",Fecha!H192*1)","v":"Quitar"},null,0,null,"",null,null,"",null,"",null,null,null,"",null,null,"",null,"",null,null,null,null,null,null,"Nauru"]
[null,null,null,null,null,null,null,null,null,null,null,null,null,null,null,null,null,null,null,null,null,{"$f":"IF(Fecha!H193=\"\",\"Quitar\",Fecha!H193*1)","v":"Quitar"},null,0,null,"",null,null,"",null,"",null,null,null,"",null,null,"",null,"",null,null,null,null,null,null,"Nueva Caledonia"]
[null,null,null,null,null,null,null,null,null,null,null,null,null,null,null,null,null,null,null,null,null,{"$f":"IF(Fecha!H194=\"\",\"Quitar\",Fecha!H194*1)","v":"Quitar"},null,0,null,"",null,null,"",null,"",null,null,null,"",null,null,"",null,"",null,null,null,null,null,null,"Niger"]
[null,null,null,null,null,null,null,null,null,null,null,null,null,null,null,null,null,null,null,null,null,{"$f":"IF(Fecha!H195=\"\",\"Quitar\",Fecha!H195*1)","v":"Quitar"},null,{"$f":"IF(AND(A195=\"\",B195=\"\",C195=\"\",D195=\"\",E195=\"\",F195=\"\",G195=\"\",H195=\"\",I195=\"\",P195=\"\",Q195=\"\")=TRUE,0,1)","v":0},null,{"$f":"IF(G195<>\"\",((TODAY()-G195)/365.25),\"\")","v":""},null,null,{"$f":"IF(G195=\"\",\"\",2)","v":""},null,{"$f":"IF(A195=\"\",\"\",CONCATENATE(A195,B195))","v":""},null,null,null,{"$f":"IF(Y195<>\"\",ROUNDUP(((TODAY()-Y195)/365.25),0),\"\")","v":""},null,null,{"$f":"IF(Y195=\"\",\"\",2)","v":""},null,{"$f":"IF(P195=\"\",\"\",CONCATENATE(P195,Q195))","v":""},null,null,null,null,null,null,"Niue"]
[null,null,null,null,null,null,null,null,null,null,null,null,null,null,null,null,null,null,null,null,null,{"$f":"IF(Fecha!H196=\"\",\"Quitar\",Fecha!H196*1)","v":"Quitar"},null,0,null,"",null,null,"",null,"",null,null,null,"",null,null,"",null,"",null,null,null,null,null,null,"Isla Norfolk"]
[null,null,null,null,null,null,null,null,null,null,null,null,null,null,null,null,null,null,null,null,null,{"$f":"IF(Fecha!H197=\"\",\"Quitar\",Fecha!H197*1)","v":"Quitar"},null,0,null,"",null,null,"",null,"",null,null,null,"",null,null,"",null,"",null,null,null,null,null,null,"Islas Marianas del Norte"]
[null,null,null,null,null,null,null,null,null,null,null,null,null,null,null,null,null,null,null,null,null,{"$f":"IF(Fecha!H198=\"\",\"Quitar\",Fecha!H198*1)","v":"Quitar"},null,0,null,"",null,null,"",null,"",null,null,null,"",null,null,"",null,"",null,null,null,null,null,null,"Oman"]
[null,null,null,null,null,null,null,null,null,null,null,null,null,null,null,null,null,null,null,null,null,{"$f":"IF(Fecha!H199=\"\",\"Quitar\",Fecha!H199*1)","v":"Quitar"},null,0,null,"",null,null,"",null,"",null,null,null,"",null,null,"",null,"",null,null,null,null,null,null,"Palau"]
[null,null,null,null,null,null,null,null,null,null,null,null,null,null,null,null,null,null,null,null,null,{"$f":"IF(Fecha!H200=\"\",\"Quitar\",Fecha!H200*1)","v":"Quitar"},null,0,null,"",null,null,"",null,"",null,null,null,"",null,null,"",null,"",null,null,null,null,null,null,"Autoridad Interina de Autogobierno Palestino"]
[null,null,null,null,null,null,null,null,null,null,null,null,null,null,null,null,null,null,null,null,null,{"$f":"IF(Fecha!H201=\"\",\"Quitar\",Fecha!H201*1)","v":"Quitar"},null,0,null,"",null,null,"",null,"",null,null,null,"",null,null,"",null,"",null,null,null,null,null,null,"Papua Nueva Guinea"]
[null,null,null,null,null,null,null,null,null,null,null,null,null,null,null,null,null,null,null,null,null,{"$f":"IF(Fecha!H202=\"\",\"Quitar\",Fecha!H202*1)","v":"Quitar"},null,0,null,"",null,null,"",null,"",null,null,null,"",null,null,"",null,"",null,null,null,null,null,"Isla Pitcairn","Isla Pitcairn"]
[null,null,null,null,null,null,null,null,null,null,null,null,null,null,null,null,null,null,null,null,null,{"$f":"IF(Fecha!H203=\"\",\"Quitar\",Fecha!H203*1)","v":"Quitar"},null,0,null,"",null,null,"",null,"",null,null,null,"",null,null,"",null,"",null,null,null,null,null,"Santa Helena","Santa Helena"]
[null,null,null,null,null,null,null,null,null,null,null,null,null,null,null,null,null,null,null,null,null,{"$f":"IF(Fecha!H204=\"\",\"Quitar\",Fecha!H204*1)","v":"Quitar"},null,0,null,"",null,null,"",null,"",null,null,null,"",null,null,"",null,"",null,null,null,null,null,"Santa Pedro y Miquelón","Santa Pedro y Miquelón"]
[null,null,null,null,null,null,null,null,null,null,null,null,null,null,null,null,null,null,null,null,null,{"$f":"IF(Fecha!H205=\"\",\"Quitar\",Fecha!H205*1)","v":"Quitar"},null,0,null,"",null,null,"",null,"",null,null,null,"",null,null,"",null,"",null,null,null,null,null,"Samoa","Samoa"]
[null,null,null,null,null,null,null,null,null,null,null,null,null,null,null,null,null,null,null,null,null,{"$f":"IF(Fecha!H206=\"\",\"Quitar\",Fecha!H206*1)","v":"Quitar"},null,0,null,"",null,null,"",null,"",null,null,null,"",null,null,"",null,"",null,null,null,null,null,"San Marino","San Marino"]
[null,null,null,null,null,null,null,null,null,null,null,null,null,null,null,null,null,null,null,null,null,{"$f":"IF(Fecha!H207=\"\",\"Quitar\",Fecha!H207*1)","v":"Quitar"},null,0,null,"",null,null,"",null,"",null,null,null,"",null,null,"",null,"",null,null,null,null,null,"Santo Tomé y Príncipe","Santo Tome y Principe"]
[null,null,null,null,null,null,null,null,null,null,null,null,null,null,null,null,null,null,null,null,null,{"$f":"IF(Fecha!H208=\"\",\"Quitar\",Fecha!H208*1)","v":"Quitar"},null,0,null,"",null,null,"",null,"",null,null,null,"",null,null,"",null,"",null,null,null,null,null,"Serbia","Serbia"]
[null,null,null,null,null,null,null,null,null,null,null,null,null,null,null,null,null,null,null,null,null,{"$f":"IF(Fecha!H209=\"\",\"Quitar\",Fecha!H209*1)","v":"Quitar"},null,0,null,"",null,null,"",null,"",null,null,null,"",null,null,"",null,"",null,null,null,null,null,"Seychelles","Seychelles"]
[null,null,null,null,null,null,null,null,null,null,null,null,null,null,null,null,null,null,null,null,null,{"$f":"IF(Fecha!H210=\"\",\"Quitar\",Fecha!H210*1)","v":"Quitar"},null,0,null,"",null,null,"",null,"",null,null,null,"",null,null,"",null,"",null,null,null,null,null,"Islas Salomón","Islas Salomon"]
[null,null,null,null,null,null,null,null,null,null,null,null,null,null,null,null,null,null,null,null,null,{"$f":"IF(Fecha!H211=\"\",\"Quitar\",Fecha!H211*1)","v":"Quitar"},null,0,null,"",null,null,"",null,"",null,null,null,"",null,null,"",null,"",null,null,null,null,null,"Somalia","Somalia"]
[null,null,null,null,null,null,null,null,null,null,null,null,null,null,null,null,null,null,null,null,null,{"$f":"IF(Fecha!H212=\"\",\"Quitar\",Fecha!H212*1)","v":"Quitar"},null,0,null,"",null,null,"",null,"",null,null,null,"",null,null,"",null,"",null,null,null,null,null,"Georgia del Sur e Islas Sandwich del Sur","Georgia del Sur e Islas Sandwich del Sur"]
[null,null,null,null,null,null,null,null,null,null,null,null,null,null,null,null,null,null,null,null,null,{"$f":"IF(Fecha!H213=\"\",\"Quitar\",Fecha!H213*1)","v":"Quitar"},null,0,null,"",null,null,"",null,"",null,null,null,"",null,null,"",null,"",null,null,null,null,null,"Islas Svalbard y Jan Mayen","Islas Svalbard y Jan Mayen"]
[null,null,null,null,null,null,null,null,null,null,null,null,null,null,null,null,null,null,null,null,null,{"$f":"IF(Fecha!H214=\"\",\"Quitar\",Fecha!H214*1)","v":"Quitar"},null,0,null,"",null,null,"",null,"",null,null,null,"",null,null,"",null,"",null,null,null,null,null,"Swazilandia","Swazilandia"]
[null,null,null,null,null,null,null,null,null,null,null,null,null,null,null,null,null,null,null,null,null,{"$f":"IF(Fecha!H215=\"\",\"Quitar\",Fecha!H215*1)","v":"Quitar"},null,0,null,"",null,null,"",null,"",null,null,null,"",null,null,"",null,"",null,null,null,null,null,"Tayikistán","Tayikistan"]
[null,null,null,null,null,null,null,null,null,null,null,null,null,null,null,null,null,null,null,null,null,{"$f":"IF(Fecha!H216=\"\",\"Quitar\",Fecha!H216*1)","v":"Quitar"},null,0,null,"",null,null,"",null,"",null,null,null,"",null,null,"",null,"",null,null,null,null,null,"Tanzania","Tanzania"]
[null,null,null,null,null,null,null,null,null,null,null,null,null,null,null,null,null,null,null,null,null,{"$f":"IF(Fecha!H217=\"\",\"Quitar\",Fecha!H217*1)","v":"Quitar"},null,0,null,"",null,null,"",null,"",null,null,null,"",null,null,"",null,"",null,null,null,null,null,"Timor Oriental","Timor Oriental"]
[null,null,null,null,null,null,null,null,null,null,null,null,null,null,null,null,null,null,null,null,null,{"$f":"IF(Fecha!H218=\"\",\"Quitar\",Fecha!H218*1)","v":"Quitar"},null,0,null,"",null,null,"",null,"",null,null,null,"",null,null,"",null,"",null,null,null,null,null,"Tokelau (Islas de Tokelau)","Tokelau (Islas de Tokelau)"]
[null,null,null,null,null,null,null,null,null,null,null,null,null,null,null,null,null,null,null,null,null,{"$f":"IF(Fecha!H219=\"\",\"Quitar\",Fecha!H219*1)","v":"Quitar"},null,0,null,"",null,null,"",null,"",null,null,null,"",null,null,"",null,"",null,null,null,null,null,"Tonga","Tonga"]
[null,null,null,null,null,null,null,null,null,null,null,null,null,null,null,null,null,null,null,null,null,{"$f":"IF(Fecha!H220=\"\",\"Quitar\",Fecha!H220*1)","v":"Quitar"},null,0,null,"",null,null,"",null,"",null,null,null,"",null,null,"",null,"",null,null,null,null,null,"Túnez","Tunez"]
[null,null,null,null,null,null,null,null,null,null,null,null,null,null,null,null,null,null,null,null,null,{"$f":"IF(Fecha!H221=\"\",\"Quitar\",Fecha!H221*1)","v":"Quitar"},null,0,null,"",null,null,"",null,"",null,null,null,"",null,null,"",null,"",null,null,null,null,null,"Turkmenistán","Turkmenistan"]
[null,null,null,null,null,null,null,null,null,null,null,null,null,null,null,null,null,null,null,null,null,{"$f":"IF(Fecha!H222=\"\",\"Quitar\",Fecha!H222*1)","v":"Quitar"},null,0,null,"",null,null,"",null,"",null,null,null,"",null,null,"",null,"",null,null,null,null,null,"Tuvalu","Tuvalu"]
[null,null,null,null,null,null,null,null,null,null,null,null,null,null,null,null,null,null,null,null,null,{"$f":"IF(Fecha!H223=\"\",\"Quitar\",Fecha!H223*1)","v":"Quitar"},null,0,null,"",null,null,"",null,"",null,null,null,"",null,null,"",null,"",null,null,null,null,null,"Uganda","Uganda"]
[null,null,null,null,null,null,null,null,null,null,null,null,null,null,null,null,null,null,null,null,null,{"$f":"IF(Fecha!H224=\"\",\"Quitar\",Fecha!H224*1)","v":"Quitar"},null,0,null,"",null,null,"",null,"",null,null,null,"",null,null,"",null,"",null,null,null,null,null,"Islas Ultramarinas menores de Estados Unidos","Islas Ultramarinas menores de Estados Unidos"]
[null,null,null,null,null,null,null,null,null,null,null,null,null,null,null,null,null,null,null,null,null,{"$f":"IF(Fecha!H225=\"\",\"Quitar\",Fecha!H225*1)","v":"Quitar"},null,0,null,"",null,null,"",null,"",null,null,null,"",null,null,"",null,"",null,null,null,null,null,"Uzbekistán","Uzbekistan"]
[null,null,null,null,null,null,null,null,null,null,null,null,null,null,null,null,null,null,null,null,null,{"$f":"IF(Fecha!H226=\"\",\"Quitar\",Fecha!H226*1)","v":"Quitar"},null,0,null,"",null,null,"",null,"",null,null,null,"",null,null,"",null,"",null,null,null,null,null,"Vanuatu","Vanuatu"]
[null,null,null,null,null,null,null,null,null,null,null,null,null,null,null,null,null,null,null,null,null,{"$f":"IF(Fecha!H227=\"\",\"Quitar\",Fecha!H227*1)","v":"Quitar"},null,0,null,"",null,null,"",null,"",null,null,null,"",null,null,"",null,"",null,null,null,null,null,"Islas Vírgenes Británicas","Islas Virgenes Britanicas"]
[null,null,null,null,null,null,null,null,null,null,null,null,null,null,null,null,null,null,null,null,null,{"$f":"IF(Fecha!H228=\"\",\"Quitar\",Fecha!H228*1)","v":"Quitar"},null,0,null,"",null,null,"",null,"",null,null,null,"",null,null,"",null,"",null,null,null,null,null,"Islas Vírgenes Americanas","Islas Virgenes Americanas"]
[null,null,null,null,null,null,null,null,null,null,null,null,null,null,null,null,null,null,null,null,null,{"$f":"IF(Fecha!H229=\"\",\"Quitar\",Fecha!H229*1)","v":"Quitar"},null,0,null,"",null,null,"",null,"",null,null,null,"",null,null,"",null,"",null,null,null,null,null,"Islas Wallis y Futuna","Islas Wallis y Futuna"]
[null,null,null,null,null,null,null,null,null,null,null,null,null,null,null,null,null,null,null,null,null,{"$f":"IF(Fecha!H230=\"\",\"Quitar\",Fecha!H230*1)","v":"Quitar"},null,0,null,"",null,null,"",null,"",null,null,null,"",null,null,"",null,"",null,null,null,null,null,"Sahara Occidental","Sahara Occidental"]
[null,null,null,null,null,null,null,null,null,null,null,null,null,null,null,null,null,null,null,null,null,{"$f":"IF(Fecha!H231=\"\",\"Quitar\",Fecha!H231*1)","v":"Quitar"},null,0,null,"",null,null,"",null,"",null,null,null,"",null,null,"",null,"",null,null,null,null,null,"Yemen","Yemen"]
[null,null,null,null,null,null,null,null,null,null,null,null,null,null,null,null,null,null,null,null,null,{"$f":"IF(Fecha!H232=\"\",\"Quitar\",Fecha!H232*1)","v":"Quitar"},null,0,null,"",null,null,"",null,"",null,null,null,"",null,null,"",null,"",null,null,null,null,null,"Zambia","Zambia"]
[null,null,null,null,null,null,null,null,null,null,null,null,null,null,null,null,null,null,null,null,null,{"$f":"IF(Fecha!H233=\"\",\"Quitar\",Fecha!H233*1)","v":"Quitar"},null,0,null,"",null,null,"",null,"",null,null,null,"",null,null,"",null,"",null,null,null,null,null,"Zimbabue","Zimbabue"]
[null,null,null,null,null,null,null,null,null,null,null,null,null,null,null,null,null,null,null,null,null,{"$f":"IF(Fecha!H234=\"\",\"Quitar\",Fecha!H234*1)","v":"Quitar"},null,0,null,"",null,null,"",null,"",null,null,null,"",null,null,"",null,"",null,null,null,null,null,"Cabo Verde","Cabo Verde"]
[null,null,null,null,null,null,null,null,null,null,null,null,null,null,null,null,null,null,null,null,null,{"$f":"IF(Fecha!H235=\"\",\"Quitar\",Fecha!H235*1)","v":"Quitar"},null,0,null,"",null,null,"",null,"",null,null,null,"",null,null,"",null,"",null,null,null,null,null,"Congo","Congo"]
[null,null,null,null,null,null,null,null,null,null,null,null,null,null,null,null,null,null,null,null,null,{"$f":"IF(Fecha!H236=\"\",\"Quitar\",Fecha!H236*1)","v":"Quitar"},null,0,null,"",null,null,"",null,"",null,null,null,"",null,null,"",null,"",null,null,null,null,null,"Corea","Corea"]
[null,null,null,null,null,null,null,null,null,null,null,null,null,null,null,null,null,null,null,null,null,{"$f":"IF(Fecha!H237=\"\",\"Quitar\",Fecha!H237*1)","v":"Quitar"},null,0,null,"",null,null,"",null,"",null,null,null,"",null,null,"",null,"",null,null,null,null,null,"Guinea","Guinea"]
[null,null,null,null,null,null,null,null,null,null,null,null,null,null,null,null,null,null,null,null,null,{"$f":"IF(Fecha!H238=\"\",\"Quitar\",Fecha!H238*1)","v":"Quitar"},null,0,null,"",null,null,"",null,"",null,null,null,"",null,null,"",null,"",null,null,null,null,null,"Ruanda","Ruanda"]
[null,null,null,null,null,null,null,null,null,null,null,null,null,null,null,null,null,null,null,null,null,{"$f":"IF(Fecha!H239=\"\",\"Quitar\",Fecha!H239*1)","v":"Quitar"},null,0,null,"",null,null,"",null,"",null,null,null,"",null,null,"",null,"",null,null,null,null,null,"Polinesia Francesa","Polinesia Francesa"]
[null,null,null,null,null,null,null,null,null,null,null,null,null,null,null,null,null,null,null,null,null,{"$f":"IF(Fecha!H240=\"\",\"Quitar\",Fecha!H240*1)","v":"Quitar"},null,0,null,"",null,null,"",null,"",null,null,null,"",null,null,"",null,"",null,null,null,null,null,"Territorios Franceses del Sur","Territorios Franceses del Sur"]
[null,null,null,null,null,null,null,null,null,null,null,null,null,null,null,null,null,null,null,null,null,{"$f":"IF(Fecha!H241=\"\",\"Quitar\",Fecha!H241*1)","v":"Quitar"},null,0,null,"",null,null,"",null,"",null,null,null,"",null,null,"",null,"",null,null,null,null,null,"Reunión","Reunion"]
[null,null,null,null,null,null,null,null,null,null,null,null,null,null,null,null,null,null,null,null,null,{"$f":"IF(Fecha!H242=\"\",\"Quitar\",Fecha!H242*1)","v":"Quitar"},null,0,null,"",null,null,"",null,"",null,null,null,"",null,null,"",null,"",null,null,null,null,null,"Sin precisar","Sin precisar"]
[null,null,null,null,null,null,null,null,null,null,null,null,null,null,null,null,null,null,null,null,null,{"$f":"IF(Fecha!H243=\"\",\"Quitar\",Fecha!H243*1)","v":"Quitar"},null,0,null,"",null,null,"",null,"",null,null,null,"",null,null,"",null,"",null,null,null,null,null,"No identificado","No identificado"]
[null,null,null,null,null,null,null,null,null,null,null,null,null,null,null,null,null,null,null,null,null,{"$f":"IF(Fecha!H244=\"\",\"Quitar\",Fecha!H244*1)","v":"Quitar"},null,0,null,"",null,null,"",null,"",null,null,null,"",null,null,"",null,""]
[null,null,null,null,null,null,null,null,null,null,null,null,null,null,null,null,null,null,null,null,null,{"$f":"IF(Fecha!H245=\"\",\"Quitar\",Fecha!H245*1)","v":"Quitar"},null,0,null,"",null,null,"",null,"",null,null,null,"",null,null,"",null,""]
[null,null,null,null,null,null,null,null,null,null,null,null,null,null,null,null,null,null,null,null,null,{"$f":"IF(Fecha!H246=\"\",\"Quitar\",Fecha!H246*1)","v":"Quitar"},null,0,null,"",null,null,"",null,"",null,null,null,"",null,null,"",null,""]
[null,null,null,null,null,null,null,null,null,null,null,null,null,null,null,null,null,null,null,null,null,{"$f":"IF(Fecha!H247=\"\",\"Quitar\",Fecha!H247*1)","v":"Quitar"},null,0,null,"",null,null,"",null,"",null,null,null,"",null,null,"",null,""]
[null,null,null,null,null,null,null,null,null,null,null,null,null,null,null,null,null,null,null,null,null,{"$f":"IF(Fecha!H248=\"\",\"Quitar\",Fecha!H248*1)","v":"Quitar"},null,0,null,"",null,null,"",null,"",null,null,null,"",null,null,"",null,""]
[null,null,null,null,null,null,null,null,null,null,null,null,null,null,null,null,null,null,null,null,null,{"$f":"IF(Fecha!H249=\"\",\"Quitar\",Fecha!H249*1)","v":"Quitar"},null,0,null,"",null,null,"",null,"",null,null,null,"",null,null,"",null,""]
[null,null,null,null,null,null,null,null,null,null,null,null,null,null,null,null,null,null,null,null,null,{"$f":"IF(Fecha!H250=\"\",\"Quitar\",Fecha!H250*1)","v":"Quitar"},null,0,null,"",null,null,"",null,"",null,null,null,"",null,null,"",null,""]
[null,null,null,null,null,null,null,null,null,null,null,null,null,null,null,null,null,null,null,null,null,{"$f":"IF(Fecha!H251=\"\",\"Quitar\",Fecha!H251*1)","v":"Quitar"},null,0,null,"",null,null,"",null,"",null,null,null,"",null,null,"",null,""]
[null,null,null,null,null,null,null,null,null,null,null,null,null,null,null,null,null,null,null,null,null,{"$f":"IF(Fecha!H252=\"\",\"Quitar\",Fecha!H252*1)","v":"Quitar"},null,0,null,"",null,null,"",null,"",null,null,null,"",null,null,"",null,""]
[null,null,null,null,null,null,null,null,null,null,null,null,null,null,null,null,null,null,null,null,null,{"$f":"IF(Fecha!H253=\"\",\"Quitar\",Fecha!H253*1)","v":"Quitar"},null,0,null,"",null,null,"",null,"",null,null,null,"",null,null,"",null,""]
[null,null,null,null,null,null,null,null,null,null,null,null,null,null,null,null,null,null,null,null,null,{"$f":"IF(Fecha!H254=\"\",\"Quitar\",Fecha!H254*1)","v":"Quitar"},null,0,null,"",null,null,"",null,"",null,null,null,"",null,null,"",null,""]
[null,null,null,null,null,null,null,null,null,null,null,null,null,null,null,null,null,null,null,null,null,{"$f":"IF(Fecha!H255=\"\",\"Quitar\",Fecha!H255*1)","v":"Quitar"},null,0,null,"",null,null,"",null,"",null,null,null,"",null,null,"",null,""]
[null,null,null,null,null,null,null,null,null,null,null,null,null,null,null,null,null,null,null,null,null,{"$f":"IF(Fecha!H256=\"\",\"Quitar\",Fecha!H256*1)","v":"Quitar"},null,0,null,"",null,null,"",null,"",null,null,null,"",null,null,"",null,""]
[null,null,null,null,null,null,null,null,null,null,null,null,null,null,null,null,null,null,null,null,null,{"$f":"IF(Fecha!H257=\"\",\"Quitar\",Fecha!H257*1)","v":"Quitar"},null,0,null,"",null,null,"",null,"",null,null,null,"",null,null,"",null,""]
[null,null,null,null,null,null,null,null,null,null,null,null,null,null,null,null,null,null,null,null,null,{"$f":"IF(Fecha!H258=\"\",\"Quitar\",Fecha!H258*1)","v":"Quitar"},null,0,null,"",null,null,"",null,"",null,null,null,"",null,null,"",null,""]
[null,null,null,null,null,null,null,null,null,null,null,null,null,null,null,null,null,null,null,null,null,{"$f":"IF(Fecha!H259=\"\",\"Quitar\",Fecha!H259*1)","v":"Quitar"},null,{"$f":"IF(AND(A259=\"\",B259=\"\",C259=\"\",D259=\"\",E259=\"\",F259=\"\",G259=\"\",H259=\"\",I259=\"\",P259=\"\",Q259=\"\")=TRUE,0,1)","v":0},null,{"$f":"IF(G259<>\"\",((TODAY()-G259)/365.25),\"\")","v":""},null,null,{"$f":"IF(G259=\"\",\"\",2)","v":""},null,{"$f":"IF(A259=\"\",\"\",CONCATENATE(A259,B259))","v":""},null,null,null,{"$f":"IF(Y259<>\"\",ROUNDUP(((TODAY()-Y259)/365.25),0),\"\")","v":""},null,null,{"$f":"IF(Y259=\"\",\"\",2)","v":""},null,{"$f":"IF(P259=\"\",\"\",CONCATENATE(P259,Q259))","v":""}]
[null,null,null,null,null,null,null,null,null,null,null,null,null,null,null,null,null,null,null,null,null,{"$f":"IF(Fecha!H260=\"\",\"Quitar\",Fecha!H260*1)","v":"Quitar"},null,0,null,"",null,null,"",null,"",null,null,null,"",null,null,"",null,""]
[null,null,null,null,null,null,null,null,null,null,null,null,null,null,null,null,null,null,null,null,null,{"$f":"IF(Fecha!H261=\"\",\"Quitar\",Fecha!H261*1)","v":"Quitar"},null,0,null,"",null,null,"",null,"",null,null,null,"",null,null,"",null,""]
[null,null,null,null,null,null,null,null,null,null,null,null,null,null,null,null,null,null,null,null,null,{"$f":"IF(Fecha!H262=\"\",\"Quitar\",Fecha!H262*1)","v":"Quitar"},null,0,null,"",null,null,"",null,"",null,null,null,"",null,null,"",null,""]
[null,null,null,null,null,null,null,null,null,null,null,null,null,null,null,null,null,null,null,null,null,{"$f":"IF(Fecha!H263=\"\",\"Quitar\",Fecha!H263*1)","v":"Quitar"},null,0,null,"",null,null,"",null,"",null,null,null,"",null,null,"",null,""]
[null,null,null,null,null,null,null,null,null,null,null,null,null,null,null,null,null,null,null,null,null,{"$f":"IF(Fecha!H264=\"\",\"Quitar\",Fecha!H264*1)","v":"Quitar"},null,0,null,"",null,null,"",null,"",null,null,null,"",null,null,"",null,""]
[null,null,null,null,null,null,null,null,null,null,null,null,null,null,null,null,null,null,null,null,null,{"$f":"IF(Fecha!H265=\"\",\"Quitar\",Fecha!H265*1)","v":"Quitar"},null,0,null,"",null,null,"",null,"",null,null,null,"",null,null,"",null,""]
[null,null,null,null,null,null,null,null,null,null,null,null,null,null,null,null,null,null,null,null,null,{"$f":"IF(Fecha!H266=\"\",\"Quitar\",Fecha!H266*1)","v":"Quitar"},null,0,null,"",null,null,"",null,"",null,null,null,"",null,null,"",null,""]
[null,null,null,null,null,null,null,null,null,null,null,null,null,null,null,null,null,null,null,null,null,{"$f":"IF(Fecha!H267=\"\",\"Quitar\",Fecha!H267*1)","v":"Quitar"},null,0,null,"",null,null,"",null,"",null,null,null,"",null,null,"",null,""]
[null,null,null,null,null,null,null,null,null,null,null,null,null,null,null,null,null,null,null,null,null,{"$f":"IF(Fecha!H268=\"\",\"Quitar\",Fecha!H268*1)","v":"Quitar"},null,0,null,"",null,null,"",null,"",null,null,null,"",null,null,"",null,""]
[null,null,null,null,null,null,null,null,null,null,null,null,null,null,null,null,null,null,null,null,null,{"$f":"IF(Fecha!H269=\"\",\"Quitar\",Fecha!H269*1)","v":"Quitar"},null,0,null,"",null,null,"",null,"",null,null,null,"",null,null,"",null,""]
[null,null,null,null,null,null,null,null,null,null,null,null,null,null,null,null,null,null,null,null,null,{"$f":"IF(Fecha!H270=\"\",\"Quitar\",Fecha!H270*1)","v":"Quitar"},null,0,null,"",null,null,"",null,"",null,null,null,"",null,null,"",null,""]
[null,null,null,null,null,null,null,null,null,null,null,null,null,null,null,null,null,null,null,null,null,{"$f":"IF(Fecha!H271=\"\",\"Quitar\",Fecha!H271*1)","v":"Quitar"},null,0,null,"",null,null,"",null,"",null,null,null,"",null,null,"",null,""]
[null,null,null,null,null,null,null,null,null,null,null,null,null,null,null,null,null,null,null,null,null,{"$f":"IF(Fecha!H272=\"\",\"Quitar\",Fecha!H272*1)","v":"Quitar"},null,0,null,"",null,null,"",null,"",null,null,null,"",null,null,"",null,""]
[null,null,null,null,null,null,null,null,null,null,null,null,null,null,null,null,null,null,null,null,null,{"$f":"IF(Fecha!H273=\"\",\"Quitar\",Fecha!H273*1)","v":"Quitar"},null,0,null,"",null,null,"",null,"",null,null,null,"",null,null,"",null,""]
[null,null,null,null,null,null,null,null,null,null,null,null,null,null,null,null,null,null,null,null,null,{"$f":"IF(Fecha!H274=\"\",\"Quitar\",Fecha!H274*1)","v":"Quitar"},null,0,null,"",null,null,"",null,"",null,null,null,"",null,null,"",null,""]
[null,null,null,null,null,null,null,null,null,null,null,null,null,null,null,null,null,null,null,null,null,{"$f":"IF(Fecha!H275=\"\",\"Quitar\",Fecha!H275*1)","v":"Quitar"},null,0,null,"",null,null,"",null,"",null,null,null,"",null,null,"",null,""]
[null,null,null,null,null,null,null,null,null,null,null,null,null,null,null,null,null,null,null,null,null,{"$f":"IF(Fecha!H276=\"\",\"Quitar\",Fecha!H276*1)","v":"Quitar"},null,0,null,"",null,null,"",null,"",null,null,null,"",null,null,"",null,""]
[null,null,null,null,null,null,null,null,null,null,null,null,null,null,null,null,null,null,null,null,null,{"$f":"IF(Fecha!H277=\"\",\"Quitar\",Fecha!H277*1)","v":"Quitar"},null,0,null,"",null,null,"",null,"",null,null,null,"",null,null,"",null,""]
[null,null,null,null,null,null,null,null,null,null,null,null,null,null,null,null,null,null,null,null,null,{"$f":"IF(Fecha!H278=\"\",\"Quitar\",Fecha!H278*1)","v":"Quitar"},null,0,null,"",null,null,"",null,"",null,null,null,"",null,null,"",null,""]
[null,null,null,null,null,null,null,null,null,null,null,null,null,null,null,null,null,null,null,null,null,{"$f":"IF(Fecha!H279=\"\",\"Quitar\",Fecha!H279*1)","v":"Quitar"},null,0,null,"",null,null,"",null,"",null,null,null,"",null,null,"",null,""]
[null,null,null,null,null,null,null,null,null,null,null,null,null,null,null,null,null,null,null,null,null,{"$f":"IF(Fecha!H280=\"\",\"Quitar\",Fecha!H280*1)","v":"Quitar"},null,0,null,"",null,null,"",null,"",null,null,null,"",null,null,"",null,""]
[null,null,null,null,null,null,null,null,null,null,null,null,null,null,null,null,null,null,null,null,null,{"$f":"IF(Fecha!H281=\"\",\"Quitar\",Fecha!H281*1)","v":"Quitar"},null,0,null,"",null,null,"",null,"",null,null,null,"",null,null,"",null,""]
[null,null,null,null,null,null,null,null,null,null,null,null,null,null,null,null,null,null,null,null,null,{"$f":"IF(Fecha!H282=\"\",\"Quitar\",Fecha!H282*1)","v":"Quitar"},null,0,null,"",null,null,"",null,"",null,null,null,"",null,null,"",null,""]
[null,null,null,null,null,null,null,null,null,null,null,null,null,null,null,null,null,null,null,null,null,{"$f":"IF(Fecha!H283=\"\",\"Quitar\",Fecha!H283*1)","v":"Quitar"},null,0,null,"",null,null,"",null,"",null,null,null,"",null,null,"",null,""]
[null,null,null,null,null,null,null,null,null,null,null,null,null,null,null,null,null,null,null,null,null,{"$f":"IF(Fecha!H284=\"\",\"Quitar\",Fecha!H284*1)","v":"Quitar"},null,0,null,"",null,null,"",null,"",null,null,null,"",null,null,"",null,""]
[null,null,null,null,null,null,null,null,null,null,null,null,null,null,null,null,null,null,null,null,null,{"$f":"IF(Fecha!H285=\"\",\"Quitar\",Fecha!H285*1)","v":"Quitar"},null,0,null,"",null,null,"",null,"",null,null,null,"",null,null,"",null,""]
[null,null,null,null,null,null,null,null,null,null,null,null,null,null,null,null,null,null,null,null,null,{"$f":"IF(Fecha!H286=\"\",\"Quitar\",Fecha!H286*1)","v":"Quitar"},null,0,null,"",null,null,"",null,"",null,null,null,"",null,null,"",null,""]
[null,null,null,null,null,null,null,null,null,null,null,null,null,null,null,null,null,null,null,null,null,{"$f":"IF(Fecha!H287=\"\",\"Quitar\",Fecha!H287*1)","v":"Quitar"},null,0,null,"",null,null,"",null,"",null,null,null,"",null,null,"",null,""]
[null,null,null,null,null,null,null,null,null,null,null,null,null,null,null,null,null,null,null,null,null,{"$f":"IF(Fecha!H288=\"\",\"Quitar\",Fecha!H288*1)","v":"Quitar"},null,0,null,"",null,null,"",null,"",null,null,null,"",null,null,"",null,""]
[null,null,null,null,null,null,null,null,null,null,null,null,null,null,null,null,null,null,null,null,null,{"$f":"IF(Fecha!H289=\"\",\"Quitar\",Fecha!H289*1)","v":"Quitar"},null,0,null,"",null,null,"",null,"",null,null,null,"",null,null,"",null,""]
[null,null,null,null,null,null,null,null,null,null,null,null,null,null,null,null,null,null,null,null,null,{"$f":"IF(Fecha!H290=\"\",\"Quitar\",Fecha!H290*1)","v":"Quitar"},null,0,null,"",null,null,"",null,"",null,null,null,"",null,null,"",null,""]
[null,null,null,null,null,null,null,null,null,null,null,null,null,null,null,null,null,null,null,null,null,{"$f":"IF(Fecha!H291=\"\",\"Quitar\",Fecha!H291*1)","v":"Quitar"},null,0,null,"",null,null,"",null,"",null,null,null,"",null,null,"",null,""]
[null,null,null,null,null,null,null,null,null,null,null,null,null,null,null,null,null,null,null,null,null,{"$f":"IF(Fecha!H292=\"\",\"Quitar\",Fecha!H292*1)","v":"Quitar"},null,0,null,"",null,null,"",null,"",null,null,null,"",null,null,"",null,""]
[null,null,null,null,null,null,null,null,null,null,null,null,null,null,null,null,null,null,null,null,null,{"$f":"IF(Fecha!H293=\"\",\"Quitar\",Fecha!H293*1)","v":"Quitar"},null,0,null,"",null,null,"",null,"",null,null,null,"",null,null,"",null,""]
[null,null,null,null,null,null,null,null,null,null,null,null,null,null,null,null,null,null,null,null,null,{"$f":"IF(Fecha!H294=\"\",\"Quitar\",Fecha!H294*1)","v":"Quitar"},null,0,null,"",null,null,"",null,"",null,null,null,"",null,null,"",null,""]
[null,null,null,null,null,null,null,null,null,null,null,null,null,null,null,null,null,null,null,null,null,{"$f":"IF(Fecha!H295=\"\",\"Quitar\",Fecha!H295*1)","v":"Quitar"},null,0,null,"",null,null,"",null,"",null,null,null,"",null,null,"",null,""]
[null,null,null,null,null,null,null,null,null,null,null,null,null,null,null,null,null,null,null,null,null,{"$f":"IF(Fecha!H296=\"\",\"Quitar\",Fecha!H296*1)","v":"Quitar"},null,0,null,"",null,null,"",null,"",null,null,null,"",null,null,"",null,""]
[null,null,null,null,null,null,null,null,null,null,null,null,null,null,null,null,null,null,null,null,null,{"$f":"IF(Fecha!H297=\"\",\"Quitar\",Fecha!H297*1)","v":"Quitar"},null,0,null,"",null,null,"",null,"",null,null,null,"",null,null,"",null,""]
[null,null,null,null,null,null,null,null,null,null,null,null,null,null,null,null,null,null,null,null,null,{"$f":"IF(Fecha!H298=\"\",\"Quitar\",Fecha!H298*1)","v":"Quitar"},null,0,null,"",null,null,"",null,"",null,null,null,"",null,null,"",null,""]
[null,null,null,null,null,null,null,null,null,null,null,null,null,null,null,null,null,null,null,null,null,{"$f":"IF(Fecha!H299=\"\",\"Quitar\",Fecha!H299*1)","v":"Quitar"},null,0,null,"",null,null,"",null,"",null,null,null,"",null,null,"",null,""]
[null,null,null,null,null,null,null,null,null,null,null,null,null,null,null,null,null,null,null,null,null,{"$f":"IF(Fecha!H300=\"\",\"Quitar\",Fecha!H300*1)","v":"Quitar"},null,0,null,"",null,null,"",null,"",null,null,null,"",null,null,"",null,""]
[null,null,null,null,null,null,null,null,null,null,null,null,null,null,null,null,null,null,null,null,null,{"$f":"IF(Fecha!H301=\"\",\"Quitar\",Fecha!H301*1)","v":"Quitar"},null,0,null,"",null,null,"",null,"",null,null,null,"",null,null,"",null,""]
[null,null,null,null,null,null,null,null,null,null,null,null,null,null,null,null,null,null,null,null,null,{"$f":"IF(Fecha!H302=\"\",\"Quitar\",Fecha!H302*1)","v":"Quitar"},null,0,null,"",null,null,"",null,"",null,null,null,"",null,null,"",null,""]
[null,null,null,null,null,null,null,null,null,null,null,null,null,null,null,null,null,null,null,null,null,{"$f":"IF(Fecha!H303=\"\",\"Quitar\",Fecha!H303*1)","v":"Quitar"},null,0,null,"",null,null,"",null,"",null,null,null,"",null,null,"",null,""]
[null,null,null,null,null,null,null,null,null,null,null,null,null,null,null,null,null,null,null,null,null,{"$f":"IF(Fecha!H304=\"\",\"Quitar\",Fecha!H304*1)","v":"Quitar"},null,0,null,"",null,null,"",null,"",null,null,null,"",null,null,"",null,""]
[null,null,null,null,null,null,null,null,null,null,null,null,null,null,null,null,null,null,null,null,null,{"$f":"IF(Fecha!H305=\"\",\"Quitar\",Fecha!H305*1)","v":"Quitar"},null,0,null,"",null,null,"",null,"",null,null,null,"",null,null,"",null,""]
[null,null,null,null,null,null,null,null,null,null,null,null,null,null,null,null,null,null,null,null,null,{"$f":"IF(Fecha!H306=\"\",\"Quitar\",Fecha!H306*1)","v":"Quitar"},null,0,null,"",null,null,"",null,"",null,null,null,"",null,null,"",null,""]
[null,null,null,null,null,null,null,null,null,null,null,null,null,null,null,null,null,null,null,null,null,{"$f":"IF(Fecha!H307=\"\",\"Quitar\",Fecha!H307*1)","v":"Quitar"},null,0,null,"",null,null,"",null,"",null,null,null,"",null,null,"",null,""]
[null,null,null,null,null,null,null,null,null,null,null,null,null,null,null,null,null,null,null,null,null,{"$f":"IF(Fecha!H308=\"\",\"Quitar\",Fecha!H308*1)","v":"Quitar"},null,0,null,"",null,null,"",null,"",null,null,null,"",null,null,"",null,""]
[null,null,null,null,null,null,null,null,null,null,null,null,null,null,null,null,null,null,null,null,null,{"$f":"IF(Fecha!H309=\"\",\"Quitar\",Fecha!H309*1)","v":"Quitar"},null,0,null,"",null,null,"",null,"",null,null,null,"",null,null,"",null,""]
[null,null,null,null,null,null,null,null,null,null,null,null,null,null,null,null,null,null,null,null,null,{"$f":"IF(Fecha!H310=\"\",\"Quitar\",Fecha!H310*1)","v":"Quitar"},null,0,null,"",null,null,"",null,"",null,null,null,"",null,null,"",null,""]
[null,null,null,null,null,null,null,null,null,null,null,null,null,null,null,null,null,null,null,null,null,{"$f":"IF(Fecha!H311=\"\",\"Quitar\",Fecha!H311*1)","v":"Quitar"},null,0,null,"",null,null,"",null,"",null,null,null,"",null,null,"",null,""]
[null,null,null,null,null,null,null,null,null,null,null,null,null,null,null,null,null,null,null,null,null,{"$f":"IF(Fecha!H312=\"\",\"Quitar\",Fecha!H312*1)","v":"Quitar"},null,0,null,"",null,null,"",null,"",null,null,null,"",null,null,"",null,""]
[null,null,null,null,null,null,null,null,null,null,null,null,null,null,null,null,null,null,null,null,null,{"$f":"IF(Fecha!H313=\"\",\"Quitar\",Fecha!H313*1)","v":"Quitar"},null,0,null,"",null,null,"",null,"",null,null,null,"",null,null,"",null,""]
[null,null,null,null,null,null,null,null,null,null,null,null,null,null,null,null,null,null,null,null,null,{"$f":"IF(Fecha!H314=\"\",\"Quitar\",Fecha!H314*1)","v":"Quitar"},null,0,null,"",null,null,"",null,"",null,null,null,"",null,null,"",null,""]
[null,null,null,null,null,null,null,null,null,null,null,null,null,null,null,null,null,null,null,null,null,{"$f":"IF(Fecha!H315=\"\",\"Quitar\",Fecha!H315*1)","v":"Quitar"},null,0,null,"",null,null,"",null,"",null,null,null,"",null,null,"",null,""]
[null,null,null,null,null,null,null,null,null,null,null,null,null,null,null,null,null,null,null,null,null,{"$f":"IF(Fecha!H316=\"\",\"Quitar\",Fecha!H316*1)","v":"Quitar"},null,0,null,"",null,null,"",null,"",null,null,null,"",null,null,"",null,""]
[null,null,null,null,null,null,null,null,null,null,null,null,null,null,null,null,null,null,null,null,null,{"$f":"IF(Fecha!H317=\"\",\"Quitar\",Fecha!H317*1)","v":"Quitar"},null,0,null,"",null,null,"",null,"",null,null,null,"",null,null,"",null,""]
[null,null,null,null,null,null,null,null,null,null,null,null,null,null,null,null,null,null,null,null,null,{"$f":"IF(Fecha!H318=\"\",\"Quitar\",Fecha!H318*1)","v":"Quitar"},null,0,null,"",null,null,"",null,"",null,null,null,"",null,null,"",null,""]
[null,null,null,null,null,null,null,null,null,null,null,null,null,null,null,null,null,null,null,null,null,{"$f":"IF(Fecha!H319=\"\",\"Quitar\",Fecha!H319*1)","v":"Quitar"},null,0,null,"",null,null,"",null,"",null,null,null,"",null,null,"",null,""]
[null,null,null,null,null,null,null,null,null,null,null,null,null,null,null,null,null,null,null,null,null,{"$f":"IF(Fecha!H320=\"\",\"Quitar\",Fecha!H320*1)","v":"Quitar"},null,0,null,"",null,null,"",null,"",null,null,null,"",null,null,"",null,""]
[null,null,null,null,null,null,null,null,null,null,null,null,null,null,null,null,null,null,null,null,null,{"$f":"IF(Fecha!H321=\"\",\"Quitar\",Fecha!H321*1)","v":"Quitar"},null,0,null,"",null,null,"",null,"",null,null,null,"",null,null,"",null,""]
[null,null,null,null,null,null,null,null,null,null,null,null,null,null,null,null,null,null,null,null,null,{"$f":"IF(Fecha!H322=\"\",\"Quitar\",Fecha!H322*1)","v":"Quitar"},null,0,null,"",null,null,"",null,"",null,null,null,"",null,null,"",null,""]
[null,null,null,null,null,null,null,null,null,null,null,null,null,null,null,null,null,null,null,null,null,{"$f":"IF(Fecha!H323=\"\",\"Quitar\",Fecha!H323*1)","v":"Quitar"},null,{"$f":"IF(AND(A323=\"\",B323=\"\",C323=\"\",D323=\"\",E323=\"\",F323=\"\",G323=\"\",H323=\"\",I323=\"\",P323=\"\",Q323=\"\")=TRUE,0,1)","v":0},null,{"$f":"IF(G323<>\"\",((TODAY()-G323)/365.25),\"\")","v":""},null,null,{"$f":"IF(G323=\"\",\"\",2)","v":""},null,{"$f":"IF(A323=\"\",\"\",CONCATENATE(A323,B323))","v":""},null,null,null,{"$f":"IF(Y323<>\"\",ROUNDUP(((TODAY()-Y323)/365.25),0),\"\")","v":""},null,null,{"$f":"IF(Y323=\"\",\"\",2)","v":""},null,{"$f":"IF(P323=\"\",\"\",CONCATENATE(P323,Q323))","v":""}]
[null,null,null,null,null,null,null,null,null,null,null,null,null,null,null,null,null,null,null,null,null,{"$f":"IF(Fecha!H324=\"\",\"Quitar\",Fecha!H324*1)","v":"Quitar"},null,0,null,"",null,null,"",null,"",null,null,null,"",null,null,"",null,""]
[null,null,null,null,null,null,null,null,null,null,null,null,null,null,null,null,null,null,null,null,null,{"$f":"IF(Fecha!H325=\"\",\"Quitar\",Fecha!H325*1)","v":"Quitar"},null,0,null,"",null,null,"",null,"",null,null,null,"",null,null,"",null,""]
[null,null,null,null,null,null,null,null,null,null,null,null,null,null,null,null,null,null,null,null,null,{"$f":"IF(Fecha!H326=\"\",\"Quitar\",Fecha!H326*1)","v":"Quitar"},null,0,null,"",null,null,"",null,"",null,null,null,"",null,null,"",null,""]
[null,null,null,null,null,null,null,null,null,null,null,null,null,null,null,null,null,null,null,null,null,{"$f":"IF(Fecha!H327=\"\",\"Quitar\",Fecha!H327*1)","v":"Quitar"},null,0,null,"",null,null,"",null,"",null,null,null,"",null,null,"",null,""]
[null,null,null,null,null,null,null,null,null,null,null,null,null,null,null,null,null,null,null,null,null,{"$f":"IF(Fecha!H328=\"\",\"Quitar\",Fecha!H328*1)","v":"Quitar"},null,0,null,"",null,null,"",null,"",null,null,null,"",null,null,"",null,""]
[null,null,null,null,null,null,null,null,null,null,null,null,null,null,null,null,null,null,null,null,null,{"$f":"IF(Fecha!H329=\"\",\"Quitar\",Fecha!H329*1)","v":"Quitar"},null,0,null,"",null,null,"",null,"",null,null,null,"",null,null,"",null,""]
[null,null,null,null,null,null,null,null,null,null,null,null,null,null,null,null,null,null,null,null,null,{"$f":"IF(Fecha!H330=\"\",\"Quitar\",Fecha!H330*1)","v":"Quitar"},null,0,null,"",null,null,"",null,"",null,null,null,"",null,null,"",null,""]
[null,null,null,null,null,null,null,null,null,null,null,null,null,null,null,null,null,null,null,null,null,{"$f":"IF(Fecha!H331=\"\",\"Quitar\",Fecha!H331*1)","v":"Quitar"},null,0,null,"",null,null,"",null,"",null,null,null,"",null,null,"",null,""]
[null,null,null,null,null,null,null,null,null,null,null,null,null,null,null,null,null,null,null,null,null,{"$f":"IF(Fecha!H332=\"\",\"Quitar\",Fecha!H332*1)","v":"Quitar"},null,0,null,"",null,null,"",null,"",null,null,null,"",null,null,"",null,""]
[null,null,null,null,null,null,null,null,null,null,null,null,null,null,null,null,null,null,null,null,null,{"$f":"IF(Fecha!H333=\"\",\"Quitar\",Fecha!H333*1)","v":"Quitar"},null,0,null,"",null,null,"",null,"",null,null,null,"",null,null,"",null,""]
[null,null,null,null,null,null,null,null,null,null,null,null,null,null,null,null,null,null,null,null,null,{"$f":"IF(Fecha!H334=\"\",\"Quitar\",Fecha!H334*1)","v":"Quitar"},null,0,null,"",null,null,"",null,"",null,null,null,"",null,null,"",null,""]
[null,null,null,null,null,null,null,null,null,null,null,null,null,null,null,null,null,null,null,null,null,{"$f":"IF(Fecha!H335=\"\",\"Quitar\",Fecha!H335*1)","v":"Quitar"},null,0,null,"",null,null,"",null,"",null,null,null,"",null,null,"",null,""]
[null,null,null,null,null,null,null,null,null,null,null,null,null,null,null,null,null,null,null,null,null,{"$f":"IF(Fecha!H336=\"\",\"Quitar\",Fecha!H336*1)","v":"Quitar"},null,0,null,"",null,null,"",null,"",null,null,null,"",null,null,"",null,""]
[null,null,null,null,null,null,null,null,null,null,null,null,null,null,null,null,null,null,null,null,null,{"$f":"IF(Fecha!H337=\"\",\"Quitar\",Fecha!H337*1)","v":"Quitar"},null,0,null,"",null,null,"",null,"",null,null,null,"",null,null,"",null,""]
[null,null,null,null,null,null,null,null,null,null,null,null,null,null,null,null,null,null,null,null,null,{"$f":"IF(Fecha!H338=\"\",\"Quitar\",Fecha!H338*1)","v":"Quitar"},null,0,null,"",null,null,"",null,"",null,null,null,"",null,null,"",null,""]
[null,null,null,null,null,null,null,null,null,null,null,null,null,null,null,null,null,null,null,null,null,{"$f":"IF(Fecha!H339=\"\",\"Quitar\",Fecha!H339*1)","v":"Quitar"},null,0,null,"",null,null,"",null,"",null,null,null,"",null,null,"",null,""]
[null,null,null,null,null,null,null,null,null,null,null,null,null,null,null,null,null,null,null,null,null,{"$f":"IF(Fecha!H340=\"\",\"Quitar\",Fecha!H340*1)","v":"Quitar"},null,0,null,"",null,null,"",null,"",null,null,null,"",null,null,"",null,""]
[null,null,null,null,null,null,null,null,null,null,null,null,null,null,null,null,null,null,null,null,null,{"$f":"IF(Fecha!H341=\"\",\"Quitar\",Fecha!H341*1)","v":"Quitar"},null,0,null,"",null,null,"",null,"",null,null,null,"",null,null,"",null,""]
[null,null,null,null,null,null,null,null,null,null,null,null,null,null,null,null,null,null,null,null,null,{"$f":"IF(Fecha!H342=\"\",\"Quitar\",Fecha!H342*1)","v":"Quitar"},null,0,null,"",null,null,"",null,"",null,null,null,"",null,null,"",null,""]
[null,null,null,null,null,null,null,null,null,null,null,null,null,null,null,null,null,null,null,null,null,{"$f":"IF(Fecha!H343=\"\",\"Quitar\",Fecha!H343*1)","v":"Quitar"},null,0,null,"",null,null,"",null,"",null,null,null,"",null,null,"",null,""]
[null,null,null,null,null,null,null,null,null,null,null,null,null,null,null,null,null,null,null,null,null,{"$f":"IF(Fecha!H344=\"\",\"Quitar\",Fecha!H344*1)","v":"Quitar"},null,0,null,"",null,null,"",null,"",null,null,null,"",null,null,"",null,""]
[null,null,null,null,null,null,null,null,null,null,null,null,null,null,null,null,null,null,null,null,null,{"$f":"IF(Fecha!H345=\"\",\"Quitar\",Fecha!H345*1)","v":"Quitar"},null,0,null,"",null,null,"",null,"",null,null,null,"",null,null,"",null,""]
[null,null,null,null,null,null,null,null,null,null,null,null,null,null,null,null,null,null,null,null,null,{"$f":"IF(Fecha!H346=\"\",\"Quitar\",Fecha!H346*1)","v":"Quitar"},null,0,null,"",null,null,"",null,"",null,null,null,"",null,null,"",null,""]
[null,null,null,null,null,null,null,null,null,null,null,null,null,null,null,null,null,null,null,null,null,{"$f":"IF(Fecha!H347=\"\",\"Quitar\",Fecha!H347*1)","v":"Quitar"},null,0,null,"",null,null,"",null,"",null,null,null,"",null,null,"",null,""]
[null,null,null,null,null,null,null,null,null,null,null,null,null,null,null,null,null,null,null,null,null,{"$f":"IF(Fecha!H348=\"\",\"Quitar\",Fecha!H348*1)","v":"Quitar"},null,0,null,"",null,null,"",null,"",null,null,null,"",null,null,"",null,""]
[null,null,null,null,null,null,null,null,null,null,null,null,null,null,null,null,null,null,null,null,null,{"$f":"IF(Fecha!H349=\"\",\"Quitar\",Fecha!H349*1)","v":"Quitar"},null,0,null,"",null,null,"",null,"",null,null,null,"",null,null,"",null,""]
[null,null,null,null,null,null,null,null,null,null,null,null,null,null,null,null,null,null,null,null,null,{"$f":"IF(Fecha!H350=\"\",\"Quitar\",Fecha!H350*1)","v":"Quitar"},null,0,null,"",null,null,"",null,"",null,null,null,"",null,null,"",null,""]
[null,null,null,null,null,null,null,null,null,null,null,null,null,null,null,null,null,null,null,null,null,{"$f":"IF(Fecha!H351=\"\",\"Quitar\",Fecha!H351*1)","v":"Quitar"},null,0,null,"",null,null,"",null,"",null,null,null,"",null,null,"",null,""]
[null,null,null,null,null,null,null,null,null,null,null,null,null,null,null,null,null,null,null,null,null,{"$f":"IF(Fecha!H352=\"\",\"Quitar\",Fecha!H352*1)","v":"Quitar"},null,0,null,"",null,null,"",null,"",null,null,null,"",null,null,"",null,""]
[null,null,null,null,null,null,null,null,null,null,null,null,null,null,null,null,null,null,null,null,null,{"$f":"IF(Fecha!H353=\"\",\"Quitar\",Fecha!H353*1)","v":"Quitar"},null,0,null,"",null,null,"",null,"",null,null,null,"",null,null,"",null,""]
[null,null,null,null,null,null,null,null,null,null,null,null,null,null,null,null,null,null,null,null,null,{"$f":"IF(Fecha!H354=\"\",\"Quitar\",Fecha!H354*1)","v":"Quitar"},null,0,null,"",null,null,"",null,"",null,null,null,"",null,null,"",null,""]
[null,null,null,null,null,null,null,null,null,null,null,null,null,null,null,null,null,null,null,null,null,{"$f":"IF(Fecha!H355=\"\",\"Quitar\",Fecha!H355*1)","v":"Quitar"},null,0,null,"",null,null,"",null,"",null,null,null,"",null,null,"",null,""]
[null,null,null,null,null,null,null,null,null,null,null,null,null,null,null,null,null,null,null,null,null,{"$f":"IF(Fecha!H356=\"\",\"Quitar\",Fecha!H356*1)","v":"Quitar"},null,0,null,"",null,null,"",null,"",null,null,null,"",null,null,"",null,""]
[null,null,null,null,null,null,null,null,null,null,null,null,null,null,null,null,null,null,null,null,null,{"$f":"IF(Fecha!H357=\"\",\"Quitar\",Fecha!H357*1)","v":"Quitar"},null,0,null,"",null,null,"",null,"",null,null,null,"",null,null,"",null,""]
[null,null,null,null,null,null,null,null,null,null,null,null,null,null,null,null,null,null,null,null,null,{"$f":"IF(Fecha!H358=\"\",\"Quitar\",Fecha!H358*1)","v":"Quitar"},null,0,null,"",null,null,"",null,"",null,null,null,"",null,null,"",null,""]
[null,null,null,null,null,null,null,null,null,null,null,null,null,null,null,null,null,null,null,null,null,{"$f":"IF(Fecha!H359=\"\",\"Quitar\",Fecha!H359*1)","v":"Quitar"},null,0,null,"",null,null,"",null,"",null,null,null,"",null,null,"",null,""]
[null,null,null,null,null,null,null,null,null,null,null,null,null,null,null,null,null,null,null,null,null,{"$f":"IF(Fecha!H360=\"\",\"Quitar\",Fecha!H360*1)","v":"Quitar"},null,0,null,"",null,null,"",null,"",null,null,null,"",null,null,"",null,""]
[null,null,null,null,null,null,null,null,null,null,null,null,null,null,null,null,null,null,null,null,null,{"$f":"IF(Fecha!H361=\"\",\"Quitar\",Fecha!H361*1)","v":"Quitar"},null,0,null,"",null,null,"",null,"",null,null,null,"",null,null,"",null,""]
[null,null,null,null,null,null,null,null,null,null,null,null,null,null,null,null,null,null,null,null,null,{"$f":"IF(Fecha!H362=\"\",\"Quitar\",Fecha!H362*1)","v":"Quitar"},null,0,null,"",null,null,"",null,"",null,null,null,"",null,null,"",null,""]
[null,null,null,null,null,null,null,null,null,null,null,null,null,null,null,null,null,null,null,null,null,{"$f":"IF(Fecha!H363=\"\",\"Quitar\",Fecha!H363*1)","v":"Quitar"},null,0,null,"",null,null,"",null,"",null,null,null,"",null,null,"",null,""]
[null,null,null,null,null,null,null,null,null,null,null,null,null,null,null,null,null,null,null,null,null,{"$f":"IF(Fecha!H364=\"\",\"Quitar\",Fecha!H364*1)","v":"Quitar"},null,0,null,"",null,null,"",null,"",null,null,null,"",null,null,"",null,""]
[null,null,null,null,null,null,null,null,null,null,null,null,null,null,null,null,null,null,null,null,null,{"$f":"IF(Fecha!H365=\"\",\"Quitar\",Fecha!H365*1)","v":"Quitar"},null,0,null,"",null,null,"",null,"",null,null,null,"",null,null,"",null,""]
[null,null,null,null,null,null,null,null,null,null,null,null,null,null,null,null,null,null,null,null,null,{"$f":"IF(Fecha!H366=\"\",\"Quitar\",Fecha!H366*1)","v":"Quitar"},null,0,null,"",null,null,"",null,"",null,null,null,"",null,null,"",null,""]
[null,null,null,null,null,null,null,null,null,null,null,null,null,null,null,null,null,null,null,null,null,{"$f":"IF(Fecha!H367=\"\",\"Quitar\",Fecha!H367*1)","v":"Quitar"},null,0,null,"",null,null,"",null,"",null,null,null,"",null,null,"",null,""]
[null,null,null,null,null,null,null,null,null,null,null,null,null,null,null,null,null,null,null,null,null,{"$f":"IF(Fecha!H368=\"\",\"Quitar\",Fecha!H368*1)","v":"Quitar"},null,0,null,"",null,null,"",null,"",null,null,null,"",null,null,"",null,""]
[null,null,null,null,null,null,null,null,null,null,null,null,null,null,null,null,null,null,null,null,null,{"$f":"IF(Fecha!H369=\"\",\"Quitar\",Fecha!H369*1)","v":"Quitar"},null,0,null,"",null,null,"",null,"",null,null,null,"",null,null,"",null,""]
[null,null,null,null,null,null,null,null,null,null,null,null,null,null,null,null,null,null,null,null,null,{"$f":"IF(Fecha!H370=\"\",\"Quitar\",Fecha!H370*1)","v":"Quitar"},null,0,null,"",null,null,"",null,"",null,null,null,"",null,null,"",null,""]
[null,null,null,null,null,null,null,null,null,null,null,null,null,null,null,null,null,null,null,null,null,{"$f":"IF(Fecha!H371=\"\",\"Quitar\",Fecha!H371*1)","v":"Quitar"},null,0,null,"",null,null,"",null,"",null,null,null,"",null,null,"",null,""]
[null,null,null,null,null,null,null,null,null,null,null,null,null,null,null,null,null,null,null,null,null,{"$f":"IF(Fecha!H372=\"\",\"Quitar\",Fecha!H372*1)","v":"Quitar"},null,0,null,"",null,null,"",null,"",null,null,null,"",null,null,"",null,""]
[null,null,null,null,null,null,null,null,null,null,null,null,null,null,null,null,null,null,null,null,null,{"$f":"IF(Fecha!H373=\"\",\"Quitar\",Fecha!H373*1)","v":"Quitar"},null,0,null,"",null,null,"",null,"",null,null,null,"",null,null,"",null,""]
[null,null,null,null,null,null,null,null,null,null,null,null,null,null,null,null,null,null,null,null,null,{"$f":"IF(Fecha!H374=\"\",\"Quitar\",Fecha!H374*1)","v":"Quitar"},null,0,null,"",null,null,"",null,"",null,null,null,"",null,null,"",null,""]
[null,null,null,null,null,null,null,null,null,null,null,null,null,null,null,null,null,null,null,null,null,{"$f":"IF(Fecha!H375=\"\",\"Quitar\",Fecha!H375*1)","v":"Quitar"},null,0,null,"",null,null,"",null,"",null,null,null,"",null,null,"",null,""]
[null,null,null,null,null,null,null,null,null,null,null,null,null,null,null,null,null,null,null,null,null,{"$f":"IF(Fecha!H376=\"\",\"Quitar\",Fecha!H376*1)","v":"Quitar"},null,0,null,"",null,null,"",null,"",null,null,null,"",null,null,"",null,""]
[null,null,null,null,null,null,null,null,null,null,null,null,null,null,null,null,null,null,null,null,null,{"$f":"IF(Fecha!H377=\"\",\"Quitar\",Fecha!H377*1)","v":"Quitar"},null,0,null,"",null,null,"",null,"",null,null,null,"",null,null,"",null,""]
[null,null,null,null,null,null,null,null,null,null,null,null,null,null,null,null,null,null,null,null,null,{"$f":"IF(Fecha!H378=\"\",\"Quitar\",Fecha!H378*1)","v":"Quitar"},null,0,null,"",null,null,"",null,"",null,null,null,"",null,null,"",null,""]
[null,null,null,null,null,null,null,null,null,null,null,null,null,null,null,null,null,null,null,null,null,{"$f":"IF(Fecha!H379=\"\",\"Quitar\",Fecha!H379*1)","v":"Quitar"},null,0,null,"",null,null,"",null,"",null,null,null,"",null,null,"",null,""]
[null,null,null,null,null,null,null,null,null,null,null,null,null,null,null,null,null,null,null,null,null,{"$f":"IF(Fecha!H380=\"\",\"Quitar\",Fecha!H380*1)","v":"Quitar"},null,0,null,"",null,null,"",null,"",null,null,null,"",null,null,"",null,""]
[null,null,null,null,null,null,null,null,null,null,null,null,null,null,null,null,null,null,null,null,null,{"$f":"IF(Fecha!H381=\"\",\"Quitar\",Fecha!H381*1)","v":"Quitar"},null,0,null,"",null,null,"",null,"",null,null,null,"",null,null,"",null,""]
[null,null,null,null,null,null,null,null,null,null,null,null,null,null,null,null,null,null,null,null,null,{"$f":"IF(Fecha!H382=\"\",\"Quitar\",Fecha!H382*1)","v":"Quitar"},null,0,null,"",null,null,"",null,"",null,null,null,"",null,null,"",null,""]
[null,null,null,null,null,null,null,null,null,null,null,null,null,null,null,null,null,null,null,null,null,{"$f":"IF(Fecha!H383=\"\",\"Quitar\",Fecha!H383*1)","v":"Quitar"},null,0,null,"",null,null,"",null,"",null,null,null,"",null,null,"",null,""]
[null,null,null,null,null,null,null,null,null,null,null,null,null,null,null,null,null,null,null,null,null,{"$f":"IF(Fecha!H384=\"\",\"Quitar\",Fecha!H384*1)","v":"Quitar"},null,0,null,"",null,null,"",null,"",null,null,null,"",null,null,"",null,""]
[null,null,null,null,null,null,null,null,null,null,null,null,null,null,null,null,null,null,null,null,null,{"$f":"IF(Fecha!H385=\"\",\"Quitar\",Fecha!H385*1)","v":"Quitar"},null,0,null,"",null,null,"",null,"",null,null,null,"",null,null,"",null,""]
[null,null,null,null,null,null,null,null,null,null,null,null,null,null,null,null,null,null,null,null,null,{"$f":"IF(Fecha!H386=\"\",\"Quitar\",Fecha!H386*1)","v":"Quitar"},null,0,null,"",null,null,"",null,"",null,null,null,"",null,null,"",null,""]
[null,null,null,null,null,null,null,null,null,null,null,null,null,null,null,null,null,null,null,null,null,{"$f":"IF(Fecha!H387=\"\",\"Quitar\",Fecha!H387*1)","v":"Quitar"},null,{"$f":"IF(AND(A387=\"\",B387=\"\",C387=\"\",D387=\"\",E387=\"\",F387=\"\",G387=\"\",H387=\"\",I387=\"\",P387=\"\",Q387=\"\")=TRUE,0,1)","v":0},null,{"$f":"IF(G387<>\"\",((TODAY()-G387)/365.25),\"\")","v":""},null,null,{"$f":"IF(G387=\"\",\"\",2)","v":""},null,{"$f":"IF(A387=\"\",\"\",CONCATENATE(A387,B387))","v":""},null,null,null,{"$f":"IF(Y387<>\"\",ROUNDUP(((TODAY()-Y387)/365.25),0),\"\")","v":""},null,null,{"$f":"IF(Y387=\"\",\"\",2)","v":""},null,{"$f":"IF(P387=\"\",\"\",CONCATENATE(P387,Q387))","v":""}]
[null,null,null,null,null,null,null,null,null,null,null,null,null,null,null,null,null,null,null,null,null,{"$f":"IF(Fecha!H388=\"\",\"Quitar\",Fecha!H388*1)","v":"Quitar"},null,0,null,"",null,null,"",null,"",null,null,null,"",null,null,"",null,""]
[null,null,null,null,null,null,null,null,null,null,null,null,null,null,null,null,null,null,null,null,null,{"$f":"IF(Fecha!H389=\"\",\"Quitar\",Fecha!H389*1)","v":"Quitar"},null,0,null,"",null,null,"",null,"",null,null,null,"",null,null,"",null,""]
[null,null,null,null,null,null,null,null,null,null,null,null,null,null,null,null,null,null,null,null,null,{"$f":"IF(Fecha!H390=\"\",\"Quitar\",Fecha!H390*1)","v":"Quitar"},null,0,null,"",null,null,"",null,"",null,null,null,"",null,null,"",null,""]
[null,null,null,null,null,null,null,null,null,null,null,null,null,null,null,null,null,null,null,null,null,{"$f":"IF(Fecha!H391=\"\",\"Quitar\",Fecha!H391*1)","v":"Quitar"},null,0,null,"",null,null,"",null,"",null,null,null,"",null,null,"",null,""]
[null,null,null,null,null,null,null,null,null,null,null,null,null,null,null,null,null,null,null,null,null,{"$f":"IF(Fecha!H392=\"\",\"Quitar\",Fecha!H392*1)","v":"Quitar"},null,0,null,"",null,null,"",null,"",null,null,null,"",null,null,"",null,""]
[null,null,null,null,null,null,null,null,null,null,null,null,null,null,null,null,null,null,null,null,null,{"$f":"IF(Fecha!H393=\"\",\"Quitar\",Fecha!H393*1)","v":"Quitar"},null,0,null,"",null,null,"",null,"",null,null,null,"",null,null,"",null,""]
[null,null,null,null,null,null,null,null,null,null,null,null,null,null,null,null,null,null,null,null,null,{"$f":"IF(Fecha!H394=\"\",\"Quitar\",Fecha!H394*1)","v":"Quitar"},null,0,null,"",null,null,"",null,"",null,null,null,"",null,null,"",null,""]
[null,null,null,null,null,null,null,null,null,null,null,null,null,null,null,null,null,null,null,null,null,{"$f":"IF(Fecha!H395=\"\",\"Quitar\",Fecha!H395*1)","v":"Quitar"},null,0,null,"",null,null,"",null,"",null,null,null,"",null,null,"",null,""]
[null,null,null,null,null,null,null,null,null,null,null,null,null,null,null,null,null,null,null,null,null,{"$f":"IF(Fecha!H396=\"\",\"Quitar\",Fecha!H396*1)","v":"Quitar"},null,0,null,"",null,null,"",null,"",null,null,null,"",null,null,"",null,""]
[null,null,null,null,null,null,null,null,null,null,null,null,null,null,null,null,null,null,null,null,null,{"$f":"IF(Fecha!H397=\"\",\"Quitar\",Fecha!H397*1)","v":"Quitar"},null,0,null,"",null,null,"",null,"",null,null,null,"",null,null,"",null,""]
[null,null,null,null,null,null,null,null,null,null,null,null,null,null,null,null,null,null,null,null,null,{"$f":"IF(Fecha!H398=\"\",\"Quitar\",Fecha!H398*1)","v":"Quitar"},null,0,null,"",null,null,"",null,"",null,null,null,"",null,null,"",null,""]
[null,null,null,null,null,null,null,null,null,null,null,null,null,null,null,null,null,null,null,null,null,{"$f":"IF(Fecha!H399=\"\",\"Quitar\",Fecha!H399*1)","v":"Quitar"},null,0,null,"",null,null,"",null,"",null,null,null,"",null,null,"",null,""]
[null,null,null,null,null,null,null,null,null,null,null,null,null,null,null,null,null,null,null,null,null,{"$f":"IF(Fecha!H400=\"\",\"Quitar\",Fecha!H400*1)","v":"Quitar"},null,0,null,"",null,null,"",null,"",null,null,null,"",null,null,"",null,""]
[null,null,null,null,null,null,null,null,null,null,null,null,null,null,null,null,null,null,null,null,null,{"$f":"IF(Fecha!H401=\"\",\"Quitar\",Fecha!H401*1)","v":"Quitar"},null,0,null,"",null,null,"",null,"",null,null,null,"",null,null,"",null,""]
[null,null,null,null,null,null,null,null,null,null,null,null,null,null,null,null,null,null,null,null,null,{"$f":"IF(Fecha!H402=\"\",\"Quitar\",Fecha!H402*1)","v":"Quitar"},null,0,null,"",null,null,"",null,"",null,null,null,"",null,null,"",null,""]
[null,null,null,null,null,null,null,null,null,null,null,null,null,null,null,null,null,null,null,null,null,{"$f":"IF(Fecha!H403=\"\",\"Quitar\",Fecha!H403*1)","v":"Quitar"},null,0,null,"",null,null,"",null,"",null,null,null,"",null,null,"",null,""]
[null,null,null,null,null,null,null,null,null,null,null,null,null,null,null,null,null,null,null,null,null,{"$f":"IF(Fecha!H404=\"\",\"Quitar\",Fecha!H404*1)","v":"Quitar"},null,0,null,"",null,null,"",null,"",null,null,null,"",null,null,"",null,""]
[null,null,null,null,null,null,null,null,null,null,null,null,null,null,null,null,null,null,null,null,null,{"$f":"IF(Fecha!H405=\"\",\"Quitar\",Fecha!H405*1)","v":"Quitar"},null,0,null,"",null,null,"",null,"",null,null,null,"",null,null,"",null,""]
[null,null,null,null,null,null,null,null,null,null,null,null,null,null,null,null,null,null,null,null,null,{"$f":"IF(Fecha!H406=\"\",\"Quitar\",Fecha!H406*1)","v":"Quitar"},null,0,null,"",null,null,"",null,"",null,null,null,"",null,null,"",null,""]
[null,null,null,null,null,null,null,null,null,null,null,null,null,null,null,null,null,null,null,null,null,{"$f":"IF(Fecha!H407=\"\",\"Quitar\",Fecha!H407*1)","v":"Quitar"},null,0,null,"",null,null,"",null,"",null,null,null,"",null,null,"",null,""]
[null,null,null,null,null,null,null,null,null,null,null,null,null,null,null,null,null,null,null,null,null,{"$f":"IF(Fecha!H408=\"\",\"Quitar\",Fecha!H408*1)","v":"Quitar"},null,0,null,"",null,null,"",null,"",null,null,null,"",null,null,"",null,""]
[null,null,null,null,null,null,null,null,null,null,null,null,null,null,null,null,null,null,null,null,null,{"$f":"IF(Fecha!H409=\"\",\"Quitar\",Fecha!H409*1)","v":"Quitar"},null,0,null,"",null,null,"",null,"",null,null,null,"",null,null,"",null,""]
[null,null,null,null,null,null,null,null,null,null,null,null,null,null,null,null,null,null,null,null,null,{"$f":"IF(Fecha!H410=\"\",\"Quitar\",Fecha!H410*1)","v":"Quitar"},null,0,null,"",null,null,"",null,"",null,null,null,"",null,null,"",null,""]
[null,null,null,null,null,null,null,null,null,null,null,null,null,null,null,null,null,null,null,null,null,{"$f":"IF(Fecha!H411=\"\",\"Quitar\",Fecha!H411*1)","v":"Quitar"},null,0,null,"",null,null,"",null,"",null,null,null,"",null,null,"",null,""]
[null,null,null,null,null,null,null,null,null,null,null,null,null,null,null,null,null,null,null,null,null,{"$f":"IF(Fecha!H412=\"\",\"Quitar\",Fecha!H412*1)","v":"Quitar"},null,0,null,"",null,null,"",null,"",null,null,null,"",null,null,"",null,""]
[null,null,null,null,null,null,null,null,null,null,null,null,null,null,null,null,null,null,null,null,null,{"$f":"IF(Fecha!H413=\"\",\"Quitar\",Fecha!H413*1)","v":"Quitar"},null,0,null,"",null,null,"",null,"",null,null,null,"",null,null,"",null,""]
[null,null,null,null,null,null,null,null,null,null,null,null,null,null,null,null,null,null,null,null,null,{"$f":"IF(Fecha!H414=\"\",\"Quitar\",Fecha!H414*1)","v":"Quitar"},null,0,null,"",null,null,"",null,"",null,null,null,"",null,null,"",null,""]
[null,null,null,null,null,null,null,null,null,null,null,null,null,null,null,null,null,null,null,null,null,{"$f":"IF(Fecha!H415=\"\",\"Quitar\",Fecha!H415*1)","v":"Quitar"},null,0,null,"",null,null,"",null,"",null,null,null,"",null,null,"",null,""]
[null,null,null,null,null,null,null,null,null,null,null,null,null,null,null,null,null,null,null,null,null,{"$f":"IF(Fecha!H416=\"\",\"Quitar\",Fecha!H416*1)","v":"Quitar"},null,0,null,"",null,null,"",null,"",null,null,null,"",null,null,"",null,""]
[null,null,null,null,null,null,null,null,null,null,null,null,null,null,null,null,null,null,null,null,null,{"$f":"IF(Fecha!H417=\"\",\"Quitar\",Fecha!H417*1)","v":"Quitar"},null,0,null,"",null,null,"",null,"",null,null,null,"",null,null,"",null,""]
[null,null,null,null,null,null,null,null,null,null,null,null,null,null,null,null,null,null,null,null,null,{"$f":"IF(Fecha!H418=\"\",\"Quitar\",Fecha!H418*1)","v":"Quitar"},null,0,null,"",null,null,"",null,"",null,null,null,"",null,null,"",null,""]
[null,null,null,null,null,null,null,null,null,null,null,null,null,null,null,null,null,null,null,null,null,{"$f":"IF(Fecha!H419=\"\",\"Quitar\",Fecha!H419*1)","v":"Quitar"},null,0,null,"",null,null,"",null,"",null,null,null,"",null,null,"",null,""]
[null,null,null,null,null,null,null,null,null,null,null,null,null,null,null,null,null,null,null,null,null,{"$f":"IF(Fecha!H420=\"\",\"Quitar\",Fecha!H420*1)","v":"Quitar"},null,0,null,"",null,null,"",null,"",null,null,null,"",null,null,"",null,""]
[null,null,null,null,null,null,null,null,null,null,null,null,null,null,null,null,null,null,null,null,null,{"$f":"IF(Fecha!H421=\"\",\"Quitar\",Fecha!H421*1)","v":"Quitar"},null,0,null,"",null,null,"",null,"",null,null,null,"",null,null,"",null,""]
[null,null,null,null,null,null,null,null,null,null,null,null,null,null,null,null,null,null,null,null,null,{"$f":"IF(Fecha!H422=\"\",\"Quitar\",Fecha!H422*1)","v":"Quitar"},null,0,null,"",null,null,"",null,"",null,null,null,"",null,null,"",null,""]
[null,null,null,null,null,null,null,null,null,null,null,null,null,null,null,null,null,null,null,null,null,{"$f":"IF(Fecha!H423=\"\",\"Quitar\",Fecha!H423*1)","v":"Quitar"},null,0,null,"",null,null,"",null,"",null,null,null,"",null,null,"",null,""]
[null,null,null,null,null,null,null,null,null,null,null,null,null,null,null,null,null,null,null,null,null,{"$f":"IF(Fecha!H424=\"\",\"Quitar\",Fecha!H424*1)","v":"Quitar"},null,0,null,"",null,null,"",null,"",null,null,null,"",null,null,"",null,""]
[null,null,null,null,null,null,null,null,null,null,null,null,null,null,null,null,null,null,null,null,null,{"$f":"IF(Fecha!H425=\"\",\"Quitar\",Fecha!H425*1)","v":"Quitar"},null,0,null,"",null,null,"",null,"",null,null,null,"",null,null,"",null,""]
[null,null,null,null,null,null,null,null,null,null,null,null,null,null,null,null,null,null,null,null,null,{"$f":"IF(Fecha!H426=\"\",\"Quitar\",Fecha!H426*1)","v":"Quitar"},null,0,null,"",null,null,"",null,"",null,null,null,"",null,null,"",null,""]
[null,null,null,null,null,null,null,null,null,null,null,null,null,null,null,null,null,null,null,null,null,{"$f":"IF(Fecha!H427=\"\",\"Quitar\",Fecha!H427*1)","v":"Quitar"},null,0,null,"",null,null,"",null,"",null,null,null,"",null,null,"",null,""]
[null,null,null,null,null,null,null,null,null,null,null,null,null,null,null,null,null,null,null,null,null,{"$f":"IF(Fecha!H428=\"\",\"Quitar\",Fecha!H428*1)","v":"Quitar"},null,0,null,"",null,null,"",null,"",null,null,null,"",null,null,"",null,""]
[null,null,null,null,null,null,null,null,null,null,null,null,null,null,null,null,null,null,null,null,null,{"$f":"IF(Fecha!H429=\"\",\"Quitar\",Fecha!H429*1)","v":"Quitar"},null,0,null,"",null,null,"",null,"",null,null,null,"",null,null,"",null,""]
[null,null,null,null,null,null,null,null,null,null,null,null,null,null,null,null,null,null,null,null,null,{"$f":"IF(Fecha!H430=\"\",\"Quitar\",Fecha!H430*1)","v":"Quitar"},null,0,null,"",null,null,"",null,"",null,null,null,"",null,null,"",null,""]
[null,null,null,null,null,null,null,null,null,null,null,null,null,null,null,null,null,null,null,null,null,{"$f":"IF(Fecha!H431=\"\",\"Quitar\",Fecha!H431*1)","v":"Quitar"},null,0,null,"",null,null,"",null,"",null,null,null,"",null,null,"",null,""]
[null,null,null,null,null,null,null,null,null,null,null,null,null,null,null,null,null,null,null,null,null,{"$f":"IF(Fecha!H432=\"\",\"Quitar\",Fecha!H432*1)","v":"Quitar"},null,0,null,"",null,null,"",null,"",null,null,null,"",null,null,"",null,""]
[null,null,null,null,null,null,null,null,null,null,null,null,null,null,null,null,null,null,null,null,null,{"$f":"IF(Fecha!H433=\"\",\"Quitar\",Fecha!H433*1)","v":"Quitar"},null,0,null,"",null,null,"",null,"",null,null,null,"",null,null,"",null,""]
[null,null,null,null,null,null,null,null,null,null,null,null,null,null,null,null,null,null,null,null,null,{"$f":"IF(Fecha!H434=\"\",\"Quitar\",Fecha!H434*1)","v":"Quitar"},null,0,null,"",null,null,"",null,"",null,null,null,"",null,null,"",null,""]
[null,null,null,null,null,null,null,null,null,null,null,null,null,null,null,null,null,null,null,null,null,{"$f":"IF(Fecha!H435=\"\",\"Quitar\",Fecha!H435*1)","v":"Quitar"},null,0,null,"",null,null,"",null,"",null,null,null,"",null,null,"",null,""]
[null,null,null,null,null,null,null,null,null,null,null,null,null,null,null,null,null,null,null,null,null,{"$f":"IF(Fecha!H436=\"\",\"Quitar\",Fecha!H436*1)","v":"Quitar"},null,0,null,"",null,null,"",null,"",null,null,null,"",null,null,"",null,""]
[null,null,null,null,null,null,null,null,null,null,null,null,null,null,null,null,null,null,null,null,null,{"$f":"IF(Fecha!H437=\"\",\"Quitar\",Fecha!H437*1)","v":"Quitar"},null,0,null,"",null,null,"",null,"",null,null,null,"",null,null,"",null,""]
[null,null,null,null,null,null,null,null,null,null,null,null,null,null,null,null,null,null,null,null,null,{"$f":"IF(Fecha!H438=\"\",\"Quitar\",Fecha!H438*1)","v":"Quitar"},null,0,null,"",null,null,"",null,"",null,null,null,"",null,null,"",null,""]
[null,null,null,null,null,null,null,null,null,null,null,null,null,null,null,null,null,null,null,null,null,{"$f":"IF(Fecha!H439=\"\",\"Quitar\",Fecha!H439*1)","v":"Quitar"},null,0,null,"",null,null,"",null,"",null,null,null,"",null,null,"",null,""]
[null,null,null,null,null,null,null,null,null,null,null,null,null,null,null,null,null,null,null,null,null,{"$f":"IF(Fecha!H440=\"\",\"Quitar\",Fecha!H440*1)","v":"Quitar"},null,0,null,"",null,null,"",null,"",null,null,null,"",null,null,"",null,""]
[null,null,null,null,null,null,null,null,null,null,null,null,null,null,null,null,null,null,null,null,null,{"$f":"IF(Fecha!H441=\"\",\"Quitar\",Fecha!H441*1)","v":"Quitar"},null,0,null,"",null,null,"",null,"",null,null,null,"",null,null,"",null,""]
[null,null,null,null,null,null,null,null,null,null,null,null,null,null,null,null,null,null,null,null,null,{"$f":"IF(Fecha!H442=\"\",\"Quitar\",Fecha!H442*1)","v":"Quitar"},null,0,null,"",null,null,"",null,"",null,null,null,"",null,null,"",null,""]
[null,null,null,null,null,null,null,null,null,null,null,null,null,null,null,null,null,null,null,null,null,{"$f":"IF(Fecha!H443=\"\",\"Quitar\",Fecha!H443*1)","v":"Quitar"},null,0,null,"",null,null,"",null,"",null,null,null,"",null,null,"",null,""]
[null,null,null,null,null,null,null,null,null,null,null,null,null,null,null,null,null,null,null,null,null,{"$f":"IF(Fecha!H444=\"\",\"Quitar\",Fecha!H444*1)","v":"Quitar"},null,0,null,"",null,null,"",null,"",null,null,null,"",null,null,"",null,""]
[null,null,null,null,null,null,null,null,null,null,null,null,null,null,null,null,null,null,null,null,null,{"$f":"IF(Fecha!H445=\"\",\"Quitar\",Fecha!H445*1)","v":"Quitar"},null,0,null,"",null,null,"",null,"",null,null,null,"",null,null,"",null,""]
[null,null,null,null,null,null,null,null,null,null,null,null,null,null,null,null,null,null,null,null,null,{"$f":"IF(Fecha!H446=\"\",\"Quitar\",Fecha!H446*1)","v":"Quitar"},null,0,null,"",null,null,"",null,"",null,null,null,"",null,null,"",null,""]
[null,null,null,null,null,null,null,null,null,null,null,null,null,null,null,null,null,null,null,null,null,{"$f":"IF(Fecha!H447=\"\",\"Quitar\",Fecha!H447*1)","v":"Quitar"},null,0,null,"",null,null,"",null,"",null,null,null,"",null,null,"",null,""]
[null,null,null,null,null,null,null,null,null,null,null,null,null,null,null,null,null,null,null,null,null,{"$f":"IF(Fecha!H448=\"\",\"Quitar\",Fecha!H448*1)","v":"Quitar"},null,0,null,"",null,null,"",null,"",null,null,null,"",null,null,"",null,""]
[null,null,null,null,null,null,null,null,null,null,null,null,null,null,null,null,null,null,null,null,null,{"$f":"IF(Fecha!H449=\"\",\"Quitar\",Fecha!H449*1)","v":"Quitar"},null,0,null,"",null,null,"",null,"",null,null,null,"",null,null,"",null,""]
[null,null,null,null,null,null,null,null,null,null,null,null,null,null,null,null,null,null,null,null,null,{"$f":"IF(Fecha!H450=\"\",\"Quitar\",Fecha!H450*1)","v":"Quitar"},null,0,null,"",null,null,"",null,"",null,null,null,"",null,null,"",null,""]
[null,null,null,null,null,null,null,null,null,null,null,null,null,null,null,null,null,null,null,null,null,{"$f":"IF(Fecha!H451=\"\",\"Quitar\",Fecha!H451*1)","v":"Quitar"},null,{"$f":"IF(AND(A451=\"\",B451=\"\",C451=\"\",D451=\"\",E451=\"\",F451=\"\",G451=\"\",H451=\"\",I451=\"\",P451=\"\",Q451=\"\")=TRUE,0,1)","v":0},null,{"$f":"IF(G451<>\"\",((TODAY()-G451)/365.25),\"\")","v":""},null,null,{"$f":"IF(G451=\"\",\"\",2)","v":""},null,{"$f":"IF(A451=\"\",\"\",CONCATENATE(A451,B451))","v":""},null,null,null,{"$f":"IF(Y451<>\"\",ROUNDUP(((TODAY()-Y451)/365.25),0),\"\")","v":""},null,null,{"$f":"IF(Y451=\"\",\"\",2)","v":""},null,{"$f":"IF(P451=\"\",\"\",CONCATENATE(P451,Q451))","v":""}]
[null,null,null,null,null,null,null,null,null,null,null,null,null,null,null,null,null,null,null,null,null,{"$f":"IF(Fecha!H452=\"\",\"Quitar\",Fecha!H452*1)","v":"Quitar"},null,0,null,"",null,null,"",null,"",null,null,null,"",null,null,"",null,""]
[null,null,null,null,null,null,null,null,null,null,null,null,null,null,null,null,null,null,null,null,null,{"$f":"IF(Fecha!H453=\"\",\"Quitar\",Fecha!H453*1)","v":"Quitar"},null,0,null,"",null,null,"",null,"",null,null,null,"",null,null,"",null,""]
[null,null,null,null,null,null,null,null,null,null,null,null,null,null,null,null,null,null,null,null,null,{"$f":"IF(Fecha!H454=\"\",\"Quitar\",Fecha!H454*1)","v":"Quitar"},null,0,null,"",null,null,"",null,"",null,null,null,"",null,null,"",null,""]
[null,null,null,null,null,null,null,null,null,null,null,null,null,null,null,null,null,null,null,null,null,{"$f":"IF(Fecha!H455=\"\",\"Quitar\",Fecha!H455*1)","v":"Quitar"},null,0,null,"",null,null,"",null,"",null,null,null,"",null,null,"",null,""]
[null,null,null,null,null,null,null,null,null,null,null,null,null,null,null,null,null,null,null,null,null,{"$f":"IF(Fecha!H456=\"\",\"Quitar\",Fecha!H456*1)","v":"Quitar"},null,0,null,"",null,null,"",null,"",null,null,null,"",null,null,"",null,""]
[null,null,null,null,null,null,null,null,null,null,null,null,null,null,null,null,null,null,null,null,null,{"$f":"IF(Fecha!H457=\"\",\"Quitar\",Fecha!H457*1)","v":"Quitar"},null,0,null,"",null,null,"",null,"",null,null,null,"",null,null,"",null,""]
[null,null,null,null,null,null,null,null,null,null,null,null,null,null,null,null,null,null,null,null,null,{"$f":"IF(Fecha!H458=\"\",\"Quitar\",Fecha!H458*1)","v":"Quitar"},null,0,null,"",null,null,"",null,"",null,null,null,"",null,null,"",null,""]
[null,null,null,null,null,null,null,null,null,null,null,null,null,null,null,null,null,null,null,null,null,{"$f":"IF(Fecha!H459=\"\",\"Quitar\",Fecha!H459*1)","v":"Quitar"},null,0,null,"",null,null,"",null,"",null,null,null,"",null,null,"",null,""]
[null,null,null,null,null,null,null,null,null,null,null,null,null,null,null,null,null,null,null,null,null,{"$f":"IF(Fecha!H460=\"\",\"Quitar\",Fecha!H460*1)","v":"Quitar"},null,0,null,"",null,null,"",null,"",null,null,null,"",null,null,"",null,""]
[null,null,null,null,null,null,null,null,null,null,null,null,null,null,null,null,null,null,null,null,null,{"$f":"IF(Fecha!H461=\"\",\"Quitar\",Fecha!H461*1)","v":"Quitar"},null,0,null,"",null,null,"",null,"",null,null,null,"",null,null,"",null,""]
[null,null,null,null,null,null,null,null,null,null,null,null,null,null,null,null,null,null,null,null,null,{"$f":"IF(Fecha!H462=\"\",\"Quitar\",Fecha!H462*1)","v":"Quitar"},null,0,null,"",null,null,"",null,"",null,null,null,"",null,null,"",null,""]
[null,null,null,null,null,null,null,null,null,null,null,null,null,null,null,null,null,null,null,null,null,{"$f":"IF(Fecha!H463=\"\",\"Quitar\",Fecha!H463*1)","v":"Quitar"},null,0,null,"",null,null,"",null,"",null,null,null,"",null,null,"",null,""]
[null,null,null,null,null,null,null,null,null,null,null,null,null,null,null,null,null,null,null,null,null,{"$f":"IF(Fecha!H464=\"\",\"Quitar\",Fecha!H464*1)","v":"Quitar"},null,0,null,"",null,null,"",null,"",null,null,null,"",null,null,"",null,""]
[null,null,null,null,null,null,null,null,null,null,null,null,null,null,null,null,null,null,null,null,null,{"$f":"IF(Fecha!H465=\"\",\"Quitar\",Fecha!H465*1)","v":"Quitar"},null,0,null,"",null,null,"",null,"",null,null,null,"",null,null,"",null,""]
[null,null,null,null,null,null,null,null,null,null,null,null,null,null,null,null,null,null,null,null,null,{"$f":"IF(Fecha!H466=\"\",\"Quitar\",Fecha!H466*1)","v":"Quitar"},null,0,null,"",null,null,"",null,"",null,null,null,"",null,null,"",null,""]
[null,null,null,null,null,null,null,null,null,null,null,null,null,null,null,null,null,null,null,null,null,{"$f":"IF(Fecha!H467=\"\",\"Quitar\",Fecha!H467*1)","v":"Quitar"},null,0,null,"",null,null,"",null,"",null,null,null,"",null,null,"",null,""]
[null,null,null,null,null,null,null,null,null,null,null,null,null,null,null,null,null,null,null,null,null,{"$f":"IF(Fecha!H468=\"\",\"Quitar\",Fecha!H468*1)","v":"Quitar"},null,0,null,"",null,null,"",null,"",null,null,null,"",null,null,"",null,""]
[null,null,null,null,null,null,null,null,null,null,null,null,null,null,null,null,null,null,null,null,null,{"$f":"IF(Fecha!H469=\"\",\"Quitar\",Fecha!H469*1)","v":"Quitar"},null,0,null,"",null,null,"",null,"",null,null,null,"",null,null,"",null,""]
[null,null,null,null,null,null,null,null,null,null,null,null,null,null,null,null,null,null,null,null,null,{"$f":"IF(Fecha!H470=\"\",\"Quitar\",Fecha!H470*1)","v":"Quitar"},null,0,null,"",null,null,"",null,"",null,null,null,"",null,null,"",null,""]
[null,null,null,null,null,null,null,null,null,null,null,null,null,null,null,null,null,null,null,null,null,{"$f":"IF(Fecha!H471=\"\",\"Quitar\",Fecha!H471*1)","v":"Quitar"},null,0,null,"",null,null,"",null,"",null,null,null,"",null,null,"",null,""]
[null,null,null,null,null,null,null,null,null,null,null,null,null,null,null,null,null,null,null,null,null,{"$f":"IF(Fecha!H472=\"\",\"Quitar\",Fecha!H472*1)","v":"Quitar"},null,0,null,"",null,null,"",null,"",null,null,null,"",null,null,"",null,""]
[null,null,null,null,null,null,null,null,null,null,null,null,null,null,null,null,null,null,null,null,null,{"$f":"IF(Fecha!H473=\"\",\"Quitar\",Fecha!H473*1)","v":"Quitar"},null,0,null,"",null,null,"",null,"",null,null,null,"",null,null,"",null,""]
[null,null,null,null,null,null,null,null,null,null,null,null,null,null,null,null,null,null,null,null,null,{"$f":"IF(Fecha!H474=\"\",\"Quitar\",Fecha!H474*1)","v":"Quitar"},null,0,null,"",null,null,"",null,"",null,null,null,"",null,null,"",null,""]
[null,null,null,null,null,null,null,null,null,null,null,null,null,null,null,null,null,null,null,null,null,{"$f":"IF(Fecha!H475=\"\",\"Quitar\",Fecha!H475*1)","v":"Quitar"},null,0,null,"",null,null,"",null,"",null,null,null,"",null,null,"",null,""]
[null,null,null,null,null,null,null,null,null,null,null,null,null,null,null,null,null,null,null,null,null,{"$f":"IF(Fecha!H476=\"\",\"Quitar\",Fecha!H476*1)","v":"Quitar"},null,0,null,"",null,null,"",null,"",null,null,null,"",null,null,"",null,""]
[null,null,null,null,null,null,null,null,null,null,null,null,null,null,null,null,null,null,null,null,null,{"$f":"IF(Fecha!H477=\"\",\"Quitar\",Fecha!H477*1)","v":"Quitar"},null,0,null,"",null,null,"",null,"",null,null,null,"",null,null,"",null,""]
[null,null,null,null,null,null,null,null,null,null,null,null,null,null,null,null,null,null,null,null,null,{"$f":"IF(Fecha!H478=\"\",\"Quitar\",Fecha!H478*1)","v":"Quitar"},null,0,null,"",null,null,"",null,"",null,null,null,"",null,null,"",null,""]
[null,null,null,null,null,null,null,null,null,null,null,null,null,null,null,null,null,null,null,null,null,{"$f":"IF(Fecha!H479=\"\",\"Quitar\",Fecha!H479*1)","v":"Quitar"},null,0,null,"",null,null,"",null,"",null,null,null,"",null,null,"",null,""]
[null,null,null,null,null,null,null,null,null,null,null,null,null,null,null,null,null,null,null,null,null,{"$f":"IF(Fecha!H480=\"\",\"Quitar\",Fecha!H480*1)","v":"Quitar"},null,0,null,"",null,null,"",null,"",null,null,null,"",null,null,"",null,""]
[null,null,null,null,null,null,null,null,null,null,null,null,null,null,null,null,null,null,null,null,null,{"$f":"IF(Fecha!H481=\"\",\"Quitar\",Fecha!H481*1)","v":"Quitar"},null,0,null,"",null,null,"",null,"",null,null,null,"",null,null,"",null,""]
[null,null,null,null,null,null,null,null,null,null,null,null,null,null,null,null,null,null,null,null,null,{"$f":"IF(Fecha!H482=\"\",\"Quitar\",Fecha!H482*1)","v":"Quitar"},null,0,null,"",null,null,"",null,"",null,null,null,"",null,null,"",null,""]
[null,null,null,null,null,null,null,null,null,null,null,null,null,null,null,null,null,null,null,null,null,{"$f":"IF(Fecha!H483=\"\",\"Quitar\",Fecha!H483*1)","v":"Quitar"},null,0,null,"",null,null,"",null,"",null,null,null,"",null,null,"",null,""]
[null,null,null,null,null,null,null,null,null,null,null,null,null,null,null,null,null,null,null,null,null,{"$f":"IF(Fecha!H484=\"\",\"Quitar\",Fecha!H484*1)","v":"Quitar"},null,0,null,"",null,null,"",null,"",null,null,null,"",null,null,"",null,""]
[null,null,null,null,null,null,null,null,null,null,null,null,null,null,null,null,null,null,null,null,null,{"$f":"IF(Fecha!H485=\"\",\"Quitar\",Fecha!H485*1)","v":"Quitar"},null,0,null,"",null,null,"",null,"",null,null,null,"",null,null,"",null,""]
[null,null,null,null,null,null,null,null,null,null,null,null,null,null,null,null,null,null,null,null,null,{"$f":"IF(Fecha!H486=\"\",\"Quitar\",Fecha!H486*1)","v":"Quitar"},null,0,null,"",null,null,"",null,"",null,null,null,"",null,null,"",null,""]
[null,null,null,null,null,null,null,null,null,null,null,null,null,null,null,null,null,null,null,null,null,{"$f":"IF(Fecha!H487=\"\",\"Quitar\",Fecha!H487*1)","v":"Quitar"},null,0,null,"",null,null,"",null,"",null,null,null,"",null,null,"",null,""]
[null,null,null,null,null,null,null,null,null,null,null,null,null,null,null,null,null,null,null,null,null,{"$f":"IF(Fecha!H488=\"\",\"Quitar\",Fecha!H488*1)","v":"Quitar"},null,0,null,"",null,null,"",null,"",null,null,null,"",null,null,"",null,""]
[null,null,null,null,null,null,null,null,null,null,null,null,null,null,null,null,null,null,null,null,null,{"$f":"IF(Fecha!H489=\"\",\"Quitar\",Fecha!H489*1)","v":"Quitar"},null,0,null,"",null,null,"",null,"",null,null,null,"",null,null,"",null,""]
[null,null,null,null,null,null,null,null,null,null,null,null,null,null,null,null,null,null,null,null,null,{"$f":"IF(Fecha!H490=\"\",\"Quitar\",Fecha!H490*1)","v":"Quitar"},null,0,null,"",null,null,"",null,"",null,null,null,"",null,null,"",null,""]
[null,null,null,null,null,null,null,null,null,null,null,null,null,null,null,null,null,null,null,null,null,{"$f":"IF(Fecha!H491=\"\",\"Quitar\",Fecha!H491*1)","v":"Quitar"},null,0,null,"",null,null,"",null,"",null,null,null,"",null,null,"",null,""]
[null,null,null,null,null,null,null,null,null,null,null,null,null,null,null,null,null,null,null,null,null,{"$f":"IF(Fecha!H492=\"\",\"Quitar\",Fecha!H492*1)","v":"Quitar"},null,0,null,"",null,null,"",null,"",null,null,null,"",null,null,"",null,""]
[null,null,null,null,null,null,null,null,null,null,null,null,null,null,null,null,null,null,null,null,null,{"$f":"IF(Fecha!H493=\"\",\"Quitar\",Fecha!H493*1)","v":"Quitar"},null,0,null,"",null,null,"",null,"",null,null,null,"",null,null,"",null,""]
[null,null,null,null,null,null,null,null,null,null,null,null,null,null,null,null,null,null,null,null,null,{"$f":"IF(Fecha!H494=\"\",\"Quitar\",Fecha!H494*1)","v":"Quitar"},null,0,null,"",null,null,"",null,"",null,null,null,"",null,null,"",null,""]
[null,null,null,null,null,null,null,null,null,null,null,null,null,null,null,null,null,null,null,null,null,{"$f":"IF(Fecha!H495=\"\",\"Quitar\",Fecha!H495*1)","v":"Quitar"},null,0,null,"",null,null,"",null,"",null,null,null,"",null,null,"",null,""]
[null,null,null,null,null,null,null,null,null,null,null,null,null,null,null,null,null,null,null,null,null,{"$f":"IF(Fecha!H496=\"\",\"Quitar\",Fecha!H496*1)","v":"Quitar"},null,0,null,"",null,null,"",null,"",null,null,null,"",null,null,"",null,""]
[null,null,null,null,null,null,null,null,null,null,null,null,null,null,null,null,null,null,null,null,null,{"$f":"IF(Fecha!H497=\"\",\"Quitar\",Fecha!H497*1)","v":"Quitar"},null,0,null,"",null,null,"",null,"",null,null,null,"",null,null,"",null,""]
[null,null,null,null,null,null,null,null,null,null,null,null,null,null,null,null,null,null,null,null,null,{"$f":"IF(Fecha!H498=\"\",\"Quitar\",Fecha!H498*1)","v":"Quitar"},null,0,null,"",null,null,"",null,"",null,null,null,"",null,null,"",null,""]
[null,null,null,null,null,null,null,null,null,null,null,null,null,null,null,null,null,null,null,null,null,{"$f":"IF(Fecha!H499=\"\",\"Quitar\",Fecha!H499*1)","v":"Quitar"},null,0,null,"",null,null,"",null,"",null,null,null,"",null,null,"",null,""]
[null,null,null,null,null,null,null,null,null,null,null,null,null,null,null,null,null,null,null,null,null,{"$f":"IF(Fecha!H500=\"\",\"Quitar\",Fecha!H500*1)","v":"Quitar"},null,0,null,"",null,null,"",null,"",null,null,null,"",null,null,"",null,""]
[null,null,null,null,null,null,null,null,null,null,null,null,null,null,null,null,null,null,null,null,null,{"$f":"IF(Fecha!H501=\"\",\"Quitar\",Fecha!H501*1)","v":"Quitar"},null,0,null,"",null,null,"",null,"",null,null,null,"",null,null,"",null,""]

{"sheet":"Validaciones","index":1,"n_rows":242,"n_cols":27,"rows_kept":242,"cut":false,"hidden":true,"merged":[]}
["Obligatorio_TD","Largo_TD","Contenido_TD","Obligatorio_ND","Largo_ND","Contenido_ND","Obligatorio_AP","Largo_AP","Contenido_AP","Obligatorio_AM","Largo_AM","Contenido_AM","Obligatorio_PN","Largo_PN","Contenido_PN","Obligatorio_SN","Largo_SN","Contenido_SN","Obligatorio_N","Largo_N","Contenido_N",null,null,null,null,null,"Peru"]
[null,null,null,null,null,null,null,null,null,null,null,null,null,null,null,null,null,null,null,null,"Campos obligatorios incompletos.",null,null,null,null,null,"Estados Unidos de America"]
[null,null,null,null,null,null,null,null,null,null,null,null,null,null,null,null,null,null,null,null,"Campos obligatorios incompletos.",null,null,null,null,null,"Canada"]
[null,null,null,null,null,null,null,null,null,null,null,null,null,null,null,null,null,null,null,null,"Campos obligatorios incompletos.",null,null,null,null,null,"Mexico"]
[null,null,null,null,null,null,null,null,null,null,null,null,null,null,null,null,null,null,null,null,"Campos obligatorios incompletos.",null,null,null,null,null,"Guatemala"]
[null,null,null,null,null,null,null,null,null,null,null,null,null,null,null,null,null,null,null,null,"Campos obligatorios incompletos.",null,null,null,null,null,"Honduras"]
[null,null,null,null,null,null,null,null,null,null,null,null,null,null,null,null,null,null,null,null,"Campos obligatorios incompletos.",null,null,null,null,null,"El Salvador"]
[null,null,null,null,null,null,null,null,null,null,null,null,null,null,null,null,null,null,null,null,null,null,null,null,null,null,"Nicaragua"]
[null,null,null,null,null,null,null,null,null,null,null,null,null,null,null,null,null,null,null,null,null,null,null,null,null,null,"Costa Rica"]
[null,null,null,null,null,null,null,null,null,null,null,null,null,null,null,null,null,null,null,null,null,null,null,null,null,null,"Panama"]
[null,null,null,null,null,null,null,null,null,null,null,null,null,null,null,null,null,null,null,null,null,null,null,null,null,null,"Cuba"]
[null,null,null,null,null,null,null,null,null,null,null,null,null,null,null,null,null,null,null,null,null,null,null,null,null,null,"Haiti"]
[null,null,null,null,null,null,null,null,null,null,null,null,null,null,null,null,null,null,null,null,null,null,null,null,null,null,"Republica Dominicana"]
[null,null,null,null,null,null,null,null,null,null,null,null,null,null,null,null,null,null,null,null,null,null,null,null,null,null,"Puerto Rico"]
[null,null,null,null,null,null,null,null,null,null,null,null,null,null,null,null,null,null,null,null,null,null,null,null,null,null,"Colombia"]
[null,null,null,null,null,null,null,null,null,null,null,null,null,null,null,null,null,null,null,null,null,null,null,null,null,null,"Venezuela"]
[null,null,null,null,null,null,null,null,null,null,null,null,null,null,null,null,null,null,null,null,null,null,null,null,null,null,"Guyana"]
[null,null,null,null,null,null,null,null,null,null,null,null,null,null,null,null,null,null,null,null,null,null,null,null,null,null,"Surinam"]
[null,null,null,null,null,null,null,null,null,null,null,null,null,null,null,null,null,null,null,null,null,null,null,null,null,null,"Guayana Francesa"]
[null,null,null,null,null,null,null,null,null,null,null,null,null,null,null,null,null,null,null,null,null,null,null,null,null,null,"Ecuador"]
[null,null,null,null,null,null,null,null,null,null,null,null,null,null,null,null,null,null,null,null,null,null,null,null,null,null,"Brasil"]
[null,null,null,null,null,null,null,null,null,null,null,null,null,null,null,null,null,null,null,null,null,null,null,null,null,null,"Bolivia"]
[null,null,null,null,null,null,null,null,null,null,null,null,null,null,null,null,null,null,null,null,null,null,null,null,null,null,"Chile"]
[null,null,null,null,null,null,null,null,null,null,null,null,null,null,null,null,null,null,null,null,null,null,null,null,null,null,"Argentina"]
[null,null,null,null,null,null,null,null,null,null,null,null,null,null,null,null,null,null,null,null,null,null,null,null,null,null,"Uruguay"]
[null,null,null,null,null,null,null,null,null,null,null,null,null,null,null,null,null,null,null,null,null,null,null,null,null,null,"Paraguay"]
[null,null,null,null,null,null,null,null,null,null,null,null,null,null,null,null,null,null,null,null,null,null,null,null,null,null,"Jamaica"]
[null,null,null,null,null,null,null,null,null,null,null,null,null,null,null,null,null,null,null,null,null,null,null,null,null,null,"Trinidad y Tobago"]
[null,null,null,null,null,null,null,null,null,null,null,null,null,null,null,null,null,null,null,null,null,null,null,null,null,null,"Antillas Holandesas"]
[null,null,null,null,null,null,null,null,null,null,null,null,null,null,null,null,null,null,null,null,null,null,null,null,null,null,"Bahamas"]
[null,null,null,null,null,null,null,null,null,null,null,null,null,null,null,null,null,null,null,null,null,null,null,null,null,null,"Aruba"]
[null,null,null,null,null,null,null,null,null,null,null,null,null,null,null,null,null,null,null,null,null,null,null,null,null,null,"Alemania"]
[null,null,null,null,null,null,null,null,null,null,null,null,null,null,null,null,null,null,null,null,null,null,null,null,null,null,"Bulgaria"]
[null,null,null,null,null,null,null,null,null,null,null,null,null,null,null,null,null,null,null,null,null,null,null,null,null,null,"Dinamarca"]
[null,null,null,null,null,null,null,null,null,null,null,null,null,null,null,null,null,null,null,null,null,null,null,null,null,null,"España"]
[null,null,null,null,null,null,null,null,null,null,null,null,null,null,null,null,null,null,null,null,null,null,null,null,null,null,"Francia"]
[null,null,null,null,null,null,null,null,null,null,null,null,null,null,null,null,null,null,null,null,null,null,null,null,null,null,"Grecia"]
[null,null,null,null,null,null,null,null,null,null,null,null,null,null,null,null,null,null,null,null,null,null,null,null,null,null,"Reino Unido de Gran Bretaña e Irlanda del Norte"]
[null,null,null,null,null,null,null,null,null,null,null,null,null,null,null,null,null,null,null,null,null,null,null,null,null,null,"Paises Bajos"]
[null,null,null,null,null,null,null,null,null,null,null,null,null,null,null,null,null,null,null,null,null,null,null,null,null,null,"Hungria"]
[null,null,null,null,null,null,null,null,null,null,null,null,null,null,null,null,null,null,null,null,null,null,null,null,null,null,"Irlanda"]
[null,null,null,null,null,null,null,null,null,null,null,null,null,null,null,null,null,null,null,null,null,null,null,null,null,null,"Luxemburgo"]
[null,null,null,null,null,null,null,null,null,null,null,null,null,null,null,null,null,null,null,null,null,null,null,null,null,null,"Noruega"]
[null,null,null,null,null,null,null,null,null,null,null,null,null,null,null,null,null,null,null,null,null,null,null,null,null,null,"Polonia"]
[null,null,null,null,null,null,null,null,null,null,null,null,null,null,null,null,null,null,null,null,null,null,null,null,null,null,"Portugal"]
[null,null,null,null,null,null,null,null,null,null,null,null,null,null,null,null,null,null,null,null,null,null,null,null,null,null,"Rumania"]
[null,null,null,null,null,null,null,null,null,null,null,null,null,null,null,null,null,null,null,null,null,null,null,null,null,null,"Suecia"]
[null,null,null,null,null,null,null,null,null,null,null,null,null,null,null,null,null,null,null,null,null,null,null,null,null,null,"Austria"]
[null,null,null,null,null,null,null,null,null,null,null,null,null,null,null,null,null,null,null,null,null,null,null,null,null,null,"Finlandia"]
[null,null,null,null,null,null,null,null,null,null,null,null,null,null,null,null,null,null,null,null,null,null,null,null,null,null,"Italia"]
[null,null,null,null,null,null,null,null,null,null,null,null,null,null,null,null,null,null,null,null,null,null,null,null,null,null,"Albania"]
[null,null,null,null,null,null,null,null,null,null,null,null,null,null,null,null,null,null,null,null,null,null,null,null,null,null,"Suiza"]
[null,null,null,null,null,null,null,null,null,null,null,null,null,null,null,null,null,null,null,null,null,null,null,null,null,null,"Belgica"]
[null,null,null,null,null,null,null,null,null,null,null,null,null,null,null,null,null,null,null,null,null,null,null,null,null,null,"Federacion Rusa"]
[null,null,null,null,null,null,null,null,null,null,null,null,null,null,null,null,null,null,null,null,null,null,null,null,null,null,"Malta"]
[null,null,null,null,null,null,null,null,null,null,null,null,null,null,null,null,null,null,null,null,null,null,null,null,null,null,"Eslovaquia"]
[null,null,null,null,null,null,null,null,null,null,null,null,null,null,null,null,null,null,null,null,null,null,null,null,null,null,"Eslovenia"]
[null,null,null,null,null,null,null,null,null,null,null,null,null,null,null,null,null,null,null,null,null,null,null,null,null,null,"Croacia (Hrvatska)"]
[null,null,null,null,null,null,null,null,null,null,null,null,null,null,null,null,null,null,null,null,null,null,null,null,null,null,"Lituania"]
[null,null,null,null,null,null,null,null,null,null,null,null,null,null,null,null,null,null,null,null,null,null,null,null,null,null,"Australia"]
[null,null,null,null,null,null,null,null,null,null,null,null,null,null,null,null,null,null,null,null,null,null,null,null,null,null,"Turquia"]
[null,null,null,null,null,null,null,null,null,null,null,null,null,null,null,null,null,null,null,null,null,null,null,null,null,null,"Republica Arabe Siria"]
[null,null,null,null,null,null,null,null,null,null,null,null,null,null,null,null,null,null,null,null,null,null,null,null,null,null,"Libano"]
[null,null,null,null,null,null,null,null,null,null,null,null,null,null,null,null,null,null,null,null,null,null,null,null,null,null,"Chipre"]
[null,null,null,null,null,null,null,null,null,null,null,null,null,null,null,null,null,null,null,null,null,null,null,null,null,null,"Iran"]
[null,null,null,null,null,null,null,null,null,null,null,null,null,null,null,null,null,null,null,null,null,null,null,null,null,null,"Irak"]
[null,null,null,null,null,null,null,null,null,null,null,null,null,null,null,null,null,null,null,null,null,null,null,null,null,null,"Israel"]
[null,null,null,null,null,null,null,null,null,null,null,null,null,null,null,null,null,null,null,null,null,null,null,null,null,null,"Jordania"]
[null,null,null,null,null,null,null,null,null,null,null,null,null,null,null,null,null,null,null,null,null,null,null,null,null,null,"Arabia Saudita"]
[null,null,null,null,null,null,null,null,null,null,null,null,null,null,null,null,null,null,null,null,null,null,null,null,null,null,"India"]
[null,null,null,null,null,null,null,null,null,null,null,null,null,null,null,null,null,null,null,null,null,null,null,null,null,null,"Pakistan"]
[null,null,null,null,null,null,null,null,null,null,null,null,null,null,null,null,null,null,null,null,null,null,null,null,null,null,"Sri Lanka"]
[null,null,null,null,null,null,null,null,null,null,null,null,null,null,null,null,null,null,null,null,null,null,null,null,null,null,"China"]
[null,null,null,null,null,null,null,null,null,null,null,null,null,null,null,null,null,null,null,null,null,null,null,null,null,null,"Japon"]
[null,null,null,null,null,null,null,null,null,null,null,null,null,null,null,null,null,null,null,null,null,null,null,null,null,null,"Corea"]
[null,null,null,null,null,null,null,null,null,null,null,null,null,null,null,null,null,null,null,null,null,null,null,null,null,null,"Mongolia"]
[null,null,null,null,null,null,null,null,null,null,null,null,null,null,null,null,null,null,null,null,null,null,null,null,null,null,"Afganistan"]
[null,null,null,null,null,null,null,null,null,null,null,null,null,null,null,null,null,null,null,null,null,null,null,null,null,null,"Nepal"]
[null,null,null,null,null,null,null,null,null,null,null,null,null,null,null,null,null,null,null,null,null,null,null,null,null,null,"Laos"]
[null,null,null,null,null,null,null,null,null,null,null,null,null,null,null,null,null,null,null,null,null,null,null,null,null,null,"Vietnam"]
[null,null,null,null,null,null,null,null,null,null,null,null,null,null,null,null,null,null,null,null,null,null,null,null,null,null,"Tailandia"]
[null,null,null,null,null,null,null,null,null,null,null,null,null,null,null,null,null,null,null,null,null,null,null,null,null,null,"Camboya"]
[null,null,null,null,null,null,null,null,null,null,null,null,null,null,null,null,null,null,null,null,null,null,null,null,null,null,"Singapur"]
[null,null,null,null,null,null,null,null,null,null,null,null,null,null,null,null,null,null,null,null,null,null,null,null,null,null,"Taiwan"]
[null,null,null,null,null,null,null,null,null,null,null,null,null,null,null,null,null,null,null,null,null,null,null,null,null,null,"Indonesia"]
[null,null,null,null,null,null,null,null,null,null,null,null,null,null,null,null,null,null,null,null,null,null,null,null,null,null,"Malasia"]
[null,null,null,null,null,null,null,null,null,null,null,null,null,null,null,null,null,null,null,null,null,null,null,null,null,null,"Filipinas"]
[null,null,null,null,null,null,null,null,null,null,null,null,null,null,null,null,null,null,null,null,null,null,null,null,null,null,"Egipto"]
[null,null,null,null,null,null,null,null,null,null,null,null,null,null,null,null,null,null,null,null,null,null,null,null,null,null,"Emiratos Arabes Unidos"]
[null,null,null,null,null,null,null,null,null,null,null,null,null,null,null,null,null,null,null,null,null,null,null,null,null,null,"Sudan"]
[null,null,null,null,null,null,null,null,null,null,null,null,null,null,null,null,null,null,null,null,null,null,null,null,null,null,"Bangladesh"]
[null,null,null,null,null,null,null,null,null,null,null,null,null,null,null,null,null,null,null,null,null,null,null,null,null,null,"Kuwait"]
[null,null,null,null,null,null,null,null,null,null,null,null,null,null,null,null,null,null,null,null,null,null,null,null,null,null,"Marruecos"]
[null,null,null,null,null,null,null,null,null,null,null,null,null,null,null,null,null,null,null,null,null,null,null,null,null,null,"Sudafrica"]
[null,null,null,null,null,null,null,null,null,null,null,null,null,null,null,null,null,null,null,null,null,null,null,null,null,null,"Angola"]
[null,null,null,null,null,null,null,null,null,null,null,null,null,null,null,null,null,null,null,null,null,null,null,null,null,null,"Nigeria"]
[null,null,null,null,null,null,null,null,null,null,null,null,null,null,null,null,null,null,null,null,null,null,null,null,null,null,"Argelia"]
[null,null,null,null,null,null,null,null,null,null,null,null,null,null,null,null,null,null,null,null,null,null,null,null,null,null,"Mauricio"]
[null,null,null,null,null,null,null,null,null,null,null,null,null,null,null,null,null,null,null,null,null,null,null,null,null,null,"Guinea Ecuatorial"]
[null,null,null,null,null,null,null,null,null,null,null,null,null,null,null,null,null,null,null,null,null,null,null,null,null,null,"Nueva Zelanda"]
[null,null,null,null,null,null,null,null,null,null,null,null,null,null,null,null,null,null,null,null,null,null,null,null,null,null,"Ucrania"]
[null,null,null,null,null,null,null,null,null,null,null,null,null,null,null,null,null,null,null,null,null,null,null,null,null,null,"Belice"]
[null,null,null,null,null,null,null,null,null,null,null,null,null,null,null,null,null,null,null,null,null,null,null,null,null,null,"Santa Lucia"]
[null,null,null,null,null,null,null,null,null,null,null,null,null,null,null,null,null,null,null,null,null,null,null,null,null,null,"Burkina Faso"]
[null,null,null,null,null,null,null,null,null,null,null,null,null,null,null,null,null,null,null,null,null,null,null,null,null,null,"Camerun"]
[null,null,null,null,null,null,null,null,null,null,null,null,null,null,null,null,null,null,null,null,null,null,null,null,null,null,"Chad"]
[null,null,null,null,null,null,null,null,null,null,null,null,null,null,null,null,null,null,null,null,null,null,null,null,null,null,"Congo"]
[null,null,null,null,null,null,null,null,null,null,null,null,null,null,null,null,null,null,null,null,null,null,null,null,null,null,"Guinea-Bissau"]
[null,null,null,null,null,null,null,null,null,null,null,null,null,null,null,null,null,null,null,null,null,null,null,null,null,null,"Gambia"]
[null,null,null,null,null,null,null,null,null,null,null,null,null,null,null,null,null,null,null,null,null,null,null,null,null,null,"Liberia"]
[null,null,null,null,null,null,null,null,null,null,null,null,null,null,null,null,null,null,null,null,null,null,null,null,null,null,"Jamahiriya Arabe Libia"]
[null,null,null,null,null,null,null,null,null,null,null,null,null,null,null,null,null,null,null,null,null,null,null,null,null,null,"Mauritania"]
[null,null,null,null,null,null,null,null,null,null,null,null,null,null,null,null,null,null,null,null,null,null,null,null,null,null,"Senegal"]
[null,null,null,null,null,null,null,null,null,null,null,null,null,null,null,null,null,null,null,null,null,null,null,null,null,null,"Sierra Leona"]
[null,null,null,null,null,null,null,null,null,null,null,null,null,null,null,null,null,null,null,null,null,null,null,null,null,null,"Togo"]
[null,null,null,null,null,null,null,null,null,null,null,null,null,null,null,null,null,null,null,null,null,null,null,null,null,null,"Ghana"]
[null,null,null,null,null,null,null,null,null,null,null,null,null,null,null,null,null,null,null,null,null,null,null,null,null,null,"Gabon"]
[null,null,null,null,null,null,null,null,null,null,null,null,null,null,null,null,null,null,null,null,null,null,null,null,null,null,"Qatar"]
[null,null,null,null,null,null,null,null,null,null,null,null,null,null,null,null,null,null,null,null,null,null,null,null,null,null,"Bermuda"]
[null,null,null,null,null,null,null,null,null,null,null,null,null,null,null,null,null,null,null,null,null,null,null,null,null,null,"Santa Vicente y las Granadinas"]
[null,null,null,null,null,null,null,null,null,null,null,null,null,null,null,null,null,null,null,null,null,null,null,null,null,null,"Antigua y Barbuda"]
[null,null,null,null,null,null,null,null,null,null,null,null,null,null,null,null,null,null,null,null,null,null,null,null,null,null,"Dominica"]
[null,null,null,null,null,null,null,null,null,null,null,null,null,null,null,null,null,null,null,null,null,null,null,null,null,null,"Benin"]
[null,null,null,null,null,null,null,null,null,null,null,null,null,null,null,null,null,null,null,null,null,null,null,null,null,null,"Costa de Marfil"]
[null,null,null,null,null,null,null,null,null,null,null,null,null,null,null,null,null,null,null,null,null,null,null,null,null,null,"Bahrein"]
[null,null,null,null,null,null,null,null,null,null,null,null,null,null,null,null,null,null,null,null,null,null,null,null,null,null,"Barbados"]
[null,null,null,null,null,null,null,null,null,null,null,null,null,null,null,null,null,null,null,null,null,null,null,null,null,null,"Granada"]
[null,null,null,null,null,null,null,null,null,null,null,null,null,null,null,null,null,null,null,null,null,null,null,null,null,null,"Islas Turcas y Caicos"]
[null,null,null,null,null,null,null,null,null,null,null,null,null,null,null,null,null,null,null,null,null,null,null,null,null,null,"Anguila"]
[null,null,null,null,null,null,null,null,null,null,null,null,null,null,null,null,null,null,null,null,null,null,null,null,null,null,"Santa Cristobal y Nieves"]
[null,null,null,null,null,null,null,null,null,null,null,null,null,null,null,null,null,null,null,null,null,null,null,null,null,null,"Samoa Americana"]
[null,null,null,null,null,null,null,null,null,null,null,null,null,null,null,null,null,null,null,null,null,null,null,null,null,null,"Andorra"]
[null,null,null,null,null,null,null,null,null,null,null,null,null,null,null,null,null,null,null,null,null,null,null,null,null,null,"Antartica (territorio al sur del paralelo 60º S)"]
[null,null,null,null,null,null,null,null,null,null,null,null,null,null,null,null,null,null,null,null,null,null,null,null,null,null,"Armenia"]
[null,null,null,null,null,null,null,null,null,null,null,null,null,null,null,null,null,null,null,null,null,null,null,null,null,null,"Azerbaiyan"]
[null,null,null,null,null,null,null,null,null,null,null,null,null,null,null,null,null,null,null,null,null,null,null,null,null,null,"Bielorrusia"]
[null,null,null,null,null,null,null,null,null,null,null,null,null,null,null,null,null,null,null,null,null,null,null,null,null,null,"Butan"]
[null,null,null,null,null,null,null,null,null,null,null,null,null,null,null,null,null,null,null,null,null,null,null,null,null,null,"Bosnia y Herzegovina"]
[null,null,null,null,null,null,null,null,null,null,null,null,null,null,null,null,null,null,null,null,null,null,null,null,null,null,"Botswana"]
[null,null,null,null,null,null,null,null,null,null,null,null,null,null,null,null,null,null,null,null,null,null,null,null,null,null,"Isla Bouvet (Bouvetoya)"]
[null,null,null,null,null,null,null,null,null,null,null,null,null,null,null,null,null,null,null,null,null,null,null,null,null,null,"Territorio britanico del oceano Indico (Archipielago Chagos)"]
[null,null,null,null,null,null,null,null,null,null,null,null,null,null,null,null,null,null,null,null,null,null,null,null,null,null,"Brunei Darussalam"]
[null,null,null,null,null,null,null,null,null,null,null,null,null,null,null,null,null,null,null,null,null,null,null,null,null,null,"Myanmar"]
[null,null,null,null,null,null,null,null,null,null,null,null,null,null,null,null,null,null,null,null,null,null,null,null,null,null,"Burundi"]
[null,null,null,null,null,null,null,null,null,null,null,null,null,null,null,null,null,null,null,null,null,null,null,null,null,null,"Islas Caiman"]
[null,null,null,null,null,null,null,null,null,null,null,null,null,null,null,null,null,null,null,null,null,null,null,null,null,null,"Republica Centroafricana"]
[null,null,null,null,null,null,null,null,null,null,null,null,null,null,null,null,null,null,null,null,null,null,null,null,null,null,"Isla Navidad"]
[null,null,null,null,null,null,null,null,null,null,null,null,null,null,null,null,null,null,null,null,null,null,null,null,null,null,"Islas Cocos (Keeling)"]
[null,null,null,null,null,null,null,null,null,null,null,null,null,null,null,null,null,null,null,null,null,null,null,null,null,null,"Comoras"]
[null,null,null,null,null,null,null,null,null,null,null,null,null,null,null,null,null,null,null,null,null,null,null,null,null,null,"Islas Cook"]
[null,null,null,null,null,null,null,null,null,null,null,null,null,null,null,null,null,null,null,null,null,null,null,null,null,null,"Republica Checa"]
[null,null,null,null,null,null,null,null,null,null,null,null,null,null,null,null,null,null,null,null,null,null,null,null,null,null,"Djibouti"]
[null,null,null,null,null,null,null,null,null,null,null,null,null,null,null,null,null,null,null,null,null,null,null,null,null,null,"Eritrea"]
[null,null,null,null,null,null,null,null,null,null,null,null,null,null,null,null,null,null,null,null,null,null,null,null,null,null,"Estonia"]
[null,null,null,null,null,null,null,null,null,null,null,null,null,null,null,null,null,null,null,null,null,null,null,null,null,null,"Etiopia"]
[null,null,null,null,null,null,null,null,null,null,null,null,null,null,null,null,null,null,null,null,null,null,null,null,null,null,"Islas Malvinas (Falkland)"]
[null,null,null,null,null,null,null,null,null,null,null,null,null,null,null,null,null,null,null,null,null,null,null,null,null,null,"Islas Feroe"]
[null,null,null,null,null,null,null,null,null,null,null,null,null,null,null,null,null,null,null,null,null,null,null,null,null,null,"Fiji"]
[null,null,null,null,null,null,null,null,null,null,null,null,null,null,null,null,null,null,null,null,null,null,null,null,null,null,"Georgia"]
[null,null,null,null,null,null,null,null,null,null,null,null,null,null,null,null,null,null,null,null,null,null,null,null,null,null,"Gibraltar"]
[null,null,null,null,null,null,null,null,null,null,null,null,null,null,null,null,null,null,null,null,null,null,null,null,null,null,"Groenlandia"]
[null,null,null,null,null,null,null,null,null,null,null,null,null,null,null,null,null,null,null,null,null,null,null,null,null,null,"Guadalupe"]
[null,null,null,null,null,null,null,null,null,null,null,null,null,null,null,null,null,null,null,null,null,null,null,null,null,null,"Guam"]
[null,null,null,null,null,null,null,null,null,null,null,null,null,null,null,null,null,null,null,null,null,null,null,null,null,null,"Islas Heard y McDonald"]
[null,null,null,null,null,null,null,null,null,null,null,null,null,null,null,null,null,null,null,null,null,null,null,null,null,null,"Santa Sede (Estado de la Ciudad del Vaticano)"]
[null,null,null,null,null,null,null,null,null,null,null,null,null,null,null,null,null,null,null,null,null,null,null,null,null,null,"Hong Kong"]
[null,null,null,null,null,null,null,null,null,null,null,null,null,null,null,null,null,null,null,null,null,null,null,null,null,null,"Islandia"]
[null,null,null,null,null,null,null,null,null,null,null,null,null,null,null,null,null,null,null,null,null,null,null,null,null,null,"Kazajistan"]
[null,null,null,null,null,null,null,null,null,null,null,null,null,null,null,null,null,null,null,null,null,null,null,null,null,null,"Kenia"]
[null,null,null,null,null,null,null,null,null,null,null,null,null,null,null,null,null,null,null,null,null,null,null,null,null,null,"Kiribati"]
[null,null,null,null,null,null,null,null,null,null,null,null,null,null,null,null,null,null,null,null,null,null,null,null,null,null,"Republica de Kirguistan"]
[null,null,null,null,null,null,null,null,null,null,null,null,null,null,null,null,null,null,null,null,null,null,null,null,null,null,"Letonia"]
[null,null,null,null,null,null,null,null,null,null,null,null,null,null,null,null,null,null,null,null,null,null,null,null,null,null,"Lesoto"]
[null,null,null,null,null,null,null,null,null,null,null,null,null,null,null,null,null,null,null,null,null,null,null,null,null,null,"Liechtenstein"]
[null,null,null,null,null,null,null,null,null,null,null,null,null,null,null,null,null,null,null,null,null,null,null,null,null,null,"Macao"]
[null,null,null,null,null,null,null,null,null,null,null,null,null,null,null,null,null,null,null,null,null,null,null,null,null,null,"Macedonia"]
[null,null,null,null,null,null,null,null,null,null,null,null,null,null,null,null,null,null,null,null,null,null,null,null,null,null,"Madagascar"]
[null,null,null,null,null,null,null,null,null,null,null,null,null,null,null,null,null,null,null,null,null,null,null,null,null,null,"Malawi"]
[null,null,null,null,null,null,null,null,null,null,null,null,null,null,null,null,null,null,null,null,null,null,null,null,null,null,"Maldivas"]
[null,null,null,null,null,null,null,null,null,null,null,null,null,null,null,null,null,null,null,null,null,null,null,null,null,null,"Mali"]
[null,null,null,null,null,null,null,null,null,null,null,null,null,null,null,null,null,null,null,null,null,null,null,null,null,null,"Islas Marshall"]
[null,null,null,null,null,null,null,null,null,null,null,null,null,null,null,null,null,null,null,null,null,null,null,null,null,null,"Martinica"]
[null,null,null,null,null,null,null,null,null,null,null,null,null,null,null,null,null,null,null,null,null,null,null,null,null,null,"Mayotte"]
[null,null,null,null,null,null,null,null,null,null,null,null,null,null,null,null,null,null,null,null,null,null,null,null,null,null,"Micronesia"]
[null,null,null,null,null,null,null,null,null,null,null,null,null,null,null,null,null,null,null,null,null,null,null,null,null,null,"Moldavia"]
[null,null,null,null,null,null,null,null,null,null,null,null,null,null,null,null,null,null,null,null,null,null,null,null,null,null,"Monaco"]
[null,null,null,null,null,null,null,null,null,null,null,null,null,null,null,null,null,null,null,null,null,null,null,null,null,null,"Montenegro"]
[null,null,null,null,null,null,null,null,null,null,null,null,null,null,null,null,null,null,null,null,null,null,null,null,null,null,"Montserrat"]
[null,null,null,null,null,null,null,null,null,null,null,null,null,null,null,null,null,null,null,null,null,null,null,null,null,null,"Mozambique"]
[null,null,null,null,null,null,null,null,null,null,null,null,null,null,null,null,null,null,null,null,null,null,null,null,null,null,"Namibia"]
[null,null,null,null,null,null,null,null,null,null,null,null,null,null,null,null,null,null,null,null,null,null,null,null,null,null,"Nauru"]
[null,null,null,null,null,null,null,null,null,null,null,null,null,null,null,null,null,null,null,null,null,null,null,null,null,null,"Nueva Caledonia"]
[null,null,null,null,null,null,null,null,null,null,null,null,null,null,null,null,null,null,null,null,null,null,null,null,null,null,"Niger"]
[null,null,null,null,null,null,null,null,null,null,null,null,null,null,null,null,null,null,null,null,null,null,null,null,null,null,"Niue"]
[null,null,null,null,null,null,null,null,null,null,null,null,null,null,null,null,null,null,null,null,null,null,null,null,null,null,"Isla Norfolk"]
[null,null,null,null,null,null,null,null,null,null,null,null,null,null,null,null,null,null,null,null,null,null,null,null,null,null,"Islas Marianas del Norte"]
[null,null,null,null,null,null,null,null,null,null,null,null,null,null,null,null,null,null,null,null,null,null,null,null,null,null,"Oman"]
[null,null,null,null,null,null,null,null,null,null,null,null,null,null,null,null,null,null,null,null,null,null,null,null,null,null,"Palau"]
[null,null,null,null,null,null,null,null,null,null,null,null,null,null,null,null,null,null,null,null,null,null,null,null,null,null,"Autoridad Interina de Autogobierno Palestino"]
[null,null,null,null,null,null,null,null,null,null,null,null,null,null,null,null,null,null,null,null,null,null,null,null,null,null,"Papua Nueva Guinea"]
[null,null,null,null,null,null,null,null,null,null,null,null,null,null,null,null,null,null,null,null,null,null,null,null,null,null,"Isla Pitcairn"]
[null,null,null,null,null,null,null,null,null,null,null,null,null,null,null,null,null,null,null,null,null,null,null,null,null,null,"Santa Helena"]
[null,null,null,null,null,null,null,null,null,null,null,null,null,null,null,null,null,null,null,null,null,null,null,null,null,null,"Santa Pedro y Miquelón"]
[null,null,null,null,null,null,null,null,null,null,null,null,null,null,null,null,null,null,null,null,null,null,null,null,null,null,"Samoa"]
[null,null,null,null,null,null,null,null,null,null,null,null,null,null,null,null,null,null,null,null,null,null,null,null,null,null,"San Marino"]
[null,null,null,null,null,null,null,null,null,null,null,null,null,null,null,null,null,null,null,null,null,null,null,null,null,null,"Santo Tome y Principe"]
[null,null,null,null,null,null,null,null,null,null,null,null,null,null,null,null,null,null,null,null,null,null,null,null,null,null,"Serbia"]
[null,null,null,null,null,null,null,null,null,null,null,null,null,null,null,null,null,null,null,null,null,null,null,null,null,null,"Seychelles"]
[null,null,null,null,null,null,null,null,null,null,null,null,null,null,null,null,null,null,null,null,null,null,null,null,null,null,"Islas Salomon"]
[null,null,null,null,null,null,null,null,null,null,null,null,null,null,null,null,null,null,null,null,null,null,null,null,null,null,"Somalia"]
[null,null,null,null,null,null,null,null,null,null,null,null,null,null,null,null,null,null,null,null,null,null,null,null,null,null,"Georgia del Sur e Islas Sandwich del Sur"]
[null,null,null,null,null,null,null,null,null,null,null,null,null,null,null,null,null,null,null,null,null,null,null,null,null,null,"Islas Svalbard y Jan Mayen"]
[null,null,null,null,null,null,null,null,null,null,null,null,null,null,null,null,null,null,null,null,null,null,null,null,null,null,"Swazilandia"]
[null,null,null,null,null,null,null,null,null,null,null,null,null,null,null,null,null,null,null,null,null,null,null,null,null,null,"Tayikistan"]
[null,null,null,null,null,null,null,null,null,null,null,null,null,null,null,null,null,null,null,null,null,null,null,null,null,null,"Tanzania"]
[null,null,null,null,null,null,null,null,null,null,null,null,null,null,null,null,null,null,null,null,null,null,null,null,null,null,"Timor Oriental"]
[null,null,null,null,null,null,null,null,null,null,null,null,null,null,null,null,null,null,null,null,null,null,null,null,null,null,"Tokelau (Islas de Tokelau)"]
[null,null,null,null,null,null,null,null,null,null,null,null,null,null,null,null,null,null,null,null,null,null,null,null,null,null,"Tonga"]
[null,null,null,null,null,null,null,null,null,null,null,null,null,null,null,null,null,null,null,null,null,null,null,null,null,null,"Tunez"]
[null,null,null,null,null,null,null,null,null,null,null,null,null,null,null,null,null,null,null,null,null,null,null,null,null,null,"Turkmenistan"]
[null,null,null,null,null,null,null,null,null,null,null,null,null,null,null,null,null,null,null,null,null,null,null,null,null,null,"Tuvalu"]
[null,null,null,null,null,null,null,null,null,null,null,null,null,null,null,null,null,null,null,null,null,null,null,null,null,null,"Uganda"]
[null,null,null,null,null,null,null,null,null,null,null,null,null,null,null,null,null,null,null,null,null,null,null,null,null,null,"Islas Ultramarinas menores de Estados Unidos"]
[null,null,null,null,null,null,null,null,null,null,null,null,null,null,null,null,null,null,null,null,null,null,null,null,null,null,"Uzbekistan"]
[null,null,null,null,null,null,null,null,null,null,null,null,null,null,null,null,null,null,null,null,null,null,null,null,null,null,"Vanuatu"]
[null,null,null,null,null,null,null,null,null,null,null,null,null,null,null,null,null,null,null,null,null,null,null,null,null,null,"Islas Virgenes Britanicas"]
[null,null,null,null,null,null,null,null,null,null,null,null,null,null,null,null,null,null,null,null,null,null,null,null,null,null,"Islas Virgenes Americanas"]
[null,null,null,null,null,null,null,null,null,null,null,null,null,null,null,null,null,null,null,null,null,null,null,null,null,null,"Islas Wallis y Futuna"]
[null,null,null,null,null,null,null,null,null,null,null,null,null,null,null,null,null,null,null,null,null,null,null,null,null,null,"Sahara Occidental"]
[null,null,null,null,null,null,null,null,null,null,null,null,null,null,null,null,null,null,null,null,null,null,null,null,null,null,"Yemen"]
[null,null,null,null,null,null,null,null,null,null,null,null,null,null,null,null,null,null,null,null,null,null,null,null,null,null,"Zambia"]
[null,null,null,null,null,null,null,null,null,null,null,null,null,null,null,null,null,null,null,null,null,null,null,null,null,null,"Zimbabue"]
[null,null,null,null,null,null,null,null,null,null,null,null,null,null,null,null,null,null,null,null,null,null,null,null,null,null,"Cabo Verde"]
[null,null,null,null,null,null,null,null,null,null,null,null,null,null,null,null,null,null,null,null,null,null,null,null,null,null,"Congo"]
[null,null,null,null,null,null,null,null,null,null,null,null,null,null,null,null,null,null,null,null,null,null,null,null,null,null,"Corea"]
[null,null,null,null,null,null,null,null,null,null,null,null,null,null,null,null,null,null,null,null,null,null,null,null,null,null,"Guinea"]
[null,null,null,null,null,null,null,null,null,null,null,null,null,null,null,null,null,null,null,null,null,null,null,null,null,null,"Ruanda"]
[null,null,null,null,null,null,null,null,null,null,null,null,null,null,null,null,null,null,null,null,null,null,null,null,null,null,"Polinesia Francesa"]
[null,null,null,null,null,null,null,null,null,null,null,null,null,null,null,null,null,null,null,null,null,null,null,null,null,null,"Territorios Franceses del Sur"]
[null,null,null,null,null,null,null,null,null,null,null,null,null,null,null,null,null,null,null,null,null,null,null,null,null,null,"Reunion"]
[null,null,null,null,null,null,null,null,null,null,null,null,null,null,null,null,null,null,null,null,null,null,null,null,null,null,"Sin precisar"]
[null,null,null,null,null,null,null,null,null,null,null,null,null,null,null,null,null,null,null,null,null,null,null,null,null,null,"No identificado"]

{"sheet":"Fecha","index":2,"n_rows":501,"n_cols":22,"rows_kept":501,"cut":false,"hidden":true,"merged":[]}
["FECHA DE NACIMIENTO\n\nCelda tipo FECHA\nSolo procesa formato DD/MM/YYYY"]
[{"$f":"Trama!G2","v":0},{"$f":"IF(A2=0,\"\",A2*1)","v":""},{"$f":"IF(B2=\"\",\"\",IFERROR(B2,TEXT(A2,\"dd/mm/yyyy\")))","v":""},{"$f":"IFERROR(C2,LEFT(A2, FIND(\"/\",A2) - 1))","v":""},{"$f":"IFERROR(C2,MID(A2,FIND(\"/\",A2) + 1, FIND(\"/\", A2, FIND(\"/\", A2) + 1) - FIND(\"/\", A2) - 1))","v":""},{"$f":"IFERROR(C2,RIGHT(A2, LEN(A2) - FIND(\"/\", A2, FIND(\"/\", A2) + 1)))","v":""},{"$f":"TEXT(IFERROR(CONCATENATE(IFERROR(DATE(F2,D2,E2),C2))*1,\"\"),\"dd/mm/yyyy\")","v":""},"",null,"1992-01-01","1 de enero","1 de enero"]
[{"$f":"Trama!G3","v":0},{"$f":"IF(A3=0,\"\",A3*1)","v":""},{"$f":"IF(B3=\"\",\"\",IFERROR(B3,TEXT(A3,\"dd/mm/yyyy\")))","v":""},{"$f":"IFERROR(C3,LEFT(A3, FIND(\"/\",A3) - 1))","v":""},{"$f":"IFERROR(C3,MID(A3,FIND(\"/\",A3) + 1, FIND(\"/\", A3, FIND(\"/\", A3) + 1) - FIND(\"/\", A3) - 1))","v":""},{"$f":"IFERROR(C3,RIGHT(A3, LEN(A3) - FIND(\"/\", A3, FIND(\"/\", A3) + 1)))","v":""},"","",null,{"$f":"J2+1","v":"1992-01-02"},"2 de enero","1 de febrero",null,null,null,null,null,null,null,null,null,{"$f":"TEXT(IFERROR(CONCATENATE(IFERROR(DATE(U3,S3,T3),R3))*1,\"\"),\"dd/mm/yyyy\")","v":""}]
[{"$f":"Trama!G4","v":0},"","","","","","","",null,{"$f":"J3+1","v":"1992-01-03"},"3 de enero","1 de marzo",null,null,null,null,null,null,null,null,null,""]
[{"$f":"Trama!G5","v":0},"","","","","","","",null,"1992-01-04","4 de enero","1 de abril",null,null,null,null,null,null,null,null,null,""]
[{"$f":"Trama!G6","v":0},"","","","","","","",null,"1992-01-05","5 de enero","1 de mayo",null,null,null,null,null,null,null,null,null,""]
[{"$f":"Trama!G7","v":0},"","","","","","","",null,"1992-01-06","6 de enero","1 de junio",null,null,null,null,null,null,null,null,null,""]
[{"$f":"Trama!G8","v":0},"","","","","","","",null,"1992-01-07","7 de enero","1 de julio",null,null,null,null,null,null,null,null,null,""]
[{"$f":"Trama!G9","v":0},"","","","","","","",null,"1992-01-08","8 de enero","1 de agosto",null,null,null,null,null,null,null,null,null,""]
[{"$f":"Trama!G10","v":0},"","","","","","","",null,"1992-01-09","9 de enero","1 de septiembre",null,null,null,null,null,null,null,null,null,""]
[{"$f":"Trama!G11","v":0},"","","","","","","",null,"1992-01-10","10 de enero","1 de octubre",null,null,null,null,null,null,null,null,null,""]
[{"$f":"Trama!G12","v":0},"","","","","","","",null,"1992-01-11","11 de enero","1 de noviembre",null,null,null,null,null,null,null,null,null,""]
[{"$f":"Trama!G13","v":0},"","","","","","","",null,"1992-01-12","12 de enero","1 de diciembre",null,null,null,null,null,null,null,null,null,""]
[{"$f":"Trama!G14","v":0},"","","","","","","",null,null,null,null,null,null,null,null,null,null,null,null,null,""]
[{"$f":"Trama!G15","v":0},"","","","","","","",null,null,null,null,null,null,null,null,null,null,null,null,null,""]
[{"$f":"Trama!G16","v":0},"","","","","","","",null,null,null,null,null,null,null,null,null,null,null,null,null,""]
[{"$f":"Trama!G17","v":0},"","","","","","","",null,null,null,null,null,null,null,null,null,null,null,null,null,""]
[{"$f":"Trama!G18","v":0},"","","","","","","",null,null,null,null,null,null,null,null,null,null,null,null,null,""]
[{"$f":"Trama!G19","v":0},"","","","","","","",null,null,null,null,null,null,null,null,null,null,null,null,null,""]
[{"$f":"Trama!G20","v":0},"","","","","","","",null,null,null,null,null,null,null,null,null,null,null,null,null,""]
[{"$f":"Trama!G21","v":0},"","","","","","","",null,null,null,null,null,null,null,null,null,null,null,null,null,""]
[{"$f":"Trama!G22","v":0},"","","","","","","",null,null,null,null,null,null,null,null,null,null,null,null,null,""]
[{"$f":"Trama!G23","v":0},"","","","","","","",null,null,null,null,null,null,null,null,null,null,null,null,null,""]
[{"$f":"Trama!G24","v":0},"","","","","","","",null,null,null,null,null,null,null,null,null,null,null,null,null,""]
[{"$f":"Trama!G25","v":0},"","","","","","","",null,null,null,null,null,null,null,null,null,null,null,null,null,""]
[{"$f":"Trama!G26","v":0},"","","","","","","",null,null,null,null,null,null,null,null,null,null,null,null,null,""]
[{"$f":"Trama!G27","v":0},"","","","","","","",null,null,null,null,null,null,null,null,null,null,null,null,null,""]
[{"$f":"Trama!G28","v":0},"","","","","","","",null,null,null,null,null,null,null,null,null,null,null,null,null,""]
[{"$f":"Trama!G29","v":0},"","","","","","","",null,null,null,null,null,null,null,null,null,null,null,null,null,""]
[{"$f":"Trama!G30","v":0},"","","","","","","",null,null,null,null,null,null,null,null,null,null,null,null,null,""]
[{"$f":"Trama!G31","v":0},"","","","","","","",null,null,null,null,null,null,null,null,null,null,null,null,null,""]
[{"$f":"Trama!G32","v":0},"","","","","","","",null,null,null,null,null,null,null,null,null,null,null,null,null,""]
[{"$f":"Trama!G33","v":0},"","","","","","","",null,null,null,null,null,null,null,null,null,null,null,null,null,""]
[{"$f":"Trama!G34","v":0},"","","","","","","",null,null,null,null,null,null,null,null,null,null,null,null,null,""]
[{"$f":"Trama!G35","v":0},"","","","","","","",null,null,null,null,null,null,null,null,null,null,null,null,null,""]
[{"$f":"Trama!G36","v":0},"","","","","","","",null,null,null,null,null,null,null,null,null,null,null,null,null,""]
[{"$f":"Trama!G37","v":0},"","","","","","","",null,null,null,null,null,null,null,null,null,null,null,null,null,""]
[{"$f":"Trama!G38","v":0},"","","","","","","",null,null,null,null,null,null,null,null,null,null,null,null,null,""]
[{"$f":"Trama!G39","v":0},"","","","","","","",null,null,null,null,null,null,null,null,null,null,null,null,null,""]
[{"$f":"Trama!G40","v":0},"","","","","","","",null,null,null,null,null,null,null,null,null,null,null,null,null,""]
[{"$f":"Trama!G41","v":0},"","","","","","","",null,null,null,null,null,null,null,null,null,null,null,null,null,""]
[{"$f":"Trama!G42","v":0},"","","","","","","",null,null,null,null,null,null,null,null,null,null,null,null,null,""]
[{"$f":"Trama!G43","v":0},"","","","","","","",null,null,null,null,null,null,null,null,null,null,null,null,null,""]
[{"$f":"Trama!G44","v":0},"","","","","","","",null,null,null,null,null,null,null,null,null,null,null,null,null,""]
[{"$f":"Trama!G45","v":0},"","","","","","","",null,null,null,null,null,null,null,null,null,null,null,null,null,""]
[{"$f":"Trama!G46","v":0},"","","","","","","",null,null,null,null,null,null,null,null,null,null,null,null,null,""]
[{"$f":"Trama!G47","v":0},"","","","","","","",null,null,null,null,null,null,null,null,null,null,null,null,null,""]
[{"$f":"Trama!G48","v":0},"","","","","","","",null,null,null,null,null,null,null,null,null,null,null,null,null,""]
[{"$f":"Trama!G49","v":0},"","","","","","","",null,null,null,null,null,null,null,null,null,null,null,null,null,""]
[{"$f":"Trama!G50","v":0},"","","","","","","",null,null,null,null,null,null,null,null,null,null,null,null,null,""]
[{"$f":"Trama!G51","v":0},"","","","","","","",null,null,null,null,null,null,null,null,null,null,null,null,null,""]
[{"$f":"Trama!G52","v":0},"","","","","","","",null,null,null,null,null,null,null,null,null,null,null,null,null,""]
[{"$f":"Trama!G53","v":0},"","","","","","","",null,null,null,null,null,null,null,null,null,null,null,null,null,""]
[{"$f":"Trama!G54","v":0},"","","","","","","",null,null,null,null,null,null,null,null,null,null,null,null,null,""]
[{"$f":"Trama!G55","v":0},"","","","","","","",null,null,null,null,null,null,null,null,null,null,null,null,null,""]
[{"$f":"Trama!G56","v":0},"","","","","","","",null,null,null,null,null,null,null,null,null,null,null,null,null,""]
[{"$f":"Trama!G57","v":0},"","","","","","","",null,null,null,null,null,null,null,null,null,null,null,null,null,""]
[{"$f":"Trama!G58","v":0},"","","","","","","",null,null,null,null,null,null,null,null,null,null,null,null,null,""]
[{"$f":"Trama!G59","v":0},"","","","","","","",null,null,null,null,null,null,null,null,null,null,null,null,null,""]
[{"$f":"Trama!G60","v":0},"","","","","","","",null,null,null,null,null,null,null,null,null,null,null,null,null,""]
[{"$f":"Trama!G61","v":0},"","","","","","","",null,null,null,null,null,null,null,null,null,null,null,null,null,""]
[{"$f":"Trama!G62","v":0},"","","","","","","",null,null,null,null,null,null,null,null,null,null,null,null,null,""]
[{"$f":"Trama!G63","v":0},"","","","","","","",null,null,null,null,null,null,null,null,null,null,null,null,null,""]
[{"$f":"Trama!G64","v":0},"","","","","","","",null,null,null,null,null,null,null,null,null,null,null,null,null,""]
[{"$f":"Trama!G65","v":0},"","","","","","","",null,null,null,null,null,null,null,null,null,null,null,null,null,""]
[{"$f":"Trama!G66","v":0},"","","","","",{"$f":"TEXT(IFERROR(CONCATENATE(IFERROR(DATE(F66,D66,E66),C66))*1,\"\"),\"dd/mm/yyyy\")","v":""},"",null,null,null,null,null,null,null,null,null,null,null,null,null,""]
[{"$f":"Trama!G67","v":0},{"$f":"IF(A67=0,\"\",A67*1)","v":""},{"$f":"IF(B67=\"\",\"\",IFERROR(B67,TEXT(A67,\"dd/mm/yyyy\")))","v":""},{"$f":"IFERROR(C67,LEFT(A67, FIND(\"/\",A67) - 1))","v":""},{"$f":"IFERROR(C67,MID(A67,FIND(\"/\",A67) + 1, FIND(\"/\", A67, FIND(\"/\", A67) + 1) - FIND(\"/\", A67) - 1))","v":""},{"$f":"IFERROR(C67,RIGHT(A67, LEN(A67) - FIND(\"/\", A67, FIND(\"/\", A67) + 1)))","v":""},"","",null,null,null,null,null,null,null,null,null,null,null,null,null,{"$f":"TEXT(IFERROR(CONCATENATE(IFERROR(DATE(U67,S67,T67),R67))*1,\"\"),\"dd/mm/yyyy\")","v":""}]
[{"$f":"Trama!G68","v":0},"","","","","","","",null,null,null,null,null,null,null,null,null,null,null,null,null,""]
[{"$f":"Trama!G69","v":0},"","","","","","","",null,null,null,null,null,null,null,null,null,null,null,null,null,""]
[{"$f":"Trama!G70","v":0},"","","","","","","",null,null,null,null,null,null,null,null,null,null,null,null,null,""]
[{"$f":"Trama!G71","v":0},"","","","","","","",null,null,null,null,null,null,null,null,null,null,null,null,null,""]
[{"$f":"Trama!G72","v":0},"","","","","","","",null,null,null,null,null,null,null,null,null,null,null,null,null,""]
[{"$f":"Trama!G73","v":0},"","","","","","","",null,null,null,null,null,null,null,null,null,null,null,null,null,""]
[{"$f":"Trama!G74","v":0},"","","","","","","",null,null,null,null,null,null,null,null,null,null,null,null,null,""]
[{"$f":"Trama!G75","v":0},"","","","","","","",null,null,null,null,null,null,null,null,null,null,null,null,null,""]
[{"$f":"Trama!G76","v":0},"","","","","","","",null,null,null,null,null,null,null,null,null,null,null,null,null,""]
[{"$f":"Trama!G77","v":0},"","","","","","","",null,null,null,null,null,null,null,null,null,null,null,null,null,""]
[{"$f":"Trama!G78","v":0},"","","","","","","",null,null,null,null,null,null,null,null,null,null,null,null,null,""]
[{"$f":"Trama!G79","v":0},"","","","","","","",null,null,null,null,null,null,null,null,null,null,null,null,null,""]
[{"$f":"Trama!G80","v":0},"","","","","","","",null,null,null,null,null,null,null,null,null,null,null,null,null,""]
[{"$f":"Trama!G81","v":0},"","","","","","","",null,null,null,null,null,null,null,null,null,null,null,null,null,""]
[{"$f":"Trama!G82","v":0},"","","","","","","",null,null,null,null,null,null,null,null,null,null,null,null,null,""]
[{"$f":"Trama!G83","v":0},"","","","","","","",null,null,null,null,null,null,null,null,null,null,null,null,null,""]
[{"$f":"Trama!G84","v":0},"","","","","","","",null,null,null,null,null,null,null,null,null,null,null,null,null,""]
[{"$f":"Trama!G85","v":0},"","","","","","","",null,null,null,null,null,null,null,null,null,null,null,null,null,""]
[{"$f":"Trama!G86","v":0},"","","","","","","",null,null,null,null,null,null,null,null,null,null,null,null,null,""]
[{"$f":"Trama!G87","v":0},"","","","","","","",null,null,null,null,null,null,null,null,null,null,null,null,null,""]
[{"$f":"Trama!G88","v":0},"","","","","","","",null,null,null,null,null,null,null,null,null,null,null,null,null,""]
[{"$f":"Trama!G89","v":0},"","","","","","","",null,null,null,null,null,null,null,null,null,null,null,null,null,""]
[{"$f":"Trama!G90","v":0},"","","","","","","",null,null,null,null,null,null,null,null,null,null,null,null,null,""]
[{"$f":"Trama!G91","v":0},"","","","","","","",null,null,null,null,null,null,null,null,null,null,null,null,null,""]
[{"$f":"Trama!G92","v":0},"","","","","","","",null,null,null,null,null,null,null,null,null,null,null,null,null,""]
[{"$f":"Trama!G93","v":0},"","","","","","","",null,null,null,null,null,null,null,null,null,null,null,null,null,""]
[{"$f":"Trama!G94","v":0},"","","","","","","",null,null,null,null,null,null,null,null,null,null,null,null,null,""]
[{"$f":"Trama!G95","v":0},"","","","","","","",null,null,null,null,null,null,null,null,null,null,null,null,null,""]
[{"$f":"Trama!G96","v":0},"","","","","","","",null,null,null,null,null,null,null,null,null,null,null,null,null,""]
[{"$f":"Trama!G97","v":0},"","","","","","","",null,null,null,null,null,null,null,null,null,null,null,null,null,""]
[{"$f":"Trama!G98","v":0},"","","","","","","",null,null,null,null,null,null,null,null,null,null,null,null,null,""]
[{"$f":"Trama!G99","v":0},"","","","","","","",null,null,null,null,null,null,null,null,null,null,null,null,null,""]
[{"$f":"Trama!G100","v":0},"","","","","","","",null,null,null,null,null,null,null,null,null,null,null,null,null,""]
[{"$f":"Trama!G101","v":0},"","","","","","","",null,null,null,null,null,null,null,null,null,null,null,null,null,""]
[{"$f":"Trama!G102","v":0},"","","","","","","",null,null,null,null,null,null,null,null,null,null,null,null,null,""]
[{"$f":"Trama!G103","v":0},"","","","","","","",null,null,null,null,null,null,null,null,null,null,null,null,null,""]
[{"$f":"Trama!G104","v":0},"","","","","","","",null,null,null,null,null,null,null,null,null,null,null,null,null,""]
[{"$f":"Trama!G105","v":0},"","","","","","","",null,null,null,null,null,null,null,null,null,null,null,null,null,""]
[{"$f":"Trama!G106","v":0},"","","","","","","",null,null,null,null,null,null,null,null,null,null,null,null,null,""]
[{"$f":"Trama!G107","v":0},"","","","","","","",null,null,null,null,null,null,null,null,null,null,null,null,null,""]
[{"$f":"Trama!G108","v":0},"","","","","","","",null,null,null,null,null,null,null,null,null,null,null,null,null,""]
[{"$f":"Trama!G109","v":0},"","","","","","","",null,null,null,null,null,null,null,null,null,null,null,null,null,""]
[{"$f":"Trama!G110","v":0},"","","","","","","",null,null,null,null,null,null,null,null,null,null,null,null,null,""]
[{"$f":"Trama!G111","v":0},"","","","","","","",null,null,null,null,null,null,null,null,null,null,null,null,null,""]
[{"$f":"Trama!G112","v":0},"","","","","","","",null,null,null,null,null,null,null,null,null,null,null,null,null,""]
[{"$f":"Trama!G113","v":0},"","","","","","","",null,null,null,null,null,null,null,null,null,null,null,null,null,""]
[{"$f":"Trama!G114","v":0},"","","","","","","",null,null,null,null,null,null,null,null,null,null,null,null,null,""]
[{"$f":"Trama!G115","v":0},"","","","","","","",null,null,null,null,null,null,null,null,null,null,null,null,null,""]
[{"$f":"Trama!G116","v":0},"","","","","","","",null,null,null,null,null,null,null,null,null,null,null,null,null,""]
[{"$f":"Trama!G117","v":0},"","","","","","","",null,null,null,null,null,null,null,null,null,null,null,null,null,""]
[{"$f":"Trama!G118","v":0},"","","","","","","",null,null,null,null,null,null,null,null,null,null,null,null,null,""]
[{"$f":"Trama!G119","v":0},"","","","","","","",null,null,null,null,null,null,null,null,null,null,null,null,null,""]
[{"$f":"Trama!G120","v":0},"","","","","","","",null,null,null,null,null,null,null,null,null,null,null,null,null,""]
[{"$f":"Trama!G121","v":0},"","","","","","","",null,null,null,null,null,null,null,null,null,null,null,null,null,""]
[{"$f":"Trama!G122","v":0},"","","","","","","",null,null,null,null,null,null,null,null,null,null,null,null,null,""]
[{"$f":"Trama!G123","v":0},"","","","","","","",null,null,null,null,null,null,null,null,null,null,null,null,null,""]
[{"$f":"Trama!G124","v":0},"","","","","","","",null,null,null,null,null,null,null,null,null,null,null,null,null,""]
[{"$f":"Trama!G125","v":0},"","","","","","","",null,null,null,null,null,null,null,null,null,null,null,null,null,""]
[{"$f":"Trama!G126","v":0},"","","","","","","",null,null,null,null,null,null,null,null,null,null,null,null,null,""]
[{"$f":"Trama!G127","v":0},"","","","","","","",null,null,null,null,null,null,null,null,null,null,null,null,null,""]
[{"$f":"Trama!G128","v":0},"","","","","","","",null,null,null,null,null,null,null,null,null,null,null,null,null,""]
[{"$f":"Trama!G129","v":0},"","","","","","","",null,null,null,null,null,null,null,null,null,null,null,null,null,""]
[{"$f":"Trama!G130","v":0},"","","","","",{"$f":"TEXT(IFERROR(CONCATENATE(IFERROR(DATE(F130,D130,E130),C130))*1,\"\"),\"dd/mm/yyyy\")","v":""},"",null,null,null,null,null,null,null,null,null,null,null,null,null,""]
[{"$f":"Trama!G131","v":0},{"$f":"IF(A131=0,\"\",A131*1)","v":""},{"$f":"IF(B131=\"\",\"\",IFERROR(B131,TEXT(A131,\"dd/mm/yyyy\")))","v":""},{"$f":"IFERROR(C131,LEFT(A131, FIND(\"/\",A131) - 1))","v":""},{"$f":"IFERROR(C131,MID(A131,FIND(\"/\",A131) + 1, FIND(\"/\", A131, FIND(\"/\", A131) + 1) - FIND(\"/\", A131) - 1))","v":""},{"$f":"IFERROR(C131,RIGHT(A131, LEN(A131) - FIND(\"/\", A131, FIND(\"/\", A131) + 1)))","v":""},"","",null,null,null,null,null,null,null,null,null,null,null,null,null,{"$f":"TEXT(IFERROR(CONCATENATE(IFERROR(DATE(U131,S131,T131),R131))*1,\"\"),\"dd/mm/yyyy\")","v":""}]
[{"$f":"Trama!G132","v":0},"","","","","","","",null,null,null,null,null,null,null,null,null,null,null,null,null,""]
[{"$f":"Trama!G133","v":0},"","","","","","","",null,null,null,null,null,null,null,null,null,null,null,null,null,""]
[{"$f":"Trama!G134","v":0},"","","","","","","",null,null,null,null,null,null,null,null,null,null,null,null,null,""]
[{"$f":"Trama!G135","v":0},"","","","","","","",null,null,null,null,null,null,null,null,null,null,null,null,null,""]
[{"$f":"Trama!G136","v":0},"","","","","","","",null,null,null,null,null,null,null,null,null,null,null,null,null,""]
[{"$f":"Trama!G137","v":0},"","","","","","","",null,null,null,null,null,null,null,null,null,null,null,null,null,""]
[{"$f":"Trama!G138","v":0},"","","","","","","",null,null,null,null,null,null,null,null,null,null,null,null,null,""]
[{"$f":"Trama!G139","v":0},"","","","","","","",null,null,null,null,null,null,null,null,null,null,null,null,null,""]
[{"$f":"Trama!G140","v":0},"","","","","","","",null,null,null,null,null,null,null,null,null,null,null,null,null,""]
[{"$f":"Trama!G141","v":0},"","","","","","","",null,null,null,null,null,null,null,null,null,null,null,null,null,""]
[{"$f":"Trama!G142","v":0},"","","","","","","",null,null,null,null,null,null,null,null,null,null,null,null,null,""]
[{"$f":"Trama!G143","v":0},"","","","","","","",null,null,null,null,null,null,null,null,null,null,null,null,null,""]
[{"$f":"Trama!G144","v":0},"","","","","","","",null,null,null,null,null,null,null,null,null,null,null,null,null,""]
[{"$f":"Trama!G145","v":0},"","","","","","","",null,null,null,null,null,null,null,null,null,null,null,null,null,""]
[{"$f":"Trama!G146","v":0},"","","","","","","",null,null,null,null,null,null,null,null,null,null,null,null,null,""]
[{"$f":"Trama!G147","v":0},"","","","","","","",null,null,null,null,null,null,null,null,null,null,null,null,null,""]
[{"$f":"Trama!G148","v":0},"","","","","","","",null,null,null,null,null,null,null,null,null,null,null,null,null,""]
[{"$f":"Trama!G149","v":0},"","","","","","","",null,null,null,null,null,null,null,null,null,null,null,null,null,""]
[{"$f":"Trama!G150","v":0},"","","","","","","",null,null,null,null,null,null,null,null,null,null,null,null,null,""]
[{"$f":"Trama!G151","v":0},"","","","","","","",null,null,null,null,null,null,null,null,null,null,null,null,null,""]
[{"$f":"Trama!G152","v":0},"","","","","","","",null,null,null,null,null,null,null,null,null,null,null,null,null,""]
[{"$f":"Trama!G153","v":0},"","","","","","","",null,null,null,null,null,null,null,null,null,null,null,null,null,""]
[{"$f":"Trama!G154","v":0},"","","","","","","",null,null,null,null,null,null,null,null,null,null,null,null,null,""]
[{"$f":"Trama!G155","v":0},"","","","","","","",null,null,null,null,null,null,null,null,null,null,null,null,null,""]
[{"$f":"Trama!G156","v":0},"","","","","","","",null,null,null,null,null,null,null,null,null,null,null,null,null,""]
[{"$f":"Trama!G157","v":0},"","","","","","","",null,null,null,null,null,null,null,null,null,null,null,null,null,""]
[{"$f":"Trama!G158","v":0},"","","","","","","",null,null,null,null,null,null,null,null,null,null,null,null,null,""]
[{"$f":"Trama!G159","v":0},"","","","","","","",null,null,null,null,null,null,null,null,null,null,null,null,null,""]
[{"$f":"Trama!G160","v":0},"","","","","","","",null,null,null,null,null,null,null,null,null,null,null,null,null,""]
[{"$f":"Trama!G161","v":0},"","","","","","","",null,null,null,null,null,null,null,null,null,null,null,null,null,""]
[{"$f":"Trama!G162","v":0},"","","","","","","",null,null,null,null,null,null,null,null,null,null,null,null,null,""]
[{"$f":"Trama!G163","v":0},"","","","","","","",null,null,null,null,null,null,null,null,null,null,null,null,null,""]
[{"$f":"Trama!G164","v":0},"","","","","","","",null,null,null,null,null,null,null,null,null,null,null,null,null,""]
[{"$f":"Trama!G165","v":0},"","","","","","","",null,null,null,null,null,null,null,null,null,null,null,null,null,""]
[{"$f":"Trama!G166","v":0},"","","","","","","",null,null,null,null,null,null,null,null,null,null,null,null,null,""]
[{"$f":"Trama!G167","v":0},"","","","","","","",null,null,null,null,null,null,null,null,null,null,null,null,null,""]
[{"$f":"Trama!G168","v":0},"","","","","","","",null,null,null,null,null,null,null,null,null,null,null,null,null,""]
[{"$f":"Trama!G169","v":0},"","","","","","","",null,null,null,null,null,null,null,null,null,null,null,null,null,""]
[{"$f":"Trama!G170","v":0},"","","","","","","",null,null,null,null,null,null,null,null,null,null,null,null,null,""]
[{"$f":"Trama!G171","v":0},"","","","","","","",null,null,null,null,null,null,null,null,null,null,null,null,null,""]
[{"$f":"Trama!G172","v":0},"","","","","","","",null,null,null,null,null,null,null,null,null,null,null,null,null,""]
[{"$f":"Trama!G173","v":0},"","","","","","","",null,null,null,null,null,null,null,null,null,null,null,null,null,""]
[{"$f":"Trama!G174","v":0},"","","","","","","",null,null,null,null,null,null,null,null,null,null,null,null,null,""]
[{"$f":"Trama!G175","v":0},"","","","","","","",null,null,null,null,null,null,null,null,null,null,null,null,null,""]
[{"$f":"Trama!G176","v":0},"","","","","","","",null,null,null,null,null,null,null,null,null,null,null,null,null,""]
[{"$f":"Trama!G177","v":0},"","","","","","","",null,null,null,null,null,null,null,null,null,null,null,null,null,""]
[{"$f":"Trama!G178","v":0},"","","","","","","",null,null,null,null,null,null,null,null,null,null,null,null,null,""]
[{"$f":"Trama!G179","v":0},"","","","","","","",null,null,null,null,null,null,null,null,null,null,null,null,null,""]
[{"$f":"Trama!G180","v":0},"","","","","","","",null,null,null,null,null,null,null,null,null,null,null,null,null,""]
[{"$f":"Trama!G181","v":0},"","","","","","","",null,null,null,null,null,null,null,null,null,null,null,null,null,""]
[{"$f":"Trama!G182","v":0},"","","","","","","",null,null,null,null,null,null,null,null,null,null,null,null,null,""]
[{"$f":"Trama!G183","v":0},"","","","","","","",null,null,null,null,null,null,null,null,null,null,null,null,null,""]
[{"$f":"Trama!G184","v":0},"","","","","","","",null,null,null,null,null,null,null,null,null,null,null,null,null,""]
[{"$f":"Trama!G185","v":0},"","","","","","","",null,null,null,null,null,null,null,null,null,null,null,null,null,""]
[{"$f":"Trama!G186","v":0},"","","","","","","",null,null,null,null,null,null,null,null,null,null,null,null,null,""]
[{"$f":"Trama!G187","v":0},"","","","","","","",null,null,null,null,null,null,null,null,null,null,null,null,null,""]
[{"$f":"Trama!G188","v":0},"","","","","","","",null,null,null,null,null,null,null,null,null,null,null,null,null,""]
[{"$f":"Trama!G189","v":0},"","","","","","","",null,null,null,null,null,null,null,null,null,null,null,null,null,""]
[{"$f":"Trama!G190","v":0},"","","","","","","",null,null,null,null,null,null,null,null,null,null,null,null,null,""]
[{"$f":"Trama!G191","v":0},"","","","","","","",null,null,null,null,null,null,null,null,null,null,null,null,null,""]
[{"$f":"Trama!G192","v":0},"","","","","","","",null,null,null,null,null,null,null,null,null,null,null,null,null,""]
[{"$f":"Trama!G193","v":0},"","","","","","","",null,null,null,null,null,null,null,null,null,null,null,null,null,""]
[{"$f":"Trama!G194","v":0},"","","","","",{"$f":"TEXT(IFERROR(CONCATENATE(IFERROR(DATE(F194,D194,E194),C194))*1,\"\"),\"dd/mm/yyyy\")","v":""},"",null,null,null,null,null,null,null,null,null,null,null,null,null,""]
[{"$f":"Trama!G195","v":0},{"$f":"IF(A195=0,\"\",A195*1)","v":""},{"$f":"IF(B195=\"\",\"\",IFERROR(B195,TEXT(A195,\"dd/mm/yyyy\")))","v":""},{"$f":"IFERROR(C195,LEFT(A195, FIND(\"/\",A195) - 1))","v":""},{"$f":"IFERROR(C195,MID(A195,FIND(\"/\",A195) + 1, FIND(\"/\", A195, FIND(\"/\", A195) + 1) - FIND(\"/\", A195) - 1))","v":""},{"$f":"IFERROR(C195,RIGHT(A195, LEN(A195) - FIND(\"/\", A195, FIND(\"/\", A195) + 1)))","v":""},"","",null,null,null,null,null,null,null,null,null,null,null,null,null,{"$f":"TEXT(IFERROR(CONCATENATE(IFERROR(DATE(U195,S195,T195),R195))*1,\"\"),\"dd/mm/yyyy\")","v":""}]
[{"$f":"Trama!G196","v":0},"","","","","","","",null,null,null,null,null,null,null,null,null,null,null,null,null,""]
[{"$f":"Trama!G197","v":0},"","","","","","","",null,null,null,null,null,null,null,null,null,null,null,null,null,""]
[{"$f":"Trama!G198","v":0},"","","","","","","",null,null,null,null,null,null,null,null,null,null,null,null,null,""]
[{"$f":"Trama!G199","v":0},"","","","","","","",null,null,null,null,null,null,null,null,null,null,null,null,null,""]
[{"$f":"Trama!G200","v":0},"","","","","","","",null,null,null,null,null,null,null,null,null,null,null,null,null,""]
[{"$f":"Trama!G201","v":0},"","","","","","","",null,null,null,null,null,null,null,null,null,null,null,null,null,""]
[{"$f":"Trama!G202","v":0},"","","","","","","",null,null,null,null,null,null,null,null,null,null,null,null,null,""]
[{"$f":"Trama!G203","v":0},"","","","","","","",null,null,null,null,null,null,null,null,null,null,null,null,null,""]
[{"$f":"Trama!G204","v":0},"","","","","","","",null,null,null,null,null,null,null,null,null,null,null,null,null,""]
[{"$f":"Trama!G205","v":0},"","","","","","","",null,null,null,null,null,null,null,null,null,null,null,null,null,""]
[{"$f":"Trama!G206","v":0},"","","","","","","",null,null,null,null,null,null,null,null,null,null,null,null,null,""]
[{"$f":"Trama!G207","v":0},"","","","","","","",null,null,null,null,null,null,null,null,null,null,null,null,null,""]
[{"$f":"Trama!G208","v":0},"","","","","","","",null,null,null,null,null,null,null,null,null,null,null,null,null,""]
[{"$f":"Trama!G209","v":0},"","","","","","","",null,null,null,null,null,null,null,null,null,null,null,null,null,""]
[{"$f":"Trama!G210","v":0},"","","","","","","",null,null,null,null,null,null,null,null,null,null,null,null,null,""]
[{"$f":"Trama!G211","v":0},"","","","","","","",null,null,null,null,null,null,null,null,null,null,null,null,null,""]
[{"$f":"Trama!G212","v":0},"","","","","","","",null,null,null,null,null,null,null,null,null,null,null,null,null,""]
[{"$f":"Trama!G213","v":0},"","","","","","","",null,null,null,null,null,null,null,null,null,null,null,null,null,""]
[{"$f":"Trama!G214","v":0},"","","","","","","",null,null,null,null,null,null,null,null,null,null,null,null,null,""]
[{"$f":"Trama!G215","v":0},"","","","","","","",null,null,null,null,null,null,null,null,null,null,null,null,null,""]
[{"$f":"Trama!G216","v":0},"","","","","","","",null,null,null,null,null,null,null,null,null,null,null,null,null,""]
[{"$f":"Trama!G217","v":0},"","","","","","","",null,null,null,null,null,null,null,null,null,null,null,null,null,""]
[{"$f":"Trama!G218","v":0},"","","","","","","",null,null,null,null,null,null,null,null,null,null,null,null,null,""]
[{"$f":"Trama!G219","v":0},"","","","","","","",null,null,null,null,null,null,null,null,null,null,null,null,null,""]
[{"$f":"Trama!G220","v":0},"","","","","","","",null,null,null,null,null,null,null,null,null,null,null,null,null,""]
[{"$f":"Trama!G221","v":0},"","","","","","","",null,null,null,null,null,null,null,null,null,null,null,null,null,""]
[{"$f":"Trama!G222","v":0},"","","","","","","",null,null,null,null,null,null,null,null,null,null,null,null,null,""]
[{"$f":"Trama!G223","v":0},"","","","","","","",null,null,null,null,null,null,null,null,null,null,null,null,null,""]
[{"$f":"Trama!G224","v":0},"","","","","","","",null,null,null,null,null,null,null,null,null,null,null,null,null,""]
[{"$f":"Trama!G225","v":0},"","","","","","","",null,null,null,null,null,null,null,null,null,null,null,null,null,""]
[{"$f":"Trama!G226","v":0},"","","","","","","",null,null,null,null,null,null,null,null,null,null,null,null,null,""]
[{"$f":"Trama!G227","v":0},"","","","","","","",null,null,null,null,null,null,null,null,null,null,null,null,null,""]
[{"$f":"Trama!G228","v":0},"","","","","","","",null,null,null,null,null,null,null,null,null,null,null,null,null,""]
[{"$f":"Trama!G229","v":0},"","","","","","","",null,null,null,null,null,null,null,null,null,null,null,null,null,""]
[{"$f":"Trama!G230","v":0},"","","","","","","",null,null,null,null,null,null,null,null,null,null,null,null,null,""]
[{"$f":"Trama!G231","v":0},"","","","","","","",null,null,null,null,null,null,null,null,null,null,null,null,null,""]
[{"$f":"Trama!G232","v":0},"","","","","","","",null,null,null,null,null,null,null,null,null,null,null,null,null,""]
[{"$f":"Trama!G233","v":0},"","","","","","","",null,null,null,null,null,null,null,null,null,null,null,null,null,""]
[{"$f":"Trama!G234","v":0},"","","","","","","",null,null,null,null,null,null,null,null,null,null,null,null,null,""]
[{"$f":"Trama!G235","v":0},"","","","","","","",null,null,null,null,null,null,null,null,null,null,null,null,null,""]
[{"$f":"Trama!G236","v":0},"","","","","","","",null,null,null,null,null,null,null,null,null,null,null,null,null,""]
[{"$f":"Trama!G237","v":0},"","","","","","","",null,null,null,null,null,null,null,null,null,null,null,null,null,""]
[{"$f":"Trama!G238","v":0},"","","","","","","",null,null,null,null,null,null,null,null,null,null,null,null,null,""]
[{"$f":"Trama!G239","v":0},"","","","","","","",null,null,null,null,null,null,null,null,null,null,null,null,null,""]
[{"$f":"Trama!G240","v":0},"","","","","","","",null,null,null,null,null,null,null,null,null,null,null,null,null,""]
[{"$f":"Trama!G241","v":0},"","","","","","","",null,null,null,null,null,null,null,null,null,null,null,null,null,""]
[{"$f":"Trama!G242","v":0},"","","","","","","",null,null,null,null,null,null,null,null,null,null,null,null,null,""]
[{"$f":"Trama!G243","v":0},"","","","","","","",null,null,null,null,null,null,null,null,null,null,null,null,null,""]
[{"$f":"Trama!G244","v":0},"","","","","","","",null,null,null,null,null,null,null,null,null,null,null,null,null,""]
[{"$f":"Trama!G245","v":0},"","","","","","","",null,null,null,null,null,null,null,null,null,null,null,null,null,""]
[{"$f":"Trama!G246","v":0},"","","","","","","",null,null,null,null,null,null,null,null,null,null,null,null,null,""]
[{"$f":"Trama!G247","v":0},"","","","","","","",null,null,null,null,null,null,null,null,null,null,null,null,null,""]
[{"$f":"Trama!G248","v":0},"","","","","","","",null,null,null,null,null,null,null,null,null,null,null,null,null,""]
[{"$f":"Trama!G249","v":0},"","","","","","","",null,null,null,null,null,null,null,null,null,null,null,null,null,""]
[{"$f":"Trama!G250","v":0},"","","","","","","",null,null,null,null,null,null,null,null,null,null,null,null,null,""]
[{"$f":"Trama!G251","v":0},"","","","","","","",null,null,null,null,null,null,null,null,null,null,null,null,null,""]
[{"$f":"Trama!G252","v":0},"","","","","","","",null,null,null,null,null,null,null,null,null,null,null,null,null,""]
[{"$f":"Trama!G253","v":0},"","","","","","","",null,null,null,null,null,null,null,null,null,null,null,null,null,""]
[{"$f":"Trama!G254","v":0},"","","","","","","",null,null,null,null,null,null,null,null,null,null,null,null,null,""]
[{"$f":"Trama!G255","v":0},"","","","","","","",null,null,null,null,null,null,null,null,null,null,null,null,null,""]
[{"$f":"Trama!G256","v":0},"","","","","","","",null,null,null,null,null,null,null,null,null,null,null,null,null,""]
[{"$f":"Trama!G257","v":0},"","","","","","","",null,null,null,null,null,null,null,null,null,null,null,null,null,""]
[{"$f":"Trama!G258","v":0},"","","","","",{"$f":"TEXT(IFERROR(CONCATENATE(IFERROR(DATE(F258,D258,E258),C258))*1,\"\"),\"dd/mm/yyyy\")","v":""},"",null,null,null,null,null,null,null,null,null,null,null,null,null,""]
[{"$f":"Trama!G259","v":0},{"$f":"IF(A259=0,\"\",A259*1)","v":""},{"$f":"IF(B259=\"\",\"\",IFERROR(B259,TEXT(A259,\"dd/mm/yyyy\")))","v":""},{"$f":"IFERROR(C259,LEFT(A259, FIND(\"/\",A259) - 1))","v":""},{"$f":"IFERROR(C259,MID(A259,FIND(\"/\",A259) + 1, FIND(\"/\", A259, FIND(\"/\", A259) + 1) - FIND(\"/\", A259) - 1))","v":""},{"$f":"IFERROR(C259,RIGHT(A259, LEN(A259) - FIND(\"/\", A259, FIND(\"/\", A259) + 1)))","v":""},"","",null,null,null,null,null,null,null,null,null,null,null,null,null,{"$f":"TEXT(IFERROR(CONCATENATE(IFERROR(DATE(U259,S259,T259),R259))*1,\"\"),\"dd/mm/yyyy\")","v":""}]
[{"$f":"Trama!G260","v":0},"","","","","","","",null,null,null,null,null,null,null,null,null,null,null,null,null,""]
[{"$f":"Trama!G261","v":0},"","","","","","","",null,null,null,null,null,null,null,null,null,null,null,null,null,""]
[{"$f":"Trama!G262","v":0},"","","","","","","",null,null,null,null,null,null,null,null,null,null,null,null,null,""]
[{"$f":"Trama!G263","v":0},"","","","","","","",null,null,null,null,null,null,null,null,null,null,null,null,null,""]
[{"$f":"Trama!G264","v":0},"","","","","","","",null,null,null,null,null,null,null,null,null,null,null,null,null,""]
[{"$f":"Trama!G265","v":0},"","","","","","","",null,null,null,null,null,null,null,null,null,null,null,null,null,""]
[{"$f":"Trama!G266","v":0},"","","","","","","",null,null,null,null,null,null,null,null,null,null,null,null,null,""]
[{"$f":"Trama!G267","v":0},"","","","","","","",null,null,null,null,null,null,null,null,null,null,null,null,null,""]
[{"$f":"Trama!G268","v":0},"","","","","","","",null,null,null,null,null,null,null,null,null,null,null,null,null,""]
[{"$f":"Trama!G269","v":0},"","","","","","","",null,null,null,null,null,null,null,null,null,null,null,null,null,""]
[{"$f":"Trama!G270","v":0},"","","","","","","",null,null,null,null,null,null,null,null,null,null,null,null,null,""]
[{"$f":"Trama!G271","v":0},"","","","","","","",null,null,null,null,null,null,null,null,null,null,null,null,null,""]
[{"$f":"Trama!G272","v":0},"","","","","","","",null,null,null,null,null,null,null,null,null,null,null,null,null,""]
[{"$f":"Trama!G273","v":0},"","","","","","","",null,null,null,null,null,null,null,null,null,null,null,null,null,""]
[{"$f":"Trama!G274","v":0},"","","","","","","",null,null,null,null,null,null,null,null,null,null,null,null,null,""]
[{"$f":"Trama!G275","v":0},"","","","","","","",null,null,null,null,null,null,null,null,null,null,null,null,null,""]
[{"$f":"Trama!G276","v":0},"","","","","","","",null,null,null,null,null,null,null,null,null,null,null,null,null,""]
[{"$f":"Trama!G277","v":0},"","","","","","","",null,null,null,null,null,null,null,null,null,null,null,null,null,""]
[{"$f":"Trama!G278","v":0},"","","","","","","",null,null,null,null,null,null,null,null,null,null,null,null,null,""]
[{"$f":"Trama!G279","v":0},"","","","","","","",null,null,null,null,null,null,null,null,null,null,null,null,null,""]
[{"$f":"Trama!G280","v":0},"","","","","","","",null,null,null,null,null,null,null,null,null,null,null,null,null,""]
[{"$f":"Trama!G281","v":0},"","","","","","","",null,null,null,null,null,null,null,null,null,null,null,null,null,""]
[{"$f":"Trama!G282","v":0},"","","","","","","",null,null,null,null,null,null,null,null,null,null,null,null,null,""]
[{"$f":"Trama!G283","v":0},"","","","","","","",null,null,null,null,null,null,null,null,null,null,null,null,null,""]
[{"$f":"Trama!G284","v":0},"","","","","","","",null,null,null,null,null,null,null,null,null,null,null,null,null,""]
[{"$f":"Trama!G285","v":0},"","","","","","","",null,null,null,null,null,null,null,null,null,null,null,null,null,""]
[{"$f":"Trama!G286","v":0},"","","","","","","",null,null,null,null,null,null,null,null,null,null,null,null,null,""]
[{"$f":"Trama!G287","v":0},"","","","","","","",null,null,null,null,null,null,null,null,null,null,null,null,null,""]
[{"$f":"Trama!G288","v":0},"","","","","","","",null,null,null,null,null,null,null,null,null,null,null,null,null,""]
[{"$f":"Trama!G289","v":0},"","","","","","","",null,null,null,null,null,null,null,null,null,null,null,null,null,""]
[{"$f":"Trama!G290","v":0},"","","","","","","",null,null,null,null,null,null,null,null,null,null,null,null,null,""]
[{"$f":"Trama!G291","v":0},"","","","","","","",null,null,null,null,null,null,null,null,null,null,null,null,null,""]
[{"$f":"Trama!G292","v":0},"","","","","","","",null,null,null,null,null,null,null,null,null,null,null,null,null,""]
[{"$f":"Trama!G293","v":0},"","","","","","","",null,null,null,null,null,null,null,null,null,null,null,null,null,""]
[{"$f":"Trama!G294","v":0},"","","","","","","",null,null,null,null,null,null,null,null,null,null,null,null,null,""]
[{"$f":"Trama!G295","v":0},"","","","","","","",null,null,null,null,null,null,null,null,null,null,null,null,null,""]
[{"$f":"Trama!G296","v":0},"","","","","","","",null,null,null,null,null,null,null,null,null,null,null,null,null,""]
[{"$f":"Trama!G297","v":0},"","","","","","","",null,null,null,null,null,null,null,null,null,null,null,null,null,""]
[{"$f":"Trama!G298","v":0},"","","","","","","",null,null,null,null,null,null,null,null,null,null,null,null,null,""]
[{"$f":"Trama!G299","v":0},"","","","","","","",null,null,null,null,null,null,null,null,null,null,null,null,null,""]
[{"$f":"Trama!G300","v":0},"","","","","","","",null,null,null,null,null,null,null,null,null,null,null,null,null,""]
[{"$f":"Trama!G301","v":0},"","","","","","","",null,null,null,null,null,null,null,null,null,null,null,null,null,""]
[{"$f":"Trama!G302","v":0},"","","","","","","",null,null,null,null,null,null,null,null,null,null,null,null,null,""]
[{"$f":"Trama!G303","v":0},"","","","","","","",null,null,null,null,null,null,null,null,null,null,null,null,null,""]
[{"$f":"Trama!G304","v":0},"","","","","","","",null,null,null,null,null,null,null,null,null,null,null,null,null,""]
[{"$f":"Trama!G305","v":0},"","","","","","","",null,null,null,null,null,null,null,null,null,null,null,null,null,""]
[{"$f":"Trama!G306","v":0},"","","","","","","",null,null,null,null,null,null,null,null,null,null,null,null,null,""]
[{"$f":"Trama!G307","v":0},"","","","","","","",null,null,null,null,null,null,null,null,null,null,null,null,null,""]
[{"$f":"Trama!G308","v":0},"","","","","","","",null,null,null,null,null,null,null,null,null,null,null,null,null,""]
[{"$f":"Trama!G309","v":0},"","","","","","","",null,null,null,null,null,null,null,null,null,null,null,null,null,""]
[{"$f":"Trama!G310","v":0},"","","","","","","",null,null,null,null,null,null,null,null,null,null,null,null,null,""]
[{"$f":"Trama!G311","v":0},"","","","","","","",null,null,null,null,null,null,null,null,null,null,null,null,null,""]
[{"$f":"Trama!G312","v":0},"","","","","","","",null,null,null,null,null,null,null,null,null,null,null,null,null,""]
[{"$f":"Trama!G313","v":0},"","","","","","","",null,null,null,null,null,null,null,null,null,null,null,null,null,""]
[{"$f":"Trama!G314","v":0},"","","","","","","",null,null,null,null,null,null,null,null,null,null,null,null,null,""]
[{"$f":"Trama!G315","v":0},"","","","","","","",null,null,null,null,null,null,null,null,null,null,null,null,null,""]
[{"$f":"Trama!G316","v":0},"","","","","","","",null,null,null,null,null,null,null,null,null,null,null,null,null,""]
[{"$f":"Trama!G317","v":0},"","","","","","","",null,null,null,null,null,null,null,null,null,null,null,null,null,""]
[{"$f":"Trama!G318","v":0},"","","","","","","",null,null,null,null,null,null,null,null,null,null,null,null,null,""]
[{"$f":"Trama!G319","v":0},"","","","","","","",null,null,null,null,null,null,null,null,null,null,null,null,null,""]
[{"$f":"Trama!G320","v":0},"","","","","","","",null,null,null,null,null,null,null,null,null,null,null,null,null,""]
[{"$f":"Trama!G321","v":0},"","","","","","","",null,null,null,null,null,null,null,null,null,null,null,null,null,""]
[{"$f":"Trama!G322","v":0},"","","","","",{"$f":"TEXT(IFERROR(CONCATENATE(IFERROR(DATE(F322,D322,E322),C322))*1,\"\"),\"dd/mm/yyyy\")","v":""},"",null,null,null,null,null,null,null,null,null,null,null,null,null,""]
[{"$f":"Trama!G323","v":0},{"$f":"IF(A323=0,\"\",A323*1)","v":""},{"$f":"IF(B323=\"\",\"\",IFERROR(B323,TEXT(A323,\"dd/mm/yyyy\")))","v":""},{"$f":"IFERROR(C323,LEFT(A323, FIND(\"/\",A323) - 1))","v":""},{"$f":"IFERROR(C323,MID(A323,FIND(\"/\",A323) + 1, FIND(\"/\", A323, FIND(\"/\", A323) + 1) - FIND(\"/\", A323) - 1))","v":""},{"$f":"IFERROR(C323,RIGHT(A323, LEN(A323) - FIND(\"/\", A323, FIND(\"/\", A323) + 1)))","v":""},"","",null,null,null,null,null,null,null,null,null,null,null,null,null,{"$f":"TEXT(IFERROR(CONCATENATE(IFERROR(DATE(U323,S323,T323),R323))*1,\"\"),\"dd/mm/yyyy\")","v":""}]
[{"$f":"Trama!G324","v":0},"","","","","","","",null,null,null,null,null,null,null,null,null,null,null,null,null,""]
[{"$f":"Trama!G325","v":0},"","","","","","","",null,null,null,null,null,null,null,null,null,null,null,null,null,""]
[{"$f":"Trama!G326","v":0},"","","","","","","",null,null,null,null,null,null,null,null,null,null,null,null,null,""]
[{"$f":"Trama!G327","v":0},"","","","","","","",null,null,null,null,null,null,null,null,null,null,null,null,null,""]
[{"$f":"Trama!G328","v":0},"","","","","","","",null,null,null,null,null,null,null,null,null,null,null,null,null,""]
[{"$f":"Trama!G329","v":0},"","","","","","","",null,null,null,null,null,null,null,null,null,null,null,null,null,""]
[{"$f":"Trama!G330","v":0},"","","","","","","",null,null,null,null,null,null,null,null,null,null,null,null,null,""]
[{"$f":"Trama!G331","v":0},"","","","","","","",null,null,null,null,null,null,null,null,null,null,null,null,null,""]
[{"$f":"Trama!G332","v":0},"","","","","","","",null,null,null,null,null,null,null,null,null,null,null,null,null,""]
[{"$f":"Trama!G333","v":0},"","","","","","","",null,null,null,null,null,null,null,null,null,null,null,null,null,""]
[{"$f":"Trama!G334","v":0},"","","","","","","",null,null,null,null,null,null,null,null,null,null,null,null,null,""]
[{"$f":"Trama!G335","v":0},"","","","","","","",null,null,null,null,null,null,null,null,null,null,null,null,null,""]
[{"$f":"Trama!G336","v":0},"","","","","","","",null,null,null,null,null,null,null,null,null,null,null,null,null,""]
[{"$f":"Trama!G337","v":0},"","","","","","","",null,null,null,null,null,null,null,null,null,null,null,null,null,""]
[{"$f":"Trama!G338","v":0},"","","","","","","",null,null,null,null,null,null,null,null,null,null,null,null,null,""]
[{"$f":"Trama!G339","v":0},"","","","","","","",null,null,null,null,null,null,null,null,null,null,null,null,null,""]
[{"$f":"Trama!G340","v":0},"","","","","","","",null,null,null,null,null,null,null,null,null,null,null,null,null,""]
[{"$f":"Trama!G341","v":0},"","","","","","","",null,null,null,null,null,null,null,null,null,null,null,null,null,""]
[{"$f":"Trama!G342","v":0},"","","","","","","",null,null,null,null,null,null,null,null,null,null,null,null,null,""]
[{"$f":"Trama!G343","v":0},"","","","","","","",null,null,null,null,null,null,null,null,null,null,null,null,null,""]
[{"$f":"Trama!G344","v":0},"","","","","","","",null,null,null,null,null,null,null,null,null,null,null,null,null,""]
[{"$f":"Trama!G345","v":0},"","","","","","","",null,null,null,null,null,null,null,null,null,null,null,null,null,""]
[{"$f":"Trama!G346","v":0},"","","","","","","",null,null,null,null,null,null,null,null,null,null,null,null,null,""]
[{"$f":"Trama!G347","v":0},"","","","","","","",null,null,null,null,null,null,null,null,null,null,null,null,null,""]
[{"$f":"Trama!G348","v":0},"","","","","","","",null,null,null,null,null,null,null,null,null,null,null,null,null,""]
[{"$f":"Trama!G349","v":0},"","","","","","","",null,null,null,null,null,null,null,null,null,null,null,null,null,""]
[{"$f":"Trama!G350","v":0},"","","","","","","",null,null,null,null,null,null,null,null,null,null,null,null,null,""]
[{"$f":"Trama!G351","v":0},"","","","","","","",null,null,null,null,null,null,null,null,null,null,null,null,null,""]
[{"$f":"Trama!G352","v":0},"","","","","","","",null,null,null,null,null,null,null,null,null,null,null,null,null,""]
[{"$f":"Trama!G353","v":0},"","","","","","","",null,null,null,null,null,null,null,null,null,null,null,null,null,""]
[{"$f":"Trama!G354","v":0},"","","","","","","",null,null,null,null,null,null,null,null,null,null,null,null,null,""]
[{"$f":"Trama!G355","v":0},"","","","","","","",null,null,null,null,null,null,null,null,null,null,null,null,null,""]
[{"$f":"Trama!G356","v":0},"","","","","","","",null,null,null,null,null,null,null,null,null,null,null,null,null,""]
[{"$f":"Trama!G357","v":0},"","","","","","","",null,null,null,null,null,null,null,null,null,null,null,null,null,""]
[{"$f":"Trama!G358","v":0},"","","","","","","",null,null,null,null,null,null,null,null,null,null,null,null,null,""]
[{"$f":"Trama!G359","v":0},"","","","","","","",null,null,null,null,null,null,null,null,null,null,null,null,null,""]
[{"$f":"Trama!G360","v":0},"","","","","","","",null,null,null,null,null,null,null,null,null,null,null,null,null,""]
[{"$f":"Trama!G361","v":0},"","","","","","","",null,null,null,null,null,null,null,null,null,null,null,null,null,""]
[{"$f":"Trama!G362","v":0},"","","","","","","",null,null,null,null,null,null,null,null,null,null,null,null,null,""]
[{"$f":"Trama!G363","v":0},"","","","","","","",null,null,null,null,null,null,null,null,null,null,null,null,null,""]
[{"$f":"Trama!G364","v":0},"","","","","","","",null,null,null,null,null,null,null,null,null,null,null,null,null,""]
[{"$f":"Trama!G365","v":0},"","","","","","","",null,null,null,null,null,null,null,null,null,null,null,null,null,""]
[{"$f":"Trama!G366","v":0},"","","","","","","",null,null,null,null,null,null,null,null,null,null,null,null,null,""]
[{"$f":"Trama!G367","v":0},"","","","","","","",null,null,null,null,null,null,null,null,null,null,null,null,null,""]
[{"$f":"Trama!G368","v":0},"","","","","","","",null,null,null,null,null,null,null,null,null,null,null,null,null,""]
[{"$f":"Trama!G369","v":0},"","","","","","","",null,null,null,null,null,null,null,null,null,null,null,null,null,""]
[{"$f":"Trama!G370","v":0},"","","","","","","",null,null,null,null,null,null,null,null,null,null,null,null,null,""]
[{"$f":"Trama!G371","v":0},"","","","","","","",null,null,null,null,null,null,null,null,null,null,null,null,null,""]
[{"$f":"Trama!G372","v":0},"","","","","","","",null,null,null,null,null,null,null,null,null,null,null,null,null,""]
[{"$f":"Trama!G373","v":0},"","","","","","","",null,null,null,null,null,null,null,null,null,null,null,null,null,""]
[{"$f":"Trama!G374","v":0},"","","","","","","",null,null,null,null,null,null,null,null,null,null,null,null,null,""]
[{"$f":"Trama!G375","v":0},"","","","","","","",null,null,null,null,null,null,null,null,null,null,null,null,null,""]
[{"$f":"Trama!G376","v":0},"","","","","","","",null,null,null,null,null,null,null,null,null,null,null,null,null,""]
[{"$f":"Trama!G377","v":0},"","","","","","","",null,null,null,null,null,null,null,null,null,null,null,null,null,""]
[{"$f":"Trama!G378","v":0},"","","","","","","",null,null,null,null,null,null,null,null,null,null,null,null,null,""]
[{"$f":"Trama!G379","v":0},"","","","","","","",null,null,null,null,null,null,null,null,null,null,null,null,null,""]
[{"$f":"Trama!G380","v":0},"","","","","","","",null,null,null,null,null,null,null,null,null,null,null,null,null,""]
[{"$f":"Trama!G381","v":0},"","","","","","","",null,null,null,null,null,null,null,null,null,null,null,null,null,""]
[{"$f":"Trama!G382","v":0},"","","","","","","",null,null,null,null,null,null,null,null,null,null,null,null,null,""]
[{"$f":"Trama!G383","v":0},"","","","","","","",null,null,null,null,null,null,null,null,null,null,null,null,null,""]
[{"$f":"Trama!G384","v":0},"","","","","","","",null,null,null,null,null,null,null,null,null,null,null,null,null,""]
[{"$f":"Trama!G385","v":0},"","","","","","","",null,null,null,null,null,null,null,null,null,null,null,null,null,""]
[{"$f":"Trama!G386","v":0},"","","","","",{"$f":"TEXT(IFERROR(CONCATENATE(IFERROR(DATE(F386,D386,E386),C386))*1,\"\"),\"dd/mm/yyyy\")","v":""},"",null,null,null,null,null,null,null,null,null,null,null,null,null,""]
[{"$f":"Trama!G387","v":0},{"$f":"IF(A387=0,\"\",A387*1)","v":""},{"$f":"IF(B387=\"\",\"\",IFERROR(B387,TEXT(A387,\"dd/mm/yyyy\")))","v":""},{"$f":"IFERROR(C387,LEFT(A387, FIND(\"/\",A387) - 1))","v":""},{"$f":"IFERROR(C387,MID(A387,FIND(\"/\",A387) + 1, FIND(\"/\", A387, FIND(\"/\", A387) + 1) - FIND(\"/\", A387) - 1))","v":""},{"$f":"IFERROR(C387,RIGHT(A387, LEN(A387) - FIND(\"/\", A387, FIND(\"/\", A387) + 1)))","v":""},"","",null,null,null,null,null,null,null,null,null,null,null,null,null,{"$f":"TEXT(IFERROR(CONCATENATE(IFERROR(DATE(U387,S387,T387),R387))*1,\"\"),\"dd/mm/yyyy\")","v":""}]
[{"$f":"Trama!G388","v":0},"","","","","","","",null,null,null,null,null,null,null,null,null,null,null,null,null,""]
[{"$f":"Trama!G389","v":0},"","","","","","","",null,null,null,null,null,null,null,null,null,null,null,null,null,""]
[{"$f":"Trama!G390","v":0},"","","","","","","",null,null,null,null,null,null,null,null,null,null,null,null,null,""]
[{"$f":"Trama!G391","v":0},"","","","","","","",null,null,null,null,null,null,null,null,null,null,null,null,null,""]
[{"$f":"Trama!G392","v":0},"","","","","","","",null,null,null,null,null,null,null,null,null,null,null,null,null,""]
[{"$f":"Trama!G393","v":0},"","","","","","","",null,null,null,null,null,null,null,null,null,null,null,null,null,""]
[{"$f":"Trama!G394","v":0},"","","","","","","",null,null,null,null,null,null,null,null,null,null,null,null,null,""]
[{"$f":"Trama!G395","v":0},"","","","","","","",null,null,null,null,null,null,null,null,null,null,null,null,null,""]
[{"$f":"Trama!G396","v":0},"","","","","","","",null,null,null,null,null,null,null,null,null,null,null,null,null,""]
[{"$f":"Trama!G397","v":0},"","","","","","","",null,null,null,null,null,null,null,null,null,null,null,null,null,""]
[{"$f":"Trama!G398","v":0},"","","","","","","",null,null,null,null,null,null,null,null,null,null,null,null,null,""]
[{"$f":"Trama!G399","v":0},"","","","","","","",null,null,null,null,null,null,null,null,null,null,null,null,null,""]
[{"$f":"Trama!G400","v":0},"","","","","","","",null,null,null,null,null,null,null,null,null,null,null,null,null,""]
[{"$f":"Trama!G401","v":0},"","","","","","","",null,null,null,null,null,null,null,null,null,null,null,null,null,""]
[{"$f":"Trama!G402","v":0},"","","","","","","",null,null,null,null,null,null,null,null,null,null,null,null,null,""]
[{"$f":"Trama!G403","v":0},"","","","","","","",null,null,null,null,null,null,null,null,null,null,null,null,null,""]
[{"$f":"Trama!G404","v":0},"","","","","","","",null,null,null,null,null,null,null,null,null,null,null,null,null,""]
[{"$f":"Trama!G405","v":0},"","","","","","","",null,null,null,null,null,null,null,null,null,null,null,null,null,""]
[{"$f":"Trama!G406","v":0},"","","","","","","",null,null,null,null,null,null,null,null,null,null,null,null,null,""]
[{"$f":"Trama!G407","v":0},"","","","","","","",null,null,null,null,null,null,null,null,null,null,null,null,null,""]
[{"$f":"Trama!G408","v":0},"","","","","","","",null,null,null,null,null,null,null,null,null,null,null,null,null,""]
[{"$f":"Trama!G409","v":0},"","","","","","","",null,null,null,null,null,null,null,null,null,null,null,null,null,""]
[{"$f":"Trama!G410","v":0},"","","","","","","",null,null,null,null,null,null,null,null,null,null,null,null,null,""]
[{"$f":"Trama!G411","v":0},"","","","","","","",null,null,null,null,null,null,null,null,null,null,null,null,null,""]
[{"$f":"Trama!G412","v":0},"","","","","","","",null,null,null,null,null,null,null,null,null,null,null,null,null,""]
[{"$f":"Trama!G413","v":0},"","","","","","","",null,null,null,null,null,null,null,null,null,null,null,null,null,""]
[{"$f":"Trama!G414","v":0},"","","","","","","",null,null,null,null,null,null,null,null,null,null,null,null,null,""]
[{"$f":"Trama!G415","v":0},"","","","","","","",null,null,null,null,null,null,null,null,null,null,null,null,null,""]
[{"$f":"Trama!G416","v":0},"","","","","","","",null,null,null,null,null,null,null,null,null,null,null,null,null,""]
[{"$f":"Trama!G417","v":0},"","","","","","","",null,null,null,null,null,null,null,null,null,null,null,null,null,""]
[{"$f":"Trama!G418","v":0},"","","","","","","",null,null,null,null,null,null,null,null,null,null,null,null,null,""]
[{"$f":"Trama!G419","v":0},"","","","","","","",null,null,null,null,null,null,null,null,null,null,null,null,null,""]
[{"$f":"Trama!G420","v":0},"","","","","","","",null,null,null,null,null,null,null,null,null,null,null,null,null,""]
[{"$f":"Trama!G421","v":0},"","","","","","","",null,null,null,null,null,null,null,null,null,null,null,null,null,""]
[{"$f":"Trama!G422","v":0},"","","","","","","",null,null,null,null,null,null,null,null,null,null,null,null,null,""]
[{"$f":"Trama!G423","v":0},"","","","","","","",null,null,null,null,null,null,null,null,null,null,null,null,null,""]
[{"$f":"Trama!G424","v":0},"","","","","","","",null,null,null,null,null,null,null,null,null,null,null,null,null,""]
[{"$f":"Trama!G425","v":0},"","","","","","","",null,null,null,null,null,null,null,null,null,null,null,null,null,""]
[{"$f":"Trama!G426","v":0},"","","","","","","",null,null,null,null,null,null,null,null,null,null,null,null,null,""]
[{"$f":"Trama!G427","v":0},"","","","","","","",null,null,null,null,null,null,null,null,null,null,null,null,null,""]
[{"$f":"Trama!G428","v":0},"","","","","","","",null,null,null,null,null,null,null,null,null,null,null,null,null,""]
[{"$f":"Trama!G429","v":0},"","","","","","","",null,null,null,null,null,null,null,null,null,null,null,null,null,""]
[{"$f":"Trama!G430","v":0},"","","","","","","",null,null,null,null,null,null,null,null,null,null,null,null,null,""]
[{"$f":"Trama!G431","v":0},"","","","","","","",null,null,null,null,null,null,null,null,null,null,null,null,null,""]
[{"$f":"Trama!G432","v":0},"","","","","","","",null,null,null,null,null,null,null,null,null,null,null,null,null,""]
[{"$f":"Trama!G433","v":0},"","","","","","","",null,null,null,null,null,null,null,null,null,null,null,null,null,""]
[{"$f":"Trama!G434","v":0},"","","","","","","",null,null,null,null,null,null,null,null,null,null,null,null,null,""]
[{"$f":"Trama!G435","v":0},"","","","","","","",null,null,null,null,null,null,null,null,null,null,null,null,null,""]
[{"$f":"Trama!G436","v":0},"","","","","","","",null,null,null,null,null,null,null,null,null,null,null,null,null,""]
[{"$f":"Trama!G437","v":0},"","","","","","","",null,null,null,null,null,null,null,null,null,null,null,null,null,""]
[{"$f":"Trama!G438","v":0},"","","","","","","",null,null,null,null,null,null,null,null,null,null,null,null,null,""]
[{"$f":"Trama!G439","v":0},"","","","","","","",null,null,null,null,null,null,null,null,null,null,null,null,null,""]
[{"$f":"Trama!G440","v":0},"","","","","","","",null,null,null,null,null,null,null,null,null,null,null,null,null,""]
[{"$f":"Trama!G441","v":0},"","","","","","","",null,null,null,null,null,null,null,null,null,null,null,null,null,""]
[{"$f":"Trama!G442","v":0},"","","","","","","",null,null,null,null,null,null,null,null,null,null,null,null,null,""]
[{"$f":"Trama!G443","v":0},"","","","","","","",null,null,null,null,null,null,null,null,null,null,null,null,null,""]
[{"$f":"Trama!G444","v":0},"","","","","","","",null,null,null,null,null,null,null,null,null,null,null,null,null,""]
[{"$f":"Trama!G445","v":0},"","","","","","","",null,null,null,null,null,null,null,null,null,null,null,null,null,""]
[{"$f":"Trama!G446","v":0},"","","","","","","",null,null,null,null,null,null,null,null,null,null,null,null,null,""]
[{"$f":"Trama!G447","v":0},"","","","","","","",null,null,null,null,null,null,null,null,null,null,null,null,null,""]
[{"$f":"Trama!G448","v":0},"","","","","","","",null,null,null,null,null,null,null,null,null,null,null,null,null,""]
[{"$f":"Trama!G449","v":0},"","","","","","","",null,null,null,null,null,null,null,null,null,null,null,null,null,""]
[{"$f":"Trama!G450","v":0},"","","","","",{"$f":"TEXT(IFERROR(CONCATENATE(IFERROR(DATE(F450,D450,E450),C450))*1,\"\"),\"dd/mm/yyyy\")","v":""},"",null,null,null,null,null,null,null,null,null,null,null,null,null,""]
[{"$f":"Trama!G451","v":0},{"$f":"IF(A451=0,\"\",A451*1)","v":""},{"$f":"IF(B451=\"\",\"\",IFERROR(B451,TEXT(A451,\"dd/mm/yyyy\")))","v":""},{"$f":"IFERROR(C451,LEFT(A451, FIND(\"/\",A451) - 1))","v":""},{"$f":"IFERROR(C451,MID(A451,FIND(\"/\",A451) + 1, FIND(\"/\", A451, FIND(\"/\", A451) + 1) - FIND(\"/\", A451) - 1))","v":""},{"$f":"IFERROR(C451,RIGHT(A451, LEN(A451) - FIND(\"/\", A451, FIND(\"/\", A451) + 1)))","v":""},"","",null,null,null,null,null,null,null,null,null,null,null,null,null,{"$f":"TEXT(IFERROR(CONCATENATE(IFERROR(DATE(U451,S451,T451),R451))*1,\"\"),\"dd/mm/yyyy\")","v":""}]
[{"$f":"Trama!G452","v":0},"","","","","","","",null,null,null,null,null,null,null,null,null,null,null,null,null,""]
[{"$f":"Trama!G453","v":0},"","","","","","","",null,null,null,null,null,null,null,null,null,null,null,null,null,""]
[{"$f":"Trama!G454","v":0},"","","","","","","",null,null,null,null,null,null,null,null,null,null,null,null,null,""]
[{"$f":"Trama!G455","v":0},"","","","","","","",null,null,null,null,null,null,null,null,null,null,null,null,null,""]
[{"$f":"Trama!G456","v":0},"","","","","","","",null,null,null,null,null,null,null,null,null,null,null,null,null,""]
[{"$f":"Trama!G457","v":0},"","","","","","","",null,null,null,null,null,null,null,null,null,null,null,null,null,""]
[{"$f":"Trama!G458","v":0},"","","","","","","",null,null,null,null,null,null,null,null,null,null,null,null,null,""]
[{"$f":"Trama!G459","v":0},"","","","","","","",null,null,null,null,null,null,null,null,null,null,null,null,null,""]
[{"$f":"Trama!G460","v":0},"","","","","","","",null,null,null,null,null,null,null,null,null,null,null,null,null,""]
[{"$f":"Trama!G461","v":0},"","","","","","","",null,null,null,null,null,null,null,null,null,null,null,null,null,""]
[{"$f":"Trama!G462","v":0},"","","","","","","",null,null,null,null,null,null,null,null,null,null,null,null,null,""]
[{"$f":"Trama!G463","v":0},"","","","","","","",null,null,null,null,null,null,null,null,null,null,null,null,null,""]
[{"$f":"Trama!G464","v":0},"","","","","","","",null,null,null,null,null,null,null,null,null,null,null,null,null,""]
[{"$f":"Trama!G465","v":0},"","","","","","","",null,null,null,null,null,null,null,null,null,null,null,null,null,""]
[{"$f":"Trama!G466","v":0},"","","","","","","",null,null,null,null,null,null,null,null,null,null,null,null,null,""]
[{"$f":"Trama!G467","v":0},"","","","","","","",null,null,null,null,null,null,null,null,null,null,null,null,null,""]
[{"$f":"Trama!G468","v":0},"","","","","","","",null,null,null,null,null,null,null,null,null,null,null,null,null,""]
[{"$f":"Trama!G469","v":0},"","","","","","","",null,null,null,null,null,null,null,null,null,null,null,null,null,""]
[{"$f":"Trama!G470","v":0},"","","","","","","",null,null,null,null,null,null,null,null,null,null,null,null,null,""]
[{"$f":"Trama!G471","v":0},"","","","","","","",null,null,null,null,null,null,null,null,null,null,null,null,null,""]
[{"$f":"Trama!G472","v":0},"","","","","","","",null,null,null,null,null,null,null,null,null,null,null,null,null,""]
[{"$f":"Trama!G473","v":0},"","","","","","","",null,null,null,null,null,null,null,null,null,null,null,null,null,""]
[{"$f":"Trama!G474","v":0},"","","","","","","",null,null,null,null,null,null,null,null,null,null,null,null,null,""]
[{"$f":"Trama!G475","v":0},"","","","","","","",null,null,null,null,null,null,null,null,null,null,null,null,null,""]
[{"$f":"Trama!G476","v":0},"","","","","","","",null,null,null,null,null,null,null,null,null,null,null,null,null,""]
[{"$f":"Trama!G477","v":0},"","","","","","","",null,null,null,null,null,null,null,null,null,null,null,null,null,""]
[{"$f":"Trama!G478","v":0},"","","","","","","",null,null,null,null,null,null,null,null,null,null,null,null,null,""]
[{"$f":"Trama!G479","v":0},"","","","","","","",null,null,null,null,null,null,null,null,null,null,null,null,null,""]
[{"$f":"Trama!G480","v":0},"","","","","","","",null,null,null,null,null,null,null,null,null,null,null,null,null,""]
[{"$f":"Trama!G481","v":0},"","","","","","","",null,null,null,null,null,null,null,null,null,null,null,null,null,""]
[{"$f":"Trama!G482","v":0},"","","","","","","",null,null,null,null,null,null,null,null,null,null,null,null,null,""]
[{"$f":"Trama!G483","v":0},"","","","","","","",null,null,null,null,null,null,null,null,null,null,null,null,null,""]
[{"$f":"Trama!G484","v":0},"","","","","","","",null,null,null,null,null,null,null,null,null,null,null,null,null,""]
[{"$f":"Trama!G485","v":0},"","","","","","","",null,null,null,null,null,null,null,null,null,null,null,null,null,""]
[{"$f":"Trama!G486","v":0},"","","","","","","",null,null,null,null,null,null,null,null,null,null,null,null,null,""]
[{"$f":"Trama!G487","v":0},"","","","","","","",null,null,null,null,null,null,null,null,null,null,null,null,null,""]
[{"$f":"Trama!G488","v":0},"","","","","","","",null,null,null,null,null,null,null,null,null,null,null,null,null,""]
[{"$f":"Trama!G489","v":0},"","","","","","","",null,null,null,null,null,null,null,null,null,null,null,null,null,""]
[{"$f":"Trama!G490","v":0},"","","","","","","",null,null,null,null,null,null,null,null,null,null,null,null,null,""]
[{"$f":"Trama!G491","v":0},"","","","","","","",null,null,null,null,null,null,null,null,null,null,null,null,null,""]
[{"$f":"Trama!G492","v":0},"","","","","","","",null,null,null,null,null,null,null,null,null,null,null,null,null,""]
[{"$f":"Trama!G493","v":0},"","","","","","","",null,null,null,null,null,null,null,null,null,null,null,null,null,""]
[{"$f":"Trama!G494","v":0},"","","","","","","",null,null,null,null,null,null,null,null,null,null,null,null,null,""]
[{"$f":"Trama!G495","v":0},"","","","","","","",null,null,null,null,null,null,null,null,null,null,null,null,null,""]
[{"$f":"Trama!G496","v":0},"","","","","","","",null,null,null,null,null,null,null,null,null,null,null,null,null,""]
[{"$f":"Trama!G497","v":0},"","","","","","","",null,null,null,null,null,null,null,null,null,null,null,null,null,""]
[{"$f":"Trama!G498","v":0},"","","","","","","",null,null,null,null,null,null,null,null,null,null,null,null,null,""]
[{"$f":"Trama!G499","v":0},"","","","","","","",null,null,null,null,null,null,null,null,null,null,null,null,null,""]
[{"$f":"Trama!G500","v":0},"","","","","","","",null,null,null,null,null,null,null,null,null,null,null,null,null,""]
[{"$f":"Trama!G501","v":0},"","","","","","","",null,null,null,null,null,null,null,null,null,null,null,null,null,""]